Workbook

Sheet Licence agreement

Sheet Instructions English
B1: Instruction on how to use CTAP:
B3: Introduction:
B4: CTAP was designed to provide a good estimate of a community's residential building sector greenhouse gas (GHG) inventory with as simple as possible data entry requirements.
B5: Its target user base is made up of small and medium communities administrators who want to engage into the national GHG reduction initiative and who want to gain an understanding of the magnitude challenge in a timely and cost effective manner, and develop a road map for setting targets and achieving them.
B6: CTAP allows the user to quickly obtain a general idea of where their community stands in terms of GHG inventory:
C8: * for any given reference year (e.g. 2005, 2017, etc.) and
C9: * for the current year (e.g. 2024) and
C10: * and for any future scenario.
B12: A scenario is defined as a series of building interventions in the community's residential buildings stock.
B13: Building level interventions include: conversions of heating system (example: electrification), introduction of renewable energy generation (example: solar panels), and energy conservation measures (example: deep energy retrofit).
B15: The main objective of CTAP is to assist the local GHG reduction task force to quantify the type and level of penetration of building level interventions required to achieve a given percentage GHG reduction target. The percentage reduction of GHG is relative to that of the chosen reference year. An important section of the User Manual discusses the selection of the reference year and targets. CTAP also provides a very broad cost estimate for implementing any given scenario. Although the financial analysis is not applicable to any specific building, the overall order of magnitude of the investment required can be used in sourcing funds by associating a capital budget estimate to a given program its targeted results when applying for subsidies, incentives or other financing vehicles.
B21: First Phase of the Study: Select the CTAP version for your locality, and obtaining the GHG inventory for the reference year and for the current year:
B23: Customized CTAP version:
B24: From the 51 customized CTAP versions, the user selects the one for the city closest to his/her locality. This version of CTAP will be pre-populated with the data for the user's community. In Cell O14 of the "User Input Output" Tab, select French of English. Save a virgin copy and work on a duplicate. CTAP comes customized for a given region with the appropriate climate file, 11 default archetypes and their baseline annual hourly energy demand profiles (the 24 hours for 365 days, also called the "8760s" data points). The archetypes counts and existing heating systems in use are also pre-defined based on provincial averages contained in the latest census for dwelling counts and types, and the National Energy Usage Database. This is done for the current year, and for any past reference (or baseline) year, adjusting the data accordingly. *** Note that the data used is for a provincial average, applied to your city. Should better information be available that would be significantly different from the provincial average, the user can adjust the data as per the explanatory notes on the input screen.
B34: Reference year GHG inventory:
B35: 1) In Cell K18 on "User Input Output" Tab, select your City
B36: 2) After selecting the reference year (see section of the User Manual on this topic), enter it in Cell C17 of the "Scenarios Definition" Tab. In cell C18, the estimated number of buildings appears. If better data is available (example tax roll database), validate and correct that number by overriding the default in that same cell. Then, adjust the number of buildings in each of the 11 default archetypes presented in the first table in Cells B23 to B33. See explanatory notes in Cells A34, A35 and J34 as required.
B39: 3) The reference year run can now be executed. In the "User Input Output" Tab, select Scenario 1 in Cell L15. Then click on the macro button (beside "Step 2"). The macro beside "Step 3" will save the result matrix into the scenario comparison table. The macro beside "Step 4" saves you work up to that point.
B41: Current year GHG inventory:
B42: 1) In Cell T15 on "User Input Output" Tab, enter current year (example: 2024).
B43: 2) After entering the current year CTAP extrapolates from the latest census to get an estimated number of buildings which appears in Cell W15. If data is available (example tax roll database), validate and correct that number by overriding the formula in Cell W15. CTAP adjusts the number of buildings in the most recent archetype of the second table, in Cell B53. Adjust data as required, see explanatory note in Cell J54 as required.
B46: 3) CTAP also performs a very simple constant dollar estimation of the annual energy costs for the community's residential building stock, as a reference for the impact of future scenarios, excluding any inflationary impact. To obtain that value, the user can enter the energy unit costs in the "Financial" Tab in Rows 18 to 45. It includes electricity costs (fixed and time of Use (TOU)), natural gas, propane, oil, and wood.
B47: 4) The current year run can now be executed. In the "User Input Output" Tab, select Scenario 2 in Cell L15. Then click on the macro button (beside "Step 2"). The macro beside "Step 3" will save the result matrix into the scenario comparison table in the second column where it can be readily compared to the results for the reference year. The macro beside "Step 4" saves you work up to that point.
B49: Second Phase of the Study: develop and evaluate Scenarios for different milestones, until GHG reduction target reached
B51: 1) Prior to proceeding with this phase, the community's administrator should:
C52: * Identify a task force leader
C53: * Establish targets and millstones, between now and 2050 in terms of GHG reduction for any and as many interim years along the path to Net-Zero.
C54: * Identify and solicit the assistance of local stakeholders, technical resources and subject matter experts to build a local task force (See relevant section in the User Manual)
C56: * After several workshops and consultations, identify the best technologies for the local context, and even validate the default unit costs provided in the upper section of the "Financial" Tab
B58: 2) Defining the first future scenario:
C59: * Starting in the third table in the "Scenarios Definition" Tab, in Cell B62 and C62, enter the scenario's year and name. The name should start with the year, and contain a short form of the main components on the scenario in abbreviated form to keep it somewhat short, but still capturing the main attributes of the scenario.
C61: * The user must also estimate the number of dwellings that will be added between the current year and the year of the future scenario. This is done by increasing the number of dwellings in the most recent archetype(s) vintage. (2011-2020). Unless those new dwellings are demonstratively going to be built to NET-ZERO standard.
C62: * CTAP uses provincial averages for existing heating systems as a strating point. The user can have a glimpse at the progression since the reference year by comparing the heating system counts in Columns C to Column J betweeb the first and second table of the "Scenarios definition" Tab. If data or local knowledge exists and shows different circumstances, the user can overwrite those default counts.
C63: * enter the number of dwellings converting to different heating system technologies. It is assumed that the conversion will be on dwelling currently using fossil fuels, and CTAP will reduce the count of fossil fuel heating systems automatically as conversions are entered. The user can of course overwrite that assumption if, for example, a heat pump is introduced into a dwelling heated by baseboard.
C66: * Enter the number of new technologies (solar arrays, solar domestic hot water, thermal or electrical storage and their average capacities, etc..) in Cells K63 to Q73.
C67: * Enter the targets energy conservation measures (ECMs) in Cells S63 to W73. Note that these are target reductions. Consultation with a local energy adviser will be needed to define what actual conponents of a deep energy retrofit or other measures are required to achieve those targets for any given archetype.
C70: Once those choices are made, just like selecting items from a menu, the first "future scenario" run can be executed. In the "User Input Output" Tab, the user selects Scenario "3" ("Step 1"). then clicks the macro " Step 2" to calculate, and "Step 3" to save the result matrix in tje third column of the comparison table. At the bottom, the GHG % reduction from the reference year is shown. Shoudl the result not match the target for that year, the user can go back to the "Scenarios definition" Tab and add more interventions/items in Cells "B63 to W73" and run the scenario again, until the target is achieved.
B75: 3) Defining additional future scenarios:
C76: * Any additional scenario would normally be cummulative to the previous ones, that is it includes all of the interventions done previously, and then adds some more to achieve more GHG % reduction. Don't forget to adjust forecasted number of new dwellings to be added.
C79: * To save the user the tedious task of re-entering all of the interventions selected in previous scenarios, a macro button is provided to the right of the entry tables. The blue one copies the data from the previous table, and the orange one re-initializes the table to the setting of the current year (second table).
C82: * The next future scenario runs are executed in the same fashion in the "User Input Output" Tab.
B85: Composite Building Stocks approach
C86: When only a subset of buildings within an archetype is ear-tagged for ECMs (energy conservation measures) the group must be broken up in what becomes 2 archetypes; the original archetype and a second one with different properties as per the ECMs. Since the capacity of the software is 11 archetypes, we can create a second scenario for the additional modified archetype. If an archetype A with 10 buildings assigned to it will have only 3 of its buildings retrofitted, that scenario would included in "part 1" the 7 buildings of archetype A with no retrofit, and the other 10 archetypes counts remain the same. A "Part two scenario" would contain the 12th archetype - which is archetype A + retrofit identified - with a count of 3, All other counts are 0. The sum of the results matrices is for both parts, and can be copied into the next column of the comparison table ("Step 5" on the "User Input Output" Tab)
C150: A similar approach can be used to add future expansion of the building stocks. If the future buildings to be added are of different archetypes, for example, of more advanced standards such as those suggested in "Step Codes" building codes, they can be defined as custom archetypes. Separate CTAP files/runs can be used to establish the GHG contribution of the forecasted growth in building stock for the jurisdiction. Then, the resulting metrics can be added to the metrics of the current building stock metrics to obtain the overall GHG inventory for a given milestone in time, for example 2030.

Sheet Instructions Francais
B1: Instructions: comment utiliser OETC
B3: Introduction:
B4: L'OETC a été conçu pour fournir une bonne estimation de l'inventaire des gaz à effet de serre (GES) du secteur des bâtiments résidentiels d'une communauté avec des exigences de saisie de données aussi simples que possible.
B5: Sa base d'utilisateurs cibles est constituée d'administrateurs de petites et moyennes communautés qui souhaitent s'engager dans l'initiative nationale de réduction des GES et qui souhaitent comprendre le défi de manière opportune et rentable.
B6: L'OETC permet à l'utilisateur d'avoir rapidement une idée générale de la situation de sa communauté en termes d'inventaire de GES :
C8: * pour toute année de référence donnée (par exemple 2005, 2017, etc.) et
C9: * pour l'année en cours (par exemple 2024) et''
C10: * et pour tout scénario futur.
B12: Un scénario est défini comme une série d'interventions de construction dans le parc de bâtiments résidentiels de la communauté.
B13: Les interventions au niveau du bâtiment comprennent : les conversions du système de chauffage (exemple : électrification), l'introduction de la production d'énergie renouvelable (exemple : panneaux solaires) et des mesures d'économie d'énergie (exemple : rénovation énergétique en profondeur).
B15: L’objectif principal de l’OETC est d’aider le groupe de travail local sur la réduction des GES à quantifier le type et le niveau de pénétration des interventions au niveau du bâtiment nécessaires pour atteindre un objectif de réduction des GES en pourcentage donné. Le pourcentage de réduction des GES est proportionnel à celui de l'année de référence choisie. Une section importante du Manuel de l'utilisateur traite de la sélection de l'année de référence et des cibles. L'OETC fournit également une estimation approximative des coûts pour la mise en œuvre d'un scénario donné. Bien que l'analyse financière ne soit applicable à aucun bâtiment spécifique, l'ordre de grandeur global de l'investissement requis peut être utilisé pour trouver des fonds en associant une estimation du budget d'investissement à un programme donné et ses résultats ciblés lors de demandes de subventions, d'incitations ou d'autres véhicules de financement.
B21: Première phase de l'étude : Sélectionnez la version OETC pour votre localité, et obtention de l'inventaire GES pour l'année de référence et pour l'année en cours :
B23: Version OETC personnalisée :
B24: Parmi les 51 versions personnalisées de l'OETC, l'utilisateur sélectionne celle de la ville la plus proche de sa localité. Cette version de l'OETC sera pré-remplie avec les données de la communauté de l'utilisateur. Dans la cellule O14 de l'onglet « User Input Output », sélectionnez Français ou Anglais. Sauvegardez une copie OETC vierge et travaillez sur un duplicata. L'OETC est personnalisé pour une région donnée avec le fichier climatique approprié, 11 archétypes par défaut et leurs profils de demande d'énergie horaire annuels de base (les 24 heures pour 365 jours, également appelés points de données « 8760 »). Le nombre d'archétypes et les systèmes de chauffage existants utilisés sont également prédéfinis en fonction des moyennes provinciales contenues dans le dernier recensement pour le nombre et les types de logements, ainsi que de la base de données nationale sur la consommation d'énergie. Ceci est effectué pour l’année en cours et pour toute année de référence passée, en ajustant les données en conséquence. *** Notez que les données utilisées correspondent à une moyenne provinciale, appliquée à votre ville. Si de meilleures informations sont disponibles et seraient significativement différentes de la moyenne provinciale, l'utilisateur peut ajuster les données selon les notes explicatives sur l'écran de saisie.
B34: Inventaire des GES de l’année de référence :
B35: 1) Dans la cellule K18 de l'onglet "User Input Output", sélectionnez votre ville
B36: 2) Après avoir sélectionné l'année de référence (voir section du Manuel d'utilisation à ce sujet), saisissez-la dans la cellule C17 de l'onglet « Scenarios Définition ». Dans la cellule C18, le nombre estimé de bâtiments apparaît. Si de meilleures données sont disponibles (exemple de base de données du rôle d'impôt foncier), validez et corrigez ce numéro en remplaçant la valeur fournie par défaut dans cette même cellule. Ensuite, ajustez le nombre de bâtiments dans chacun des 11 archétypes par défaut présentés dans le premier tableau des cellules B23 à B33. Voir les notes explicatives dans les cellules A34, A35 et J34, au besoin.
B39: 3) Les calculs pour l'année écoulée peuvent maintenant être exécutés. Dans l'onglet « User Input Output », sélectionnez le scénario 1 dans la cellule L15. Cliquez ensuite sur le bouton macro (à côté de « Pas 2 »). La macro à côté de « Pas 3 » enregistrera la matrice de résultats dans le tableau de comparaison des scénarios. La macro à côté de « Pas 4 » sauvegarde votre travail jusqu'à ce point.
B41: Inventaire des GES de l’année en cours :
B42: 1) Dans la cellule T15 de l'onglet « User Input Output », entrez l'année en cours (exemple : 2024).
B43: 2) After entering the current year OETC extrapolates from the latest census to get an estimated number of buildings which appears in Cell W15. If data is available (example tax roll database), validate and correct that number by overriding the formula in Cell W15. OETC adjusts the number of buildings in the most recent archetype of the second table, in Cell B53. Adjust data as required, see explanatory note in Cell J54 as required.
B46: 3) L'OETC effectue également une estimation très simple, en dollars constants, des coûts énergétiques annuels du parc de bâtiments résidentiels de la communauté, comme référence pour l'impact des scénarios futurs, excluant tout impact inflationniste. Pour obtenir cette valeur, l'utilisateur peut saisir les coûts unitaires d'énergie dans l'onglet « Financial » des lignes 18 à 45. Ils comprennent les coûts d'électricité (fixes et horaires d'utilisation (TOU)), le gaz naturel, le propane, le mazout et le bois.
B47: 4) Les calculs pour l'année en cours peuvent maintenant être exécutés. Dans l'onglet « User Input Output », sélectionnez le scénario 2 dans la cellule L15. Cliquez ensuite sur le bouton macro (à côté de « Pas 2 »). La macro à côté de « Pas 3 » enregistrera la matrice des résultats dans le tableau de comparaison des scénarios dans la deuxième colonne où elle pourra être facilement comparée aux résultats de l'année de référence. La macro à côté de « Pas 4 » sauvegarde votre travail jusqu'à ce point.
B49: Deuxième phase de l'étude : élaborer et évaluer des scénarios pour différentes étapes, jusqu'à ce que l'objectif de réduction des GES soit atteint:
B51: 1) Avant de procéder à cette phase, l'administrateur de la communauté est encouragé de :
C52: * Identifier un chef de groupe de travail
C53: * Établir des objectifs et des jalons, d'ici 2050, en termes de réduction des GES pour toutes les années intermédiaires sur la voie du zéro émission nette (NET ZERO).
C54: * Identifier et solliciter l'aide des parties prenantes locales, des ressources techniques et des experts en la matière pour constituer un groupe de travail local (voir la section pertinente dans le manuel de l'utilisateur)
C56: * Après plusieurs ateliers et consultations, identifier les meilleures technologies pour le contexte local, et même valider les coûts unitaires par défaut fournis dans la partie supérieure de l'onglet « Financial »
B58: 2) Définir le premier scénario futur :
C59: * Dans le troisième tableau de l'onglet « Scénarios definition », dans les cellules B62 et C62, saisissez l'année et le nom du scénario. Le nom doit commencer par l'année et contenir une forme abrégée des principaux composants du scénario pour le garder le nom du scénario court, tout en capturant les principaux attributs du scénario.
C61: * L'utilisateur doit également estimer le nombre de logements qui seront ajoutés entre l'année en cours et l'année du scénario futur. Cela se fait en augmentant le nombre d'habitations dans le(s) millésime(s) d'archétype(s) le plus récent. (2011-2020). À moins que ces nouveaux logements soient manifestement construits selon la norme NET-ZERO.
C63: * Entrez le nombre de logements convertis à différentes technologies de système de chauffage. On suppose que la conversion portera sur les logements utilisant actuellement des combustibles fossiles, et l'OETC réduira automatiquement le nombre de systèmes de chauffage à combustibles fossiles au fur et à mesure que les conversions seront saisies. L'utilisateur peut bien entendu modifier cette hypothèse si, par exemple, une pompe à chaleur est introduite dans une habitation chauffée par des plinthes électriques.
C66: * Inscrivez le nombre de nouvelles technologies (panneaux solaires, chauffe-eau solaire domestique, stockage thermique ou électrique et leurs capacités moyennes, etc.) dans les cellules K63 à Q73.
C67: * Entrez les mesures d'économie d'énergie (ECM) cibles dans les cellules S63 à W73. Notez qu’il s’agit de réductions cibles. Une consultation avec un conseiller local en matière d'énergie sera nécessaire pour définir les éléments réels d'une rénovation énergétique approfondie ou d'autres mesures nécessaires pour atteindre ces objectifs pour un archétype donné.
C70: Une fois ces choix effectués, tout comme la sélection d'éléments dans un menu, la première exécution du « scénario futur » peut être exécutée. Dans l'onglet « User Input Output », l'utilisateur sélectionne le scénario « 3 » (« Pas 1 »). clique ensuite sur la macro "Pas 2" pour calculer, et " Pas 3" pour enregistrer la matrice de résultat dans la troisième colonne du tableau de comparaison. En bas, le pourcentage de réduction des GES par rapport à l’année de référence est indiqué. Si le résultat ne correspond pas à l'objectif pour cette année, l'utilisateur peut revenir à l'onglet « Scenarios Définition » et ajouter d'autres interventions/éléments dans les cellules « B63 à W73 » et exécuter à nouveau le scénario jusqu'à ce que l'objectif soit atteint.
B75: 3) Définir des scénarios futurs supplémentaires :
C76: * Tout scénario supplémentaire serait normalement cumulatif aux précédents, c'est-à-dire qu'il inclut toutes les interventions effectuées précédemment, puis en ajoute d'autres pour obtenir un pourcentage de réduction des GES plus important. N'oubliez pas d'ajuster le nombre prévu de nouveaux logements à ajouter d'ici l'année du scénario futur.
C79: * Pour éviter à l'utilisateur la tâche fastidieuse de ressaisir toutes les interventions sélectionnées dans les scénarios précédents, un bouton macro est prévu à droite des tableaux de saisie. Le bleu copie les données du tableau précédent, et l'orange réinitialise le tableau au réglage de l'année en cours (deuxième tableau).
C82: * Les prochaines exécutions de scénarios futurs sont exécutées de la même manière dans l'onglet « User Input Output ».
B86: Approche du parc immobilier "composé"
C89: Lorsque seul un sous-ensemble de bâtiments au sein d'un archétype est identifié pour les ECM (mesures d'économie d'énergie), le groupe doit être divisé en ce qui devient 2 archétypes ; l'archétype original et un second avec des propriétés différentes selon les ECM. Puisque la capacité du logiciel est de 11 archétypes, nous pouvons créer un deuxième scénario pour l'archétype modifié supplémentaire. Si un archétype A avec 10 bâtiments qui lui sont attribués verra seulement 3 de ses bâtiments modernisés, ce scénario inclura dans la « partie 1 » les 7 bâtiments de l'archétype A sans rénovation, et les 10 autres archétypes resteront les mêmes. Un "scénario de la deuxième partie" contiendrait le 12ème archétype - qui est l'archétype A + rénovation identifié - avec un compte de 3, tous les autres comptes sont 0. La somme des matrices de résultats concerne les deux parties et peut être copiée dans la suivante. colonne du tableau de comparaison (" Pas 5 " sur l'onglet " User Input Output ")
D117: Une approche similaire peut être utilisée pour ajouter une expansion future du parc immobilier. Si les futurs bâtiments à ajouter sont d'archétypes différents, par exemple de normes plus avancées telles que celles suggérées dans les codes du bâtiment « Step Codes », ils peuvent être définis comme des archétypes personnalisés. Des fichiers/analyses CTAP distincts peuvent être utilisés pour établir la contribution aux GES de la croissance prévue du parc immobilier pour la juridiction. Ensuite, les mesures résultantes peuvent être ajoutées aux mesures du parc immobilier actuel pour obtenir l’inventaire global des GES pour une étape donnée dans le temps, par exemple 2030.
C153: A similar approach can be used to add future expansion of the building stocks. If the future buildings to be added are of different archetypes, for example, of more advanced standards such as those suggested in "Step Codes" building codes, they can be defined as custom archetypes. Separate OETC files/runs can be used to establish the GHG contribution of the forecasted growth in building stock for the jurisdiction. Then, the resulting metrics can be added to the metrics of the current building stock metrics to obtain the overall GHG inventory for a given milestone in time, for example 2030.

Sheet User Input Output
A1: Current Scenario INPUTS (imported from "Tab Scenarios definition" by selecting Scenario in Cell L15. | Y1: Order of magnitude Unit Costs for GHG Reduction Measures | AV1: Order of magnitude costs of measures for entire inventory | AZ1: Note: cost calculations apply to intervention post-current year
A2: Archetype | B2: Total Number (INPUT) | C2: #StatusQuo_ElecHeat (INPUT) | D2: #StatusQuo_FuelHeat (INPUT) | E2: Fuel Efficiency | F2: #StatusQuo_Wood/ BiomassHeat (INPUT) | G2: #ASHP_HeatCool (INPUT) | H2: #GSHP_HeatCool (INPUT) | I2: GSHP Size (kW) per dwelling | J2: GSHP Gas or Elec Aux. | K2: SDHW (INPUT) | L2: PV #(INPUT) | M2: PV kWdc/dweling (INPUT) | N2: Total # Battery (INPUT) | O2: # Thermal Storage (INPUT) | P2: Heating Load % Reduction | Q2: Cooling Load % Reduction | R2: DHW % Reduction | S2: Lighting Load % Reduction | T2: Plug Load % Reduction | U2: INFO: Peak Heat per Dwelling (kW) | V2: INFO: Peak Cool per Dwelling (kW) | Y2: Average area per building (ft²) | Z2: # of Buildings | AA2: Peak heat load post measures (tons/ building) | AB2: Post measures Peak cooling load (tons/ building) | AC2: Battery bank capacity (kWhrs) | AD2: Thermal storage capacity (kWhrs) | AE2: ASHP (intercept equipment) ( $/unit) | AF2: ASHP ($/ton) | AG2: AS/GS HP (ductwork upgrade average allowance) ($/ft2) | AH2: AS/GS HP (electrical service upgrade avg allowance) ($/unit) | AI2: GSHP (intercept equipment) ($/unit) | AJ2: GSHP ($/ton) | AK2: SDHW ($/each) | AL2: DHW HP ($/each) | AM2: PV ($/kWp) | AN2: indirect cost PV installation ($/building) | AO2: Battery ($/kWhr) | AP2: # Thermal Storage ($/kWhr) | AQ2: Heating Load % Reduction ($/ft2/%) | AR2: Cooling Load % Reduction ($/ft2/%) | AS2: DHW % Reduction avg allowance ($/dweling/%) | AT2: Plug Load reduction ($/dwelling/%) | AU2: Lighting Load % Reduction ($/ft2/%) | AW2: ASHP Cost | AX2: GSHP Cost | AY2: =K2 -> SDHW (INPUT) | AZ2: =L2 -> PV #(INPUT) | BA2: Battery Cost | BB2: Thermal Storage | BC2: Heating Load Reduction | BD2: Cooling Load Reduction | BE2: DHW Reduction | BF2: Plug Load reduction | BG2: Lighting Load Reduction | BH2: total
A3: ='Scenarios definition'!A3 -> Before 1946 and 1946-1977 Small , Single Detached | B3: ='Scenarios definition'!B3 -> 50 | C3: ='Scenarios definition'!C3 -> 20 | D3: ='Scenarios definition'!D3 -> 17 | E3: ='Scenarios definition'!E3 -> 0.8059305492 | F3: ='Scenarios definition'!F3 -> 12 | G3: ='Scenarios definition'!G3 -> 1 | H3: ='Scenarios definition'!H3 -> 0 | I3: ='Scenarios definition'!I3 -> 19.6324 | J3: ='Scenarios definition'!J3 -> Fossil fuel | K3: ='Scenarios definition'!K3 -> 0 | L3: ='Scenarios definition'!L3 -> 0 | M3: ='Scenarios definition'!M3 -> 0 | N3: ='Scenarios definition'!N3 -> 1 | O3: ='Scenarios definition'!O3 -> 0 | P3: ='Scenarios definition'!P3 -> 0 | Q3: ='Scenarios definition'!Q3 -> 0 | R3: ='Scenarios definition'!R3 -> 0 | S3: ='Scenarios definition'!S3 -> 0 | T3: ='Scenarios definition'!T3 -> 0 | U3: =MAIN!Z2 -> 8.391527015 | V3: =MAIN!AA2 -> 0 | Y3: =CONVERT(MAIN!C2,"m2","ft2") -> 1192.641274 | Z3: =B3 -> 50 | AA3: =U3*0.284345 -> 2.386088749 | AB3: =V3*0.284345 -> 0 | AC3: ='Scenarios definition'!AC3 -> 13.5 | AD3: ='Scenarios definition'!AD3 -> 240 | AE3: =Financial!H6 -> 1500 | AF3: =Financial!I6 -> 1200 | AG3: =Financial!J6 -> 1.5 | AH3: =Financial!K6 -> 5000 | AI3: =Financial!L6 -> 5000 | AJ3: =Financial!M6 -> 5000 | AK3: =Financial!N6 -> 2500 | AL3: =Financial!O6 -> 4000 | AM3: =Financial!P6 -> 2200 | AN3: =Financial!Q6 -> 2000 | AO3: =Financial!R6 -> 800 | AP3: =Financial!S6 -> 200 | AQ3: =Financial!T6 -> 1 | AR3: =Financial!U6 -> 0 | AS3: =Financial!V6 -> 30.3030303 | AT3: =Financial!W6 -> 280 | AU3: =Financial!X6 -> 0.005925925926 | AW3: =((AE3+MAX(AA3,AB3)*AF3+AG3*Y3+AH3))*MAX(0,G3-'Scenarios definition'!$G43) -> 0 | AX3: =(AI3+IF(I3=0,MAX(AA3,AB3),I3)*AJ3+AG3*Y3+AH3)*MAX(0,H3-'Scenarios definition'!$H43) -> 0 | AY3: =AK3*MAX(0,K3-'Scenarios definition'!$K43) -> 0 | AZ3: =AN3*L3+(M3*AM3)*L3 -> 0 | BA3: =AO3*AC3*N3 -> 10800 | BB3: =AP3*AD3*O3 -> 0 | BC3: =AQ3*Y3*B3*P3*100 -> 0 | BD3: =AR3*Y3*B3*Q3*100 -> 0 | BE3: =AS3*B3*R3*100 -> 0 | BF3: =AT3*B3*T3*100 -> 0 | BG3: =AU3*B3*S3*Y3 -> 0 | BH3: =SUM(AW3:BG3)-MIN(BC3:BD3) -> 10800
A4: ='Scenarios definition'!A4 -> Before 1946 and 1946-1977 , Single Attached, Apart., Mob. H. | B4: ='Scenarios definition'!B4 -> 22 | C4: ='Scenarios definition'!C4 -> 9 | D4: ='Scenarios definition'!D4 -> 8 | E4: ='Scenarios definition'!E4 -> 0.8059305492 | F4: ='Scenarios definition'!F4 -> 5 | G4: ='Scenarios definition'!G4 -> 0 | H4: ='Scenarios definition'!H4 -> 0 | I4: ='Scenarios definition'!I4 -> 24.5587 | J4: ='Scenarios definition'!J4 -> Fossil fuel | K4: ='Scenarios definition'!K4 -> 0 | L4: ='Scenarios definition'!L4 -> 0 | M4: ='Scenarios definition'!M4 -> 0 | N4: ='Scenarios definition'!N4 -> 0 | O4: ='Scenarios definition'!O4 -> 0 | P4: ='Scenarios definition'!P4 -> 0 | Q4: ='Scenarios definition'!Q4 -> 0 | R4: ='Scenarios definition'!R4 -> 0 | S4: ='Scenarios definition'!S4 -> 0 | T4: ='Scenarios definition'!T4 -> 0 | U4: =MAIN!Z3 -> 4.771756849 | V4: =MAIN!AA3 -> 0 | Y4: =CONVERT(MAIN!C3,"m2","ft2") -> 1226.009396 | Z4: 22 | AA4: 1.356825201 | AB4: =V4*0.284345 -> 0 | AC4: ='Scenarios definition'!AC4 -> 13.5 | AD4: ='Scenarios definition'!AD4 -> 240 | AE4: =Financial!H7 -> 1500 | AF4: =Financial!I7 -> 1200 | AG4: =Financial!J7 -> 1 | AH4: =Financial!K7 -> 3000 | AI4: =Financial!L7 -> 5000 | AJ4: =Financial!M7 -> 5000 | AK4: =Financial!N7 -> 2500 | AL4: =Financial!O7 -> 4000 | AM4: =Financial!P7 -> 2200 | AN4: =Financial!Q7 -> 2000 | AO4: =Financial!R7 -> 800 | AP4: =Financial!S7 -> 100 | AQ4: =Financial!T7 -> 1 | AR4: =Financial!U7 -> 0 | AS4: =Financial!V7 -> 30.3030303 | AT4: =Financial!W7 -> 280 | AU4: =Financial!X7 -> 0.005925925926 | AW4: =((AE4+MAX(AA4,AB4)*AF4+AG4*Y4+AH4))*MAX(0,G4-'Scenarios definition'!$G44) -> 0 | AX4: =(AI4+IF(I4=0,MAX(AA4,AB4),I4)*AJ4+AG4*Y4+AH4)*MAX(0,H4-'Scenarios definition'!$H44) -> 0 | AY4: =AK4*MAX(0,K4-'Scenarios definition'!$K44) -> 0 | AZ4: =AN4*L4+(M4*AM4)*L4 -> 0 | BA4: =AO4*AC4*N4 -> 0 | BB4: =AP4*AD4*O4 -> 0 | BC4: =AQ4*Y4*B4*P4*100 -> 0 | BD4: =AR4*Y4*B4*Q4*100 -> 0 | BE4: =AS4*B4*R4*100 -> 0 | BF4: =AT4*B4*T4*100 -> 0 | BG4: =AU4*B4*S4*Y4 -> 0 | BH4: =SUM(AW4:BG4)-MIN(BC4:BD4) -> 0
A5: ='Scenarios definition'!A5 -> Before 1946 and 1946-1977 Large , Single Detached, Single Attached | B5: ='Scenarios definition'!B5 -> 55 | C5: ='Scenarios definition'!C5 -> 22 | D5: ='Scenarios definition'!D5 -> 19 | E5: ='Scenarios definition'!E5 -> 0.8059305492 | F5: ='Scenarios definition'!F5 -> 13 | G5: ='Scenarios definition'!G5 -> 1 | H5: ='Scenarios definition'!H5 -> 0 | I5: ='Scenarios definition'!I5 -> 21.2612 | J5: ='Scenarios definition'!J5 -> Fossil fuel | K5: ='Scenarios definition'!K5 -> 0 | L5: ='Scenarios definition'!L5 -> 0 | M5: ='Scenarios definition'!M5 -> 0 | N5: ='Scenarios definition'!N5 -> 0 | O5: ='Scenarios definition'!O5 -> 0 | P5: ='Scenarios definition'!P5 -> 0 | Q5: ='Scenarios definition'!Q5 -> 0 | R5: ='Scenarios definition'!R5 -> 0 | S5: ='Scenarios definition'!S5 -> 0 | T5: ='Scenarios definition'!T5 -> 0 | U5: =MAIN!Z4 -> 6.594002365 | V5: =MAIN!AA4 -> 0 | Y5: =CONVERT(MAIN!C4,"m2","ft2") -> 2209.830809 | Z5: 55 | AA5: 1.874971602 | AB5: =V5*0.284345 -> 0 | AC5: ='Scenarios definition'!AC5 -> 13.5 | AD5: ='Scenarios definition'!AD5 -> 240 | AE5: =Financial!H8 -> 1500 | AF5: =Financial!I8 -> 1200 | AG5: =Financial!J8 -> 0.5 | AH5: =Financial!K8 -> 3000 | AI5: =Financial!L8 -> 5000 | AJ5: =Financial!M8 -> 5000 | AK5: =Financial!N8 -> 2500 | AL5: =Financial!O8 -> 4000 | AM5: =Financial!P8 -> 2200 | AN5: =Financial!Q8 -> 2000 | AO5: =Financial!R8 -> 800 | AP5: =Financial!S8 -> 100 | AQ5: =Financial!T8 -> 1 | AR5: =Financial!U8 -> 0 | AS5: =Financial!V8 -> 30.3030303 | AT5: =Financial!W8 -> 280 | AU5: =Financial!X8 -> 0.005925925926 | AW5: =((AE5+MAX(AA5,AB5)*AF5+AG5*Y5+AH5))*MAX(0,G5-'Scenarios definition'!$G45) -> 0 | AX5: =(AI5+IF(I5=0,MAX(AA5,AB5),I5)*AJ5+AG5*Y5+AH5)*MAX(0,H5-'Scenarios definition'!$H45) -> 0 | AY5: =AK5*MAX(0,K5-'Scenarios definition'!$K45) -> 0 | AZ5: 0 | BA5: 0 | BB5: 0 | BC5: 0 | BD5: 0 | BE5: 0 | BF5: 0 | BG5: 0 | BH5: 0
A6: ='Scenarios definition'!A6 -> 1978-1995 Large , Single Detached | B6: ='Scenarios definition'!B6 -> 34 | C6: ='Scenarios definition'!C6 -> 14 | D6: ='Scenarios definition'!D6 -> 12 | E6: ='Scenarios definition'!E6 -> 0.8059305492 | F6: ='Scenarios definition'!F6 -> 8 | G6: ='Scenarios definition'!G6 -> 0 | H6: ='Scenarios definition'!H6 -> 0 | I6: ='Scenarios definition'!I6 -> 13.607 | J6: ='Scenarios definition'!J6 -> Fossil fuel | K6: ='Scenarios definition'!K6 -> 0 | L6: ='Scenarios definition'!L6 -> 0 | M6: ='Scenarios definition'!M6 -> 0 | N6: ='Scenarios definition'!N6 -> 0 | O6: ='Scenarios definition'!O6 -> 0 | P6: ='Scenarios definition'!P6 -> 0 | Q6: ='Scenarios definition'!Q6 -> 0 | R6: ='Scenarios definition'!R6 -> 0 | S6: ='Scenarios definition'!S6 -> 0 | T6: ='Scenarios definition'!T6 -> 0 | U6: =MAIN!Z5 -> 10.09618504 | V6: =MAIN!AA5 -> 0 | Y6: =CONVERT(MAIN!C5,"m2","ft2") -> 1948.267785 | Z6: 34 | AA6: 2.870799735 | AB6: 0 | AC6: ='Scenarios definition'!AC6 -> 13.5 | AD6: ='Scenarios definition'!AD6 -> 240 | AE6: =Financial!H9 -> 1500 | AF6: =Financial!I9 -> 1200 | AG6: =Financial!J9 -> 2 | AH6: =Financial!K9 -> 3000 | AI6: =Financial!L9 -> 5000 | AJ6: =Financial!M9 -> 5000 | AK6: =Financial!N9 -> 3500 | AL6: =Financial!O9 -> 4000 | AM6: =Financial!P9 -> 2200 | AN6: =Financial!Q9 -> 2000 | AO6: =Financial!R9 -> 800 | AP6: =Financial!S9 -> 100 | AQ6: =Financial!T9 -> 0.8 | AR6: =Financial!U9 -> 0 | AS6: =Financial!V9 -> 30.3030303 | AT6: =Financial!W9 -> 280 | AU6: =Financial!X9 -> 0.005925925926 | AW6: =((AE6+MAX(AA6,AB6)*AF6+AG6*Y6+AH6))*MAX(0,G6-'Scenarios definition'!$G46) -> 0 | AX6: =(AI6+IF(I6=0,MAX(AA6,AB6),I6)*AJ6+AG6*Y6+AH6)*MAX(0,H6-'Scenarios definition'!$H46) -> 0 | AY6: =AK6*MAX(0,K6-'Scenarios definition'!$K46) -> 0 | AZ6: 0 | BA6: 0 | BB6: 0 | BC6: 0 | BD6: 0 | BE6: 0 | BF6: 0 | BG6: 0 | BH6: 0
A7: ='Scenarios definition'!A7 -> 1978-1995 Small , Single Attached, Apart., Mob. H. | B7: ='Scenarios definition'!B7 -> 15 | C7: ='Scenarios definition'!C7 -> 6 | D7: ='Scenarios definition'!D7 -> 6 | E7: ='Scenarios definition'!E7 -> 0.8059305492 | F7: ='Scenarios definition'!F7 -> 3 | G7: ='Scenarios definition'!G7 -> 0 | H7: ='Scenarios definition'!H7 -> 0 | I7: ='Scenarios definition'!I7 -> 14.843 | J7: ='Scenarios definition'!J7 -> Fossil fuel | K7: ='Scenarios definition'!K7 -> 0 | L7: ='Scenarios definition'!L7 -> 0 | M7: ='Scenarios definition'!M7 -> 0 | N7: ='Scenarios definition'!N7 -> 0 | O7: ='Scenarios definition'!O7 -> 0 | P7: ='Scenarios definition'!P7 -> 0 | Q7: ='Scenarios definition'!Q7 -> 0 | R7: ='Scenarios definition'!R7 -> 0 | S7: ='Scenarios definition'!S7 -> 0 | T7: ='Scenarios definition'!T7 -> 0 | U7: =MAIN!Z6 -> 9.284206189 | V7: =MAIN!AA6 -> 0 | Y7: =CONVERT(MAIN!C6,"m2","ft2") -> 938.6129883 | Z7: 15 | AA7: 2.639917609 | AB7: 0 | AC7: ='Scenarios definition'!AC7 -> 13.5 | AD7: ='Scenarios definition'!AD7 -> 240 | AE7: =Financial!H10 -> 1500 | AF7: =Financial!I10 -> 1200 | AG7: =Financial!J10 -> 1.5 | AH7: =Financial!K10 -> 3000 | AI7: =Financial!L10 -> 5000 | AJ7: =Financial!M10 -> 5000 | AK7: =Financial!N10 -> 3500 | AL7: =Financial!O10 -> 4000 | AM7: =Financial!P10 -> 2200 | AN7: =Financial!Q10 -> 2000 | AO7: =Financial!R10 -> 800 | AP7: =Financial!S10 -> 100 | AQ7: =Financial!T10 -> 0.8 | AR7: =Financial!U10 -> 0 | AS7: =Financial!V10 -> 30.3030303 | AT7: =Financial!W10 -> 280 | AU7: =Financial!X10 -> 0.005925925926 | AW7: =((AE7+MAX(AA7,AB7)*AF7+AG7*Y7+AH7))*MAX(0,G7-'Scenarios definition'!$G47) -> 0 | AX7: =(AI7+IF(I7=0,MAX(AA7,AB7),I7)*AJ7+AG7*Y7+AH7)*MAX(0,H7-'Scenarios definition'!$H47) -> 0 | AY7: =AK7*MAX(0,K7-'Scenarios definition'!$K47) -> 0 | AZ7: 0 | BA7: 0 | BB7: 0 | BC7: 0 | BD7: 0 | BE7: 0 | BF7: 0 | BG7: 0 | BH7: 0
A8: ='Scenarios definition'!A8 -> 1978-1995 , Single Detached, Single Detached, Apart. | B8: ='Scenarios definition'!B8 -> 78 | C8: ='Scenarios definition'!C8 -> 32 | D8: ='Scenarios definition'!D8 -> 27 | E8: ='Scenarios definition'!E8 -> 0.8059305492 | F8: ='Scenarios definition'!F8 -> 18 | G8: ='Scenarios definition'!G8 -> 1 | H8: ='Scenarios definition'!H8 -> 0 | I8: ='Scenarios definition'!I8 -> 7.3415 | J8: ='Scenarios definition'!J8 -> Fossil fuel | K8: ='Scenarios definition'!K8 -> 0 | L8: ='Scenarios definition'!L8 -> 0 | M8: ='Scenarios definition'!M8 -> 0 | N8: ='Scenarios definition'!N8 -> 0 | O8: ='Scenarios definition'!O8 -> 0 | P8: ='Scenarios definition'!P8 -> 0 | Q8: ='Scenarios definition'!Q8 -> 0 | R8: ='Scenarios definition'!R8 -> 0 | S8: ='Scenarios definition'!S8 -> 0 | T8: ='Scenarios definition'!T8 -> 0 | U8: =MAIN!Z7 -> 15.64589392 | V8: =MAIN!AA7 -> 0 | Y8: =CONVERT(MAIN!C7,"m2","ft2") -> 1778.198001 | Z8: 78 | AA8: 4.448831705 | AB8: 0 | AC8: ='Scenarios definition'!AC8 -> 13.5 | AD8: ='Scenarios definition'!AD8 -> 240 | AE8: =Financial!H11 -> 1500 | AF8: =Financial!I11 -> 1200 | AG8: =Financial!J11 -> 1 | AH8: =Financial!K11 -> 2000 | AI8: =Financial!L11 -> 5000 | AJ8: =Financial!M11 -> 5000 | AK8: =Financial!N11 -> 3500 | AL8: =Financial!O11 -> 4000 | AM8: =Financial!P11 -> 2200 | AN8: =Financial!Q11 -> 2000 | AO8: =Financial!R11 -> 800 | AP8: =Financial!S11 -> 100 | AQ8: =Financial!T11 -> 0.8 | AR8: =Financial!U11 -> 0 | AS8: =Financial!V11 -> 30.3030303 | AT8: =Financial!W11 -> 280 | AU8: =Financial!X11 -> 0.005925925926 | AW8: =((AE8+MAX(AA8,AB8)*AF8+AG8*Y8+AH8))*MAX(0,G8-'Scenarios definition'!$G48) -> 0 | AX8: =(AI8+IF(I8=0,MAX(AA8,AB8),I8)*AJ8+AG8*Y8+AH8)*MAX(0,H8-'Scenarios definition'!$H48) -> 0 | AY8: =AK8*MAX(0,K8-'Scenarios definition'!$K48) -> 0 | AZ8: 0 | BA8: 0 | BB8: 0 | BC8: 0 | BD8: 0 | BE8: 0 | BF8: 0 | BG8: 0 | BH8: 0
A9: ='Scenarios definition'!A9 -> 1996-2010 Two storey , Single Detached, Single Attached, Apart., Mob. H. | B9: ='Scenarios definition'!B9 -> 54 | C9: ='Scenarios definition'!C9 -> 22 | D9: ='Scenarios definition'!D9 -> 18 | E9: ='Scenarios definition'!E9 -> 0.8059305492 | F9: ='Scenarios definition'!F9 -> 13 | G9: ='Scenarios definition'!G9 -> 1 | H9: ='Scenarios definition'!H9 -> 0 | I9: ='Scenarios definition'!I9 -> 19.7155 | J9: ='Scenarios definition'!J9 -> Fossil fuel | K9: ='Scenarios definition'!K9 -> 0 | L9: ='Scenarios definition'!L9 -> 0 | M9: ='Scenarios definition'!M9 -> 0 | N9: ='Scenarios definition'!N9 -> 0 | O9: ='Scenarios definition'!O9 -> 0 | P9: ='Scenarios definition'!P9 -> 0 | Q9: ='Scenarios definition'!Q9 -> 0 | R9: ='Scenarios definition'!R9 -> 0 | S9: ='Scenarios definition'!S9 -> 0 | T9: ='Scenarios definition'!T9 -> 0 | U9: =MAIN!Z8 -> 8.378802343 | V9: =MAIN!AA8 -> 0 | Y9: =CONVERT(MAIN!C8,"m2","ft2") -> 1390.697226 | Z9: 54 | AA9: 2.382470552 | AB9: 0 | AC9: ='Scenarios definition'!AC9 -> 13.5 | AD9: ='Scenarios definition'!AD9 -> 240 | AE9: =Financial!H12 -> 1500 | AF9: =Financial!I12 -> 1200 | AG9: =Financial!J12 -> 1.5 | AH9: =Financial!K12 -> 2000 | AI9: =Financial!L12 -> 5000 | AJ9: =Financial!M12 -> 5000 | AK9: =Financial!N12 -> 3000 | AL9: =Financial!O12 -> 4000 | AM9: =Financial!P12 -> 2200 | AN9: =Financial!Q12 -> 2000 | AO9: =Financial!R12 -> 800 | AP9: =Financial!S12 -> 100 | AQ9: =Financial!T12 -> 0.7 | AR9: =Financial!U12 -> 0 | AS9: =Financial!V12 -> 30.3030303 | AT9: =Financial!W12 -> 280 | AU9: =Financial!X12 -> 0.005925925926 | AW9: =((AE9+MAX(AA9,AB9)*AF9+AG9*Y9+AH9))*MAX(0,G9-'Scenarios definition'!$G49) -> 0 | AX9: =(AI9+IF(I9=0,MAX(AA9,AB9),I9)*AJ9+AG9*Y9+AH9)*MAX(0,H9-'Scenarios definition'!$H49) -> 0 | AY9: =AK9*MAX(0,K9-'Scenarios definition'!$K49) -> 0 | AZ9: 0 | BA9: 0 | BB9: 0 | BC9: 0 | BD9: 0 | BE9: 0 | BF9: 0 | BG9: 0 | BH9: 0
A10: ='Scenarios definition'!A10 -> 1996-2010 Large, two storey , Single Detached, Single Attached | B10: ='Scenarios definition'!B10 -> 41 | C10: ='Scenarios definition'!C10 -> 17 | D10: ='Scenarios definition'!D10 -> 15 | E10: ='Scenarios definition'!E10 -> 0.8059305492 | F10: ='Scenarios definition'!F10 -> 9 | G10: ='Scenarios definition'!G10 -> 0 | H10: ='Scenarios definition'!H10 -> 0 | I10: ='Scenarios definition'!I10 -> 18.6578 | J10: ='Scenarios definition'!J10 -> Fossil fuel | K10: ='Scenarios definition'!K10 -> 0 | L10: ='Scenarios definition'!L10 -> 0 | M10: ='Scenarios definition'!M10 -> 0 | N10: ='Scenarios definition'!N10 -> 0 | O10: ='Scenarios definition'!O10 -> 0 | P10: ='Scenarios definition'!P10 -> 0 | Q10: ='Scenarios definition'!Q10 -> 0 | R10: ='Scenarios definition'!R10 -> 0 | S10: ='Scenarios definition'!S10 -> 0 | T10: ='Scenarios definition'!T10 -> 0 | U10: =MAIN!Z9 -> 18.79192496 | V10: =MAIN!AA9 -> 4.547649797 | Y10: =CONVERT(MAIN!C9,"m2","ft2") -> 2903.026639 | Z10: 41 | AA10: 5.343389903 | AB10: 1.293101481 | AC10: ='Scenarios definition'!AC10 -> 13.5 | AD10: ='Scenarios definition'!AD10 -> 240 | AE10: =Financial!H13 -> 2500 | AF10: =Financial!I13 -> 1200 | AG10: =Financial!J13 -> 2 | AH10: =Financial!K13 -> 2000 | AI10: =Financial!L13 -> 5000 | AJ10: =Financial!M13 -> 5000 | AK10: =Financial!N13 -> 2500 | AL10: =Financial!O13 -> 4000 | AM10: =Financial!P13 -> 2200 | AN10: =Financial!Q13 -> 2000 | AO10: =Financial!R13 -> 800 | AP10: =Financial!S13 -> 100 | AQ10: =Financial!T13 -> 0.7 | AR10: =Financial!U13 -> 0 | AS10: =Financial!V13 -> 30.3030303 | AT10: =Financial!W13 -> 280 | AU10: =Financial!X13 -> 0.005925925926 | AW10: =((AE10+MAX(AA10,AB10)*AF10+AG10*Y10+AH10))*MAX(0,G10-'Scenarios definition'!$G50) -> 0 | AX10: =(AI10+IF(I10=0,MAX(AA10,AB10),I10)*AJ10+AG10*Y10+AH10)*MAX(0,H10-'Scenarios definition'!$H50) -> 0 | AY10: =AK10*MAX(0,K10-'Scenarios definition'!$K50) -> 0 | AZ10: 0 | BA10: 0 | BB10: 0 | BC10: 0 | BD10: 0 | BE10: 0 | BF10: 0 | BG10: 0 | BH10: 0
A11: ='Scenarios definition'!A11 -> 1996-2010 One storey , Single Detached, Single Attached | B11: ='Scenarios definition'!B11 -> 41 | C11: ='Scenarios definition'!C11 -> 17 | D11: ='Scenarios definition'!D11 -> 15 | E11: ='Scenarios definition'!E11 -> 0.8059305492 | F11: ='Scenarios definition'!F11 -> 9 | G11: ='Scenarios definition'!G11 -> 0 | H11: ='Scenarios definition'!H11 -> 0 | I11: ='Scenarios definition'!I11 -> 8.6114 | J11: ='Scenarios definition'!J11 -> Fossil fuel | K11: ='Scenarios definition'!K11 -> 0 | L11: ='Scenarios definition'!L11 -> 0 | M11: ='Scenarios definition'!M11 -> 0 | N11: ='Scenarios definition'!N11 -> 0 | O11: ='Scenarios definition'!O11 -> 0 | P11: ='Scenarios definition'!P11 -> 0 | Q11: ='Scenarios definition'!Q11 -> 0 | R11: ='Scenarios definition'!R11 -> 0 | S11: ='Scenarios definition'!S11 -> 0 | T11: ='Scenarios definition'!T11 -> 0 | U11: =MAIN!Z10 -> 11.49684321 | V11: =MAIN!AA10 -> 0 | Y11: =CONVERT(MAIN!C10,"m2","ft2") -> 2224.900283 | Z11: 41 | AA11: 3.269069884 | AB11: 0 | AC11: ='Scenarios definition'!AC11 -> 13.5 | AD11: ='Scenarios definition'!AD11 -> 240 | AE11: =Financial!H14 -> 2500 | AF11: =Financial!I14 -> 1200 | AG11: =Financial!J14 -> 2 | AH11: =Financial!K14 -> 2000 | AI11: =Financial!L14 -> 5000 | AJ11: =Financial!M14 -> 5000 | AK11: =Financial!N14 -> 2500 | AL11: =Financial!O14 -> 4000 | AM11: =Financial!P14 -> 2200 | AN11: =Financial!Q14 -> 2000 | AO11: =Financial!R14 -> 800 | AP11: =Financial!S14 -> 100 | AQ11: =Financial!T14 -> 0.7 | AR11: =Financial!U14 -> 0 | AS11: =Financial!V14 -> 30.3030303 | AT11: =Financial!W14 -> 280 | AU11: =Financial!X14 -> 0.005925925926 | AW11: =((AE11+MAX(AA11,AB11)*AF11+AG11*Y11+AH11))*MAX(0,G11-'Scenarios definition'!$G51) -> 0 | AX11: =(AI11+IF(I11=0,MAX(AA11,AB11),I11)*AJ11+AG11*Y11+AH11)*MAX(0,H11-'Scenarios definition'!$H51) -> 0 | AY11: =AK11*MAX(0,K11-'Scenarios definition'!$K51) -> 0 | AZ11: 0 | BA11: 0 | BB11: 0 | BC11: 0 | BD11: 0 | BE11: 0 | BF11: 0 | BG11: 0 | BH11: 0
A12: ='Scenarios definition'!A12 -> 2011-2020 , Single Detached, Single Attached | B12: ='Scenarios definition'!B12 -> 31 | C12: ='Scenarios definition'!C12 -> 12 | D12: ='Scenarios definition'!D12 -> 12 | E12: ='Scenarios definition'!E12 -> 0.8059305492 | F12: ='Scenarios definition'!F12 -> 7 | G12: ='Scenarios definition'!G12 -> 0 | H12: ='Scenarios definition'!H12 -> 0 | I12: ='Scenarios definition'!I12 -> 6.9851 | J12: ='Scenarios definition'!J12 -> Fossil fuel | K12: ='Scenarios definition'!K12 -> 0 | L12: ='Scenarios definition'!L12 -> 0 | M12: ='Scenarios definition'!M12 -> 0 | N12: ='Scenarios definition'!N12 -> 0 | O12: ='Scenarios definition'!O12 -> 0 | P12: ='Scenarios definition'!P12 -> 0 | Q12: ='Scenarios definition'!Q12 -> 0 | R12: ='Scenarios definition'!R12 -> 0 | S12: ='Scenarios definition'!S12 -> 0 | T12: ='Scenarios definition'!T12 -> 0 | U12: =MAIN!Z11 -> 12.24926411 | V12: =MAIN!AA11 -> 0 | Y12: =CONVERT(MAIN!C11,"m2","ft2") -> 2060.212454 | Z12: 31 | AA12: 3.483017004 | AB12: 0 | AC12: ='Scenarios definition'!AC12 -> 13.5 | AD12: ='Scenarios definition'!AD12 -> 240 | AE12: =Financial!H15 -> 2500 | AF12: =Financial!I15 -> 1000 | AG12: =Financial!J15 -> 1 | AH12: =Financial!K15 -> 2000 | AI12: =Financial!L15 -> 5000 | AJ12: =Financial!M15 -> 5000 | AK12: =Financial!N15 -> 2500 | AL12: =Financial!O15 -> 4000 | AM12: =Financial!P15 -> 2200 | AN12: =Financial!Q15 -> 2000 | AO12: =Financial!R15 -> 800 | AP12: =Financial!S15 -> 100 | AQ12: =Financial!T15 -> 0.7 | AR12: =Financial!U15 -> 0 | AS12: =Financial!V15 -> 30.3030303 | AT12: =Financial!W15 -> 280 | AU12: =Financial!X15 -> 0.005925925926 | AW12: =((AE12+MAX(AA12,AB12)*AF12+AG12*Y12+AH12))*MAX(0,G12-'Scenarios definition'!$G52) -> 0 | AX12: =(AI12+IF(I12=0,MAX(AA12,AB12),I12)*AJ12+AG12*Y12+AH12)*MAX(0,H12-'Scenarios definition'!$H52) -> 0 | AY12: =AK12*MAX(0,K12-'Scenarios definition'!$K52) -> 0 | AZ12: 0 | BA12: 0 | BB12: 0 | BC12: 0 | BD12: 0 | BE12: 0 | BF12: 0 | BG12: 0 | BH12: 0
A13: ='Scenarios definition'!A13 -> 2011-2020 Small , Single Detached, Single Attached, Apart., Mob. H. | B13: ='Scenarios definition'!B13 -> 47 | C13: ='Scenarios definition'!C13 -> 19 | D13: ='Scenarios definition'!D13 -> 16 | E13: ='Scenarios definition'!E13 -> 0.8059305492 | F13: ='Scenarios definition'!F13 -> 11 | G13: ='Scenarios definition'!G13 -> 1 | H13: ='Scenarios definition'!H13 -> 0 | I13: ='Scenarios definition'!I13 -> 11.3593 | J13: ='Scenarios definition'!J13 -> Fossil fuel | K13: ='Scenarios definition'!K13 -> 0 | L13: ='Scenarios definition'!L13 -> 0 | M13: ='Scenarios definition'!M13 -> 0 | N13: ='Scenarios definition'!N13 -> 0 | O13: ='Scenarios definition'!O13 -> 0 | P13: ='Scenarios definition'!P13 -> 0 | Q13: ='Scenarios definition'!Q13 -> 0 | R13: ='Scenarios definition'!R13 -> 0 | S13: ='Scenarios definition'!S13 -> 0 | T13: ='Scenarios definition'!T13 -> 0 | U13: =MAIN!Z12 -> 11.58205548 | V13: =MAIN!AA12 -> 0 | Y13: =CONVERT(MAIN!C12,"m2","ft2") -> 1103.300818 | Z13: 47 | AA13: 3.293299565 | AB13: 0 | AC13: ='Scenarios definition'!AC13 -> 13.5 | AD13: ='Scenarios definition'!AD13 -> 240 | AE13: =Financial!H16 -> 2500 | AF13: =Financial!I16 -> 1000 | AG13: =Financial!J16 -> 4 | AH13: =Financial!K16 -> 2000 | AI13: =Financial!L16 -> 5000 | AJ13: =Financial!M16 -> 5000 | AK13: =Financial!N16 -> 2000 | AL13: =Financial!O16 -> 4000 | AM13: =Financial!P16 -> 2200 | AN13: =Financial!Q16 -> 2000 | AO13: =Financial!R16 -> 800 | AP13: =Financial!S16 -> 100 | AQ13: =Financial!T16 -> 0.7 | AR13: =Financial!U16 -> 0 | AS13: =Financial!V16 -> 30.3030303 | AT13: =Financial!W16 -> 280 | AU13: =Financial!X16 -> 0.005925925926 | AW13: =((AE13+MAX(AA13,AB13)*AF13+AG13*Y13+AH13))*MAX(0,G13-'Scenarios definition'!$G53) -> 0 | AX13: =(AI13+IF(I13=0,MAX(AA13,AB13),I13)*AJ13+AG13*Y13+AH13)*MAX(0,H13-'Scenarios definition'!$H53) -> 0 | AY13: =AK13*MAX(0,K13-'Scenarios definition'!$K53) -> 0 | AZ13: 0 | BA13: 0 | BB13: 0 | BC13: 0 | BD13: 0 | BE13: 0 | BF13: 0 | BG13: 0 | BH13: 0
A14: =IF(lang="english","CTAP","OETC") -> CTAP | B14: =IF(lang="English","Community Technology Assessment Platform","Outil d’évaluation de technologies pour communautés") -> Community Technology Assessment Platform | G14: =IF(lang="English","Combustion heating system efficiencies for current year","Efficacité des systèmes de chauffage à combustion pour année courante") -> Combustion heating system efficiencies for current year | K14: =IF(lang="English","Scenario year =>","Année du scénario =>") -> Scenario year => | L14: ='Scenarios definition'!D1 -> 2005 | O14: English | AZ14: AN3*L3+(M3*AM3)*IF(L3=0,0,1) | BF14: Total | BG14: =SUM(BH3:BH13) -> 10800
A15: =IF(lang="Français","Coefficient d'émission moyen, elect. (kgCO2e/kWh)","Elec GHG Intensity (kgCO2e/kWh)") -> Elec GHG Intensity (kgCO2e/kWh) | B15: =IF(L14<2005,'Emission factors'!E17,LOOKUP(L14,'Emission factors'!E2:AX2,'Emission factors'!E17:AX17)/1000*(1+Financial!N34)) -> 0.6195 | K15: =IF(lang="English","Select Scenario to run =>","Choisir un scénario =>") -> Select Scenario to run => | L15: 1
A16: =CONCATENATE(IF(lang="English"," GHG Intensity of ","Intensité GES pour "),Financial!M127," (kgCO2e/kWh)") -> GHG Intensity of oil (kgCO2e/kWh) | B16: =IF(I20="gas",Financial!L29*(1+Financial!N33),IF(I20="oil",Financial!L30*(1+Financial!N35),IF(I20="propane",Financial!L31*(1+Financial!N36),0))) -> 0.24745 | G16: Gas | I16: =Financial!O108 -> 0.9532941668 | K16: =IF(lang="English","Scenario name =>","Nom du scénario =>") -> Scenario name => | L16: ='Scenarios definition'!A2 -> Baseline scenario 2005 | AS16: Example
A17: =CONCATENATE(IF(lang="English"," Wood GHG Intensity","Intensité GES du bois de chauffage")," (kgCO2e/kWh)") -> Wood GHG Intensity (kgCO2e/kWh) | B17: 0.004 | G17: Oil | I17: =Financial!O105 -> 0.81 | AS17: 75000 | AT17: DER cost
A18: =IF(lang="English","Electricl Rate Plan (Time of use TOU or fixed)","Plan tarifaire électricité (taux horaires (TOU) ou fixe") -> Electricl Rate Plan (Time of use TOU or fixed) | B18: TOU | G18: Propane | I18: =Financial!O113 -> 0.81 | K18: New Brunswick Aberdeen | L18: Ontario Ajax | M18: Ontario Ajax | N18: =IF(lang="English","<= Select your city","<= Choisir votre ville") -> <= Select your city | AS18: 0.5 | AT18: Efficiency gain
A19: =IF(lang="English","Fixed Elec. Rate, if applicable. ($/kWh)","Tarif fixe pour l'électricité si applicable ($/kWh)") -> Fixed Elec. Rate, if applicable. ($/kWh) | B19: =IF(B18="Fixed",Financial!E19,"n/a") -> n/a | G19: Biomass (wood) | I19: =Financial!S21 -> 0.65 | K19: Ontario Ajax | L19: Ontario Ajax | M19: Ontario Ajax | AS19: 2000 | AT19: area
A20: =IF(lang="English",CONCATENATE(Financial!M127," price in $/kWh"),CONCATENATE("Coût - ",I21," $/kWh")) -> oil price in $/kWh | B20: =SUMIF(Financial!J18:J23,Financial!M127,Financial!L18:L23)/277.8 -> 0.05523612165 | G20: Dominant fossil fuel: | I20: =Financial!M127 -> oil | K20: Ontario Ajax | L20: Ontario Ajax | M20: Ontario Ajax | N20: =IF(lang="english","Climate zone","Zone climatique") -> Climate zone | O20: =Statistics!G2 -> 7A | AS20: =AS17/AS19/AS18/100 -> 0.75 | AT20: $/ft/%
G21: =IF(lang="English","","Principal énergie fossile") ->  | I21: =IF(lang="English","",IF(I20="gas","gas naturel",IF(I20="Oil","Huile a chauffage",IF(I20="propane","gas propane","")))) ->  | L21: =LOOKUP(O21,Cities!W13:W63,Cities!AC13:AC63) -> New Brunswick | N21: =IF(lang="English","CTAP version", "Version de OETC") -> CTAP version | O21: =Statistics!D2 -> NB
A22: =IF(lang="English","Current Scenario OUTPUTS (Results are on an annual basis)","RÉSULTATS du scénario actuel (les résultats sont sur une base annuelle)") -> Current Scenario OUTPUTS (Results are on an annual basis)
A23: =IF(lang="English","Peak Elec. (kW)","Demande électrique de pointe (kW)") -> Peak Elec. (kW) | B23: =MAIN!C22 -> 2468.272221
A25: =IF(lang="English","PV Production (kWh)","Production photovoltaïque (PV) (kWh)") -> PV Production (kWh) | B25: =MAIN!C24 -> 0
P26: Thermal Storage | Q26: Stockage thermique
A27: =IF(lang="English","Total Electricity Consumed (kWh)","Électricité totale consommée (kWh)") -> Total Electricity Consumed (kWh) | B27: =INT(MAIN!C26) -> 7308562 | P27: Electric Storage | Q27: Stockage électrique
A28: =IF(lang="English","Total fossil fuel (kWh)","Combustibles fossiles total (kWh)") -> Total fossil fuel (kWh) | B28: =MAIN!C27 -> 4434471.519 | P28: Plug Load | Q28: Charge de prise électrique
A29: =IF(lang="English","Total Wood (kWh)","Total - bois (kWh)") -> Total Wood (kWh) | B29: =MAIN!C28 -> 3334046.667 | P29: AHSP cooling | Q29: Refroidissement pompe à chaleur source d'air
A30: =IF(lang="English","Annual Total Energy Purchased (minus PV) (kWh)","Énergie totale annuelle achetée (moins PV) (kWh)") -> Annual Total Energy Purchased (minus PV) (kWh) | B30: =MAIN!C29 -> 15077080.94 | P30: GSHP Heating | Q30: Chauffage pompe à chaleur géothermique
A31: =CONCATENATE(IF(lang="English","GHG reduction resulting from the community level RE project (kg/CO2) - ","GES du projet ER communautaire (kg/CO2) "),Financial!O41) -> GHG reduction resulting from the community level RE project (kg/CO2) - 2030 | B31: =IF(L14<Financial!O41,0,-Financial!N42*(B15-Financial!N43/1000)*1000) -> 0 | P31: Electric Heat | Q31: Chauffage électrique
A32: =IF(lang="English","GHG associated to electricity consumption (kg/CO2)","GES associés à la consommation électrique (kg/CO2)") -> GHG associated to electricity consumption (kg/CO2) | B32: =MAIN!C31 -> 4527654.629 | P32: DHW | Q32: Eau chaude domestique
A33: =IF(lang="English","GHG associated to fossil fuels consumption (kg/CO2)","GES de la consommation d'énergies fossiles (kg/CO2)") -> GHG associated to fossil fuels consumption (kg/CO2) | B33: =MAIN!C32 -> 1097309.977 | P33: GSHP Cooling | Q33: Refroidissement Pompe à chaleur géothermique
A34: =IF(lang="English","GHG associated to wood consumption (kg/CO2)","GES de la combustion de bois (kg/CO2)") -> GHG associated to wood consumption (kg/CO2) | B34: =MAIN!C33 -> 13336.18667 | P34: Status Quo Cooling | Q34: Refroidissement statu quo
A35: =IF(lang="English","Total GHG (kg/CO2e)","Total des GES (kg/CO2)") -> Total GHG (kg/CO2e) | B35: =MAIN!C34+B31 -> 5638300.793 | P35: ASHP Heat | Q35: Pompe à chaleur source d'air
A36: =IF(lang="English","Rough imlementation cost ($000)","Coût approximatif de mise en œuvre (000 $)") -> Rough imlementation cost ($000) | B36: =INT(BG14/1000) -> 10 | P36: PV | Q36: Photovoltaïque
A37: =IF(lang="english","Electricity Cost ($)","Coût de l'électricité ($)") -> Electricity Cost ($) | B37: =MAIN!C36-B31*AVERAGE(Financial!D32:G39) -> 761715.5989
A38: =IF(lang="english","Fossil fuel costs ($)","Coûts des combustibles fossiles ($)") -> Fossil fuel costs ($) | B38: =MAIN!C37 -> 244943.0083
A39: =IF(lang="english","Total Costof Energy ($)","Coût énergétique total ($)") -> Total Costof Energy ($) | B39: =MAIN!C38 -> 1006658.607
C42: =Scenario -> 1 | D42: =L16 -> Baseline scenario 2005
A43: =IF(lang="English","Note: results are shown with 3 or 4 significant digits since the accuracy of the model can not justify greater number of significant digits.","Remarque : les résultats sont présentés avec 3 ou 4 chiffres significatifs puisque la précision du modèle ne peut justifier un plus grand nombre de chiffres significatifs.") -> Note: results are shown with 3 or 4 significant digits since the accuracy of the model can not justify greater number of significant digits.
A47: =CONCATENATE(IF(lang="english","Saved Scenarios Summary - Comparison Table - for ","Tableau résumant les résultats des scénarios pour "),'User Input Output'!K18,", ",'User Input Output'!L21) -> Saved Scenarios Summary - Comparison Table - for New Brunswick Aberdeen, New Brunswick
A48: =IF(lang="English","Column #","Numéro de la colonne") -> Column # | B48: 1 | C48: 2 | D48: 3 | E48: 4 | F48: 5 | G48: 6 | H48: 7 | I48: 8 | J48: 9 | K48: 10 | L48: 11 | M48: 12 | N48: 13 | O48: 14 | P48: 15
A49: =IF(lang="English","Scenario name =>","Nom du scénario =>") -> Scenario name => | B49: Baseline scenario 2005 | C49: Status at 2023 | D49: 2027 Add 30% HP and Pre 1946 70% ECMs | E49: 2027 add Plug load ECM, 50% space heating Pre 1996 | F49: 2030 add PV (80% of bldgs @ 4kWp)
A51: =A23 -> Peak Elec. (kW) | B51: 7666.486155 | C51: 17298.72794 | D51: 18603.2194 | E51: 13856.29546 | F51: 13856.29546
A53: =A25 -> PV Production (kWh) | B53: 0 | C53: 0 | D53: 0 | E53: 0 | F53: 14608917.36
A55: =A27 -> Total Electricity Consumed (kWh) | B55: 43139549 | C55: 63986910 | D55: 66946769 | E55: 52420915 | F55: 52420915
A56: =A28 -> Total fossil fuel (kWh) | B56: 82705238.48 | C56: 33668620 | D56: 25888838.89 | E56: 18389079.45 | F56: 18389079.45
A57: =A29 -> Total Wood (kWh) | B57: 1003793.291 | C57: 25301484.57 | D57: 25606254.66 | E57: 17215604.31 | F57: 17215604.31
A58: =A30 -> Annual Total Energy Purchased (minus PV) (kWh) | B58: 126848580.9 | C58: 122957014.7 | D58: 118441862.6 | E58: 88025599.15 | F58: 73416681.79
A59: =A31 -> GHG reduction resulting from the community level RE project (kg/CO2) - 2030 | B59: 0 | C59: 0 | D59: 0 | E59: 0 | F59: -6423.1
A60: =A32 -> GHG associated to electricity consumption (kg/CO2) | B60: 41890227.78 | C60: 30670525.69 | D60: 28194966.52 | E60: 22077330.62 | F60: 15924712.03
A61: GHG associated to fossil fuels consumption (kg/CO2) | B61: 17857609.77 | C61: 8661252.495 | D61: 6659903.804 | E61: 4730590.689 | F61: 4730590.689
A62: GHG associated to wood consumption (kg/CO2) | B62: 4015.173162 | C62: 101205.9383 | D62: 102425.0186 | E62: 68862.41725 | F62: 68862.41725
A63: Total GHG (kg/CO2e) | B63: 59751852.72 | C63: 39432984.12 | D63: 34957295.35 | E63: 26876783.72 | F63: 20717742.04
A64: Rough imlementation cost ($000) | B64: 10 | C64: 758 | D64: 4625 | E64: 172816 | F64: 204067
A65: Electricity Cost ($) | B65: 4741224.454 | C65: 8211179.62 | D65: 8590478.084 | E65: 6725817.953 | F65: 4702345.682
A66: Fossil fuel costs ($) | B66: 1958651.588 | C66: 1859723.99 | D66: 1429999.054 | E66: 1015741.43 | F66: 1015741.43
A67: Total Costof Energy ($) | B67: 6699876.042 | C67: 10070903.61 | D67: 10020477.14 | E67: 7741559.383 | F67: 5718087.111
A70: =A15 -> Elec GHG Intensity (kgCO2e/kWh) | B70: 0.97104 | C70: 0.479325 | D70: 0.421155 | E70: 0.421155 | F70: 0.421155
A71: GHG Intensity of oil (kgCO2e/kWh) | B71: 0.2159187265 | C71: 0.25725 | D71: 0.25725 | E71: 0.25725 | F71: 0.25725
A72: Wood GHG Intensity (kgCO2e/kWh) | B72: 0.004 | C72: 0.004 | D72: 0.004 | E72: 0.004 | F72: 0.004
A73: Electricl Rate Plan (Time of use TOU or fixed) | B73: TOU | C73: TOU | D73: TOU | E73: TOU | F73: TOU
A74: Fixed Elec. Rate, if applicable. ($/kWh) | B74: n/a | C74: 0.12 | D74: 0.12 | E74: 0.12 | F74: 0.12
A75: oil price in $/kWh | B75: 0.02368231594 | C75: 0.05523612165 | D75: 0.05523612165 | E75: 0.05523612165 | F75: 0.05523612165
A76: =IF(lang="English","Derived metrics:","Métriques dérivées :") -> Derived metrics: | B76: =IF(COUNTIF($B103:$D103,B49)=1,0,1) -> 1 | C76: =IF(COUNTIF($B103:$D103,C49)=1,0,1) -> 1 | D76: =IF(COUNTIF($B103:$D103,D49)=1,0,1) -> 1 | E76: 1 | F76: 1 | G76: 1 | H76: 1 | I76: 1 | J76: 1 | K76: =IF(COUNTIF($B103:$D103,K49)=1,0,1) -> 1 | L76: 1 | M76: 1 | N76: 1 | O76: 1 | P76: 1
A77: =IF(lang="English","GHG Reduction as % of baseline scenario:","Réduction des GES en % comparé au scénario de référence:") -> GHG Reduction as % of baseline scenario: | C77: =IF(C63=0,0,($B63-C63)/$B63)*C76 -> 0.3400542021 | D77: =IF(D63=0,0,($B63-D63)/$B63)*D76 -> 0.4149588045 | E77: =IF(E63=0,0,($B63-E63)/$B63)*E76 -> 0.5501932994 | F77: =IF(F63=0,0,($B63-F63)/$B63)*F76 -> 0.6532702989 | G77: 0 | H77: 0 | I77: 0 | J77: 0 | K77: =IF(K63=0,0,($B63-K63)/$B63)*K76 -> 0 | L77: 0 | M77: 0 | N77: 0 | O77: 0 | P77: 0
A78: =IF(lang="English","Tons of CO2 avoided per year:","Réduction annuelle des GES en tonnes:") -> Tons of CO2 avoided per year: | C78: =IF(C63=0,0,($B63-C63)/1000)*C76 -> 20318.8686 | D78: =IF(D63=0,0,($B63-D63)/1000)*D76 -> 24794.55737 | E78: 32875.069 | F78: 39034.11068 | G78: 0 | H78: 0 | I78: 0 | J78: 0 | K78: =IF(K63=0,0,($B63-K63)/1000)*K76 -> 0 | L78: 0 | M78: 0 | N78: 0 | O78: 0 | P78: 0
A79: =IF(lang="English","Approximate Investment $/ton CO2 red. over 50 years:","Investissement approximatif $/tonne de CO2 sur 50 ans :") -> Approximate Investment $/ton CO2 red. over 50 years: | D79: =IF(D78=0,0,D64/(D78-$C78)/40*1000)*D76 -> 25.83401257 | E79: =IF(E78=0,0,E64/(E78-$C78)/40*1000)*E76 -> 344.0849831 | F79: 272.5946572 | G79: 0 | H79: 0 | I79: 0 | J79: 0 | K79: 0 | L79: 0 | M79: 0 | N79: 0 | O79: 0 | P79: 0
A80: =IF(lang="English","Annual energy savings as a percent of approx. investment:","Économies d'énergie annuelles en pourcentage de l'investissement approximatif :") -> Annual energy savings as a percent of approx. investment: | D80: =IF(D76=0,0,IF(D64=0,"",($B67-D67)/D64/1000)) -> -0.7179678046 | E80: -0.006027701954 | F80: 0.004811110717 | K80: =IF(K76=0,0,IF(K64=0,"",($B67-K67)/K64/1000)) -> 
A82: =IF(lang="english","Graphical representation of results by scenario","Représentation graphique des résultats par scénario") -> Graphical representation of results by scenario
E100: =MATCH(TRUE,INDEX(B51:P51="",0),0) -> 6
A101: =IF(lang="English","Composite Senarios Table","Tableau des scénarios composites") -> Composite Senarios Table
A102: =IF(lang="English","Table to combine up to three composite scenarios","Tableau permettant de combiner jusqu'à trois scénarios composites") -> Table to combine up to three composite scenarios | B102: Part 1 | C102: Part 2 | D102: Part 3 | E102: Total | G102: Optional approach: if a given scenario is to consider ECMs (energy conservation measures) for only a subset of buildings of a given archetype, for example is only 50% of the buildings of the archetype - Pre-1946 - are to be deep energy retrofited to achieve 50% space heat energy reduction, the following approach must be used: Approche facultative : si un scénario donné doit considérer des MEEs (mesures d'économie d'énergie) pour seulement un sous-ensemble de bâtiments d'un archétype donné, par exemple, si seuls 50 % des bâtiments de l'archétype -Pre-1946 - prevoit de faire l'objet d'une rénovation énergétique approfondie pour atteindre une réduction de 50 % de l'énergie thermique des locaux, l'approche suivante doit être utilisée
A103: =IF(lang="english","Select scenario parts to be added =>","Veuillez choisir les scénarios à combiner =>") -> Select scenario parts to be added => | E103: =CONCATENATE(B103," + ",C103," + ",D103) -> + +
G104: 1) In "Scenarios definition" Tab two scenario input tables will need to be used. In the first one, overwrite the building count per archetype to include only the building count to be retrofited, with all other building counts of all other archetypes set to zero. In the second table, overwrite the building count for archetype which contains building to be retrofited with the number of buildings of that archetype that are not being retrofited. The two tables then contain together the totallity of the buildings for all achetypes.
A105: =A51 -> Peak Elec. (kW) | B105: =SUMIF($C$49:$K$49,B$103,$C51:$K51) -> 0 | C105: =SUMIF($C$49:$K$49,C$103,$C51:$K51) -> 0 | D105: =SUMIF($C$49:$K$49,D$103,$C51:$K51) -> 0 | E105: =SUM(B105:D105) -> 0
A107: =A53 -> PV Production (kWh) | B107: =SUMIF($C$49:$K$49,B$103,$C53:$K53) -> 0 | C107: =SUMIF($C$49:$K$49,C$103,$C53:$K53) -> 0 | D107: =SUMIF($C$49:$K$49,D$103,$C53:$K53) -> 0 | E107: =SUM(B107:D107) -> 0
A109: Total Electricity Consumed (kWh) | B109: =SUMIF($C$49:$K$49,B$103,$C55:$K55) -> 0 | C109: 0 | D109: 0 | E109: 0
A110: Total fossil fuel (kWh) | B110: 0 | C110: 0 | D110: 0 | E110: 0 | G110: 1) Dans l'onglet « Définition des scénarios », deux tables d'entrée de scénarios devront être utilisées. Dans le premier, modifier le nombre de bâtiments par archétype pour inclure uniquement le nombre de bâtiments à etre rénover, tous les autres nombres de bâtiments de tous les autres archétypes étant mis à zéro. Dans le deuxième tableau, remplacez le nombre de bâtiments pour l'archétype qui contient un bâtiment à rénover par le nombre de bâtiments de cet archétype qui ne sont pas modernisés. Les deux tableaux contiennent alors ensemble la totalité des bâtiments pour tous les achétypes.
A111: Total Wood (kWh) | B111: 0 | C111: 0 | D111: 0 | E111: 0
A112: Annual Total Energy Purchased (minus PV) (kWh) | B112: 0 | C112: 0 | D112: 0 | E112: 0
A113: GHG reduction resulting from the community level RE project (kg/CO2) - 2030
A114: GHG associated to electricity consumption (kg/CO2) | B114: =SUMIF($C$49:$K$49,B$103,$C60:$K60) -> 0 | C114: 0 | D114: 0 | E114: 0
A115: GHG associated to fossil fuels consumption (kg/CO2) | B115: 0 | C115: 0 | D115: 0 | E115: 0
A116: GHG associated to wood consumption (kg/CO2) | B116: 0 | C116: 0 | D116: 0 | E116: 0 | G116: Example: | K116: Exemple:
A117: Total GHG (kg/CO2e) | B117: 0 | C117: 0 | D117: 0 | E117: 0
A118: Rough imlementation cost ($000) | B118: 0 | C118: 0 | D118: 0 | E118: 0 | G118: Say 50% of "Pre-1946" and 25% of "46-70-detached" buildings to be retrofited, then the two tables would be: | K118: 50% of "Pre-45-1St-wtBsm" and 25% of "46-70-1St-wtBsmt2" buildings to be retrofited, then the two tables would be:
A119: Electricity Cost ($) | B119: 0 | C119: 0 | D119: 0 | E119: 0
A120: Fossil fuel costs ($) | B120: 0 | C120: 0 | D120: 0 | E120: 0
A121: Total Costof Energy ($) | B121: 0 | C121: 0 | D121: 0 | E121: 0
B122: 0 | C122: 0 | D122: 0 | E122: 0
G123: Building stock | K123: Scenario "n" | M123: Part 1 Scenario "n" | O123: Part 2 Scenario "n"
A124: Elec GHG Intensity (kgCO2e/kWh) | B124: =SUMIF($C$49:$K$49,B$103,$C70:$K70) -> 0 | C124: 0 | D124: 0 | E124: =B124 -> 0 | G124: Before 1946 All dwellings , Single Detached, Single Attached, Apart., Mob. H. | K124: 25 | M124: 13 | O124: 12
A125: GHG Intensity of oil (kgCO2e/kWh) | B125: 0 | C125: 0 | D125: 0 | E125: 0 | G125: 1946-1977 , Single Attached, Apart. | K125: 25 | M125: 25
A126: Wood GHG Intensity (kgCO2e/kWh) | B126: 0 | C126: 0 | D126: 0 | E126: 0 | G126: 1946-1977 Large , Single Detached | K126: 80 | M126: 80
A127: Electricl Rate Plan (Time of use TOU or fixed) | B127: 0 | C127: 0 | D127: 0 | E127: 0 | G127: 1946-1977 , Single Detached, Single Attached, Mob. H., Mob. H. | K127: 81 | M127: 60 | O127: 21
A128: Fixed Elec. Rate, if applicable. ($/kWh) | B128: 0 | C128: 0 | D128: 0 | E128: 0 | G128: 1978-1995 , Single Detached, Single Attached | K128: 57 | L128: = | M128: 57 | N128: +
A129: oil price in $/kWh | B129: 0 | C129: 0 | D129: 0 | E129: 0 | G129: 1978-1995 Small , Single Detached, Single Attached, Apart., Mob. H. | K129: 65 | M129: 65
G130: 1996-2010 Large , Single Detached | K130: 66 | M130: 66
G131: 1996-2010 , Single Attached, Apart. | K131: 32 | M131: 32
G132: 1996-2010 Small , Single Detached, Single Attached, Apart., Mob. H. | K132: 16 | M132: 16
G133: 2011-2020 Large , Single Attached, Single Attached, Apart. | K133: 3 | M133: 3
G134: 2011-2020 , Single Detached, Single Attached, Apart., Mob. H. | K134: 4 | M134: 4
G135: Total | K135: =SUM(K124:K134) -> 454 | M135: =SUM(M124:M134) -> 421 | O135: =SUM(O124:O134) -> 33
G137: 2) then run each of these "scenarios" and save them in the Saved scenarios summary" table. For example the "scenario n" column of that table would end up with the results of "Part 1 scenario n", and the column "Scenario n+1" would end up with the results of "Part 2 Scenario n" 2) puis exécutez chacun de ces "scénarios" et enregistrez-les dans le tableau "Résumé des scénarios enregistrés". Par exemple, la colonne "scénario n" de ce tableau se retrouverait avec les résultats du "Scénario n de la partie 1" et la colonne "Scénario n +1" aboutirait aux résultats de "Partie 2 Scénario n"
G143: 3) The results of those two "parts" can then ne added up in the table "Table to combine up to three scenario parts" . This is done by selecting the scenario Part names in under Part 1, Part 2 and Part 3 in that table. Then copy paste value the result into the "Save Scenarios Summary" Table under Scenario "n". You can also modify the title of that scenario to include all parts and appropriate text. The scenario input table for parts 2 and parts 3 (if applicable) can be reused for new scenario because the combined results of the calculation for the individual parts are now included in the "Save Scenarios Summary" Table. Les résultats de ces deux "parties" peuvent ensuite être additionnés dans le tableau "Tableau pour combiner jusqu'à trois parties de scénario". Cela se fait en sélectionnant les noms des parties du scénario sous Partie 1, Partie 2 et Partie 3 dans ce tableau. Ensuite, copiez et collez la valeur du résultat dans le tableau « Résumé des scénarios d'enregistrement » sous le scénario « n ». Vous pouvez également modifier le titre de ce scénario pour inclure toutes les parties et le texte approprié. Le tableau d'entrée du scénario pour les parties 2 et 3 (le cas échéant) peut être réutilisé pour un nouveau scénario car les résultats combinés du calcul pour les parties individuelles sont désormais inclus dans le tableau « Tableau résumant les résultats des scénarios »

Sheet Scenarios definition
A1: Data for the scenario now in use by the software | C1: Year | D1: =IF(Scenario=1,B22,IF(Scenario=2,B42,IF(Scenario=3,B62,IF(Scenario=4,B82,IF(Scenario=5,B102,IF(Scenario=6,B122,IF(Scenario=7,B142,IF(Scenario=8,B162,IF(Scenario=9,B182,IF(Scenario=10,B202,IF(Scenario=11,B222,IF(Scenario=12,B242,IF(Scenario=13,B262,IF(Scenario=14,B282,IF(Scenario=15,B302))))))))))))))) -> 2005 | Y1: Order of magnitude Unit Costs for GHG Reduction Measures | AV1: Order of magnitude costs of measures for entire inventory
A2: =IF(Scenario=1,C22,IF(Scenario=2,C42,IF(Scenario=3,C62,IF(Scenario=4,C82,IF(Scenario=5,C102,IF(Scenario=6,C122,IF(Scenario=7,C142,IF(Scenario=8,C162,IF(Scenario=9,C182,IF(Scenario=10,C202)))))))))) -> Baseline scenario 2005 | B2: Total Number (INPUT) | C2: #StatusQuo_ElecHeat (INPUT) | D2: #StatusQuo_OilPropHeat (INPUT) | E2: Combustion Efficiency | F2: Wood | G2: #ASHP_HeatCool (INPUT) | H2: #GSHP_HeatCool (INPUT) | I2: GSHP Size (kW) per dwelling | J2: GSHP Gas or Elec Aux. | K2: SDHW (INPUT) | L2: PV #(INPUT) | M2: PV kWdc/dweling (INPUT) | N2: Total # Battery (INPUT) | O2: # Thermal Storage (INPUT) | P2: Heating Load % Reduction | Q2: Cooling Load % Reduction | R2: DHW % Reduction | S2: % light load reduction | T2: Plug Load % Reduction | U2: INFO: Peak Heat per Dwelling (kW) | V2: INFO: Peak Cool per Dwelling (kW) | Y2: Average area per building (ft²) | Z2: # of Buildings | AA2: Peak heat load post measures (tons/ building) | AB2: Post measures Peak cooling load (tons/ building) | AC2: Battery bank capacity (kWhrs) | AD2: Thermal storage capacity (kWhrs) | AE2: ASHP (intercept equipment) ( $/unit) | AF2: ASHP ($/ton) | AG2: AS/GS HP (ductwork upgrade average allowance) ($/ft2) | AH2: AS/GS HP (electrical service upgrade avg allowance) ($/unit) | AI2: GSHP (intercept equipment) ($/unit) | AJ2: GSHP ($/ton) | AK2: SDHW ($/each) | AL2: DHW HP ($/each) | AM2: PV ($/kWp) | AN2: indirect cost PV installation ($/building) | AO2: Battery ($/kWhr) | AP2: # Thermal Storage ($/kWhr) | AQ2: Heating Load % Reduction ($/ft2/%) | AR2: Cooling Load % Reduction ($/ft2/%) | AS2: DHW % Reduction avg allowance ($/unit) | AT2: Plug Load reduction ($/unit) | AU2: Lighting Load % Reduction ($/ft2) | AW2: ASHP Cost | AX2: GSHP Cost | AY2: SDHW (INPUT) | AZ2: PV #(INPUT) | BA2: Battery Cost | BB2: Thermal Storage | BC2: Heating Load Reduction | BD2: Cooling Load Reduction | BE2: DHW Reduction | BF2: Plug Load reduction | BG2: Lighting Load Reduction
A3: =Financial!A136 -> Before 1946 and 1946-1977 Small , Single Detached | B3: =IF(Scenario=1,B23,IF(Scenario=2,B43,IF(Scenario=3,B63,IF(Scenario=4,B83,IF(Scenario=5,B103,IF(Scenario=6,B123,IF(Scenario=7,B143,IF(Scenario=8,B163,IF(Scenario=9,B183,IF(Scenario=10,B203,IF(Scenario=11,B223,IF(Scenario=12,B243,IF(Scenario=13,B263,IF(Scenario=14,B283,IF(Scenario=15,B303))))))))))))))) -> 50 | C3: =IF(Scenario=1,C23,IF(Scenario=2,C43,IF(Scenario=3,C63,IF(Scenario=4,C83,IF(Scenario=5,C103,IF(Scenario=6,C123,IF(Scenario=7,C143,IF(Scenario=8,C163,IF(Scenario=9,C183,IF(Scenario=10,C203,IF(Scenario=11,C223,IF(Scenario=12,C243,IF(Scenario=13,C263,IF(Scenario=14,C283,IF(Scenario=15,C303))))))))))))))) -> 20 | D3: 17 | E3: 0.8059305492 | F3: 12 | G3: 1 | H3: 0 | I3: 19.6324 | J3: Fossil fuel | K3: 0 | L3: 0 | M3: 0 | N3: 1 | O3: =IF(Scenario=1,P23,IF(Scenario=2,P43,IF(Scenario=3,P63,IF(Scenario=4,P83,IF(Scenario=5,P103,IF(Scenario=6,P123,IF(Scenario=7,P143,IF(Scenario=8,P163,IF(Scenario=9,P183,IF(Scenario=10,P203,IF(Scenario=11,P223,IF(Scenario=12,P243,IF(Scenario=13,P263,IF(Scenario=14,P283,IF(Scenario=15,P303))))))))))))))) -> 0 | P3: =IF(Scenario=1,S23,IF(Scenario=2,S43,IF(Scenario=3,S63,IF(Scenario=4,S83,IF(Scenario=5,S103,IF(Scenario=6,S123,IF(Scenario=7,S143,IF(Scenario=8,S163,IF(Scenario=9,S183,IF(Scenario=10,S203,IF(Scenario=11,S223,IF(Scenario=12,S243,IF(Scenario=13,S263,IF(Scenario=14,S283,IF(Scenario=15,S303))))))))))))))) -> 0 | Q3: =IF(Scenario=1,T23,IF(Scenario=2,T43,IF(Scenario=3,T63,IF(Scenario=4,T83,IF(Scenario=5,T103,IF(Scenario=6,T123,IF(Scenario=7,T143,IF(Scenario=8,T163,IF(Scenario=9,T183,IF(Scenario=10,T203,IF(Scenario=11,T223,IF(Scenario=12,T243,IF(Scenario=13,T263,IF(Scenario=14,T283,IF(Scenario=15,T303))))))))))))))) -> 0 | R3: =IF(Scenario=1,U23,IF(Scenario=2,U43,IF(Scenario=3,U63,IF(Scenario=4,U83,IF(Scenario=5,U103)))))*S3+IF(Scenario=6,U123,IF(Scenario=7,U143,IF(Scenario=8,U163,IF(Scenario=9,U183,IF(Scenario=10,U203)))))*S3 -> 0 | S3: =MAX(S$14,IF(Scenario=1,V23,IF(Scenario=2,V43,IF(Scenario=3,V63,IF(Scenario=4,V83,IF(Scenario=5,V103,IF(Scenario=6,V123,IF(Scenario=7,V143,IF(Scenario=8,V163,IF(Scenario=9,V183,IF(Scenario=10,V203,IF(Scenario=11,V223,IF(Scenario=12,V243,IF(Scenario=13,V263,IF(Scenario=14,V283,IF(Scenario=15,V303)))))))))))))))) -> 0 | T3: =IF(Scenario=1,W23,IF(Scenario=2,W43,IF(Scenario=3,W63,IF(Scenario=4,W83,IF(Scenario=5,W103,IF(Scenario=6,W123,IF(Scenario=7,W143,IF(Scenario=8,W163,IF(Scenario=9,W183,IF(Scenario=10,W203,IF(Scenario=11,W223,IF(Scenario=12,W243,IF(Scenario=13,W263,IF(Scenario=14,W283,IF(Scenario=15,W303))))))))))))))) -> 0 | U3: 11.31215449 | V3: 0 | Y3: 1020.349903 | Z3: 25 | AA3: 3.216554568 | AB3: 0 | AC3: =IF(Scenario=1,O23,IF(Scenario=2,O43,IF(Scenario=3,O63,IF(Scenario=4,O83,IF(Scenario=5,O103,IF(Scenario=6,O123,IF(Scenario=7,O143,IF(Scenario=8,O163,IF(Scenario=9,O183,IF(Scenario=10,O203,IF(Scenario=11,O223,IF(Scenario=12,O243,IF(Scenario=13,O263,IF(Scenario=14,O283,IF(Scenario=15,O303))))))))))))))) -> 13.5 | AD3: =IF(Scenario=1,Q23,IF(Scenario=2,Q43,IF(Scenario=3,Q63,IF(Scenario=4,Q83,IF(Scenario=5,Q103,IF(Scenario=6,Q123,IF(Scenario=7,Q143,IF(Scenario=8,Q163,IF(Scenario=9,Q183,IF(Scenario=10,Q203,IF(Scenario=11,Q223,IF(Scenario=12,Q243,IF(Scenario=13,Q263,IF(Scenario=14,Q283,IF(Scenario=15,Q303))))))))))))))) -> 240 | AE3: 1500 | AF3: 1200 | AG3: 1.5 | AH3: 5000 | AI3: 2500 | AJ3: 2500 | AK3: 2500 | AL3: 4000 | AM3: 2000 | AN3: 2000 | AO3: 200 | AP3: 25 | AQ3: 1 | AR3: 0.75 | AS3: 1000 | AT3: 3000 | AU3: 0.5 | AW3: 0 | AX3: 163140.2258 | AY3: 0 | AZ3: 12000 | BA3: 0 | BB3: 0 | BC3: 0 | BD3: 0 | BE3: 0 | BF3: 0 | BG3: 0
A4: =Financial!A137 -> Before 1946 and 1946-1977 , Single Attached, Apart., Mob. H. | B4: =IF(Scenario=1,B24,IF(Scenario=2,B44,IF(Scenario=3,B64,IF(Scenario=4,B84,IF(Scenario=5,B104,IF(Scenario=6,B124,IF(Scenario=7,B144,IF(Scenario=8,B164,IF(Scenario=9,B184,IF(Scenario=10,B204,IF(Scenario=11,B224,IF(Scenario=12,B244,IF(Scenario=13,B264,IF(Scenario=14,B284,IF(Scenario=15,B304))))))))))))))) -> 22 | C4: 9 | D4: 8 | E4: 0.8059305492 | F4: 5 | G4: 0 | H4: 0 | I4: 24.5587 | J4: Fossil fuel | K4: 0 | L4: 0 | M4: 0 | N4: 0 | O4: =IF(Scenario=1,P24,IF(Scenario=2,P44,IF(Scenario=3,P64,IF(Scenario=4,P84,IF(Scenario=5,P104,IF(Scenario=6,P124,IF(Scenario=7,P144,IF(Scenario=8,P164,IF(Scenario=9,P184,IF(Scenario=10,P204,IF(Scenario=11,P224,IF(Scenario=12,P244,IF(Scenario=13,P264,IF(Scenario=14,P284,IF(Scenario=15,P304))))))))))))))) -> 0 | P4: 0 | Q4: 0 | R4: 0 | S4: 0 | T4: 0 | U4: 9.185907689 | V4: 0 | Y4: 771.0199131 | Z4: 25 | AA4: 2.611966922 | AB4: 0 | AC4: 13.5 | AD4: 240 | AE4: 1500 | AF4: 1200 | AG4: 1 | AH4: 5000 | AI4: 2500 | AJ4: 2500 | AK4: 2500 | AL4: 4000 | AM4: 2000 | AN4: 2000 | AO4: 200 | AP4: 25 | AQ4: 1 | AR4: 0.75 | AS4: 1000 | AT4: 3000 | AU4: 0.5 | AW4: 0 | AX4: 144199.7321 | AY4: 0 | AZ4: 0 | BA4: 0 | BB4: 0 | BC4: 0 | BD4: 0 | BE4: 0 | BF4: 0 | BG4: 0
A5: =Financial!A138 -> Before 1946 and 1946-1977 Large , Single Detached, Single Attached | B5: =IF(Scenario=1,B25,IF(Scenario=2,B45,IF(Scenario=3,B65,IF(Scenario=4,B85,IF(Scenario=5,B105,IF(Scenario=6,B125,IF(Scenario=7,B145,IF(Scenario=8,B165,IF(Scenario=9,B185,IF(Scenario=10,B205,IF(Scenario=11,B225,IF(Scenario=12,B245,IF(Scenario=13,B265,IF(Scenario=14,B285,IF(Scenario=15,B305))))))))))))))) -> 55 | C5: 22 | D5: 19 | E5: 0.8059305492 | F5: 13 | G5: 1 | H5: 0 | I5: 21.2612 | J5: Fossil fuel | K5: 0 | L5: 0 | M5: 0 | N5: 0 | O5: 0 | P5: 0 | Q5: 0 | R5: 0 | S5: 0 | T5: 0 | U5: 9.535936498 | V5: 5.178118212 | Y5: 905.4734117 | Z5: 80 | AA5: 2.711495863 | AB5: 1.472372023 | AC5: 13.5 | AD5: 240 | AE5: 1500 | AF5: 1200 | AG5: 0.5 | AH5: 5000 | AI5: 2500 | AJ5: 2500 | AK5: 2500 | AL5: 4000 | AM5: 2000 | AN5: 2000 | AO5: 200 | AP5: 25 | AQ5: 1 | AR5: 0.75 | AS5: 1000 | AT5: 3000 | AU5: 0.5 | AW5: 0 | AX5: 453684.2614 | AY5: 0 | AZ5: 0 | BA5: 0 | BB5: 0 | BC5: 0 | BD5: 0 | BE5: 0 | BF5: 0 | BG5: 0
A6: =Financial!A139 -> 1978-1995 Large , Single Detached | B6: =IF(Scenario=1,B26,IF(Scenario=2,B46,IF(Scenario=3,B66,IF(Scenario=4,B86,IF(Scenario=5,B106,IF(Scenario=6,B126,IF(Scenario=7,B146,IF(Scenario=8,B166,IF(Scenario=9,B186,IF(Scenario=10,B206,IF(Scenario=11,B226,IF(Scenario=12,B246,IF(Scenario=13,B266,IF(Scenario=14,B286,IF(Scenario=15,B306))))))))))))))) -> 34 | C6: 14 | D6: 12 | E6: 0.8059305492 | F6: 8 | G6: 0 | H6: 0 | I6: 13.607 | J6: Fossil fuel | K6: 0 | L6: 0 | M6: 0 | N6: 0 | O6: 0 | P6: 0 | Q6: 0 | R6: 0 | S6: 0 | T6: 0 | U6: 11.29933916 | V6: 3.64553975 | Y6: 905.4734117 | Z6: 81 | AA6: 3.212910594 | AB6: 1.036591 | AC6: 13.5 | AD6: 240 | AE6: 1500 | AF6: 1200 | AG6: 2 | AH6: 5000 | AI6: 2500 | AJ6: 2500 | AK6: 3500 | AL6: 4000 | AM6: 2000 | AN6: 1000 | AO6: 200 | AP6: 25 | AQ6: 1 | AR6: 0.75 | AS6: 1000 | AT6: 5000 | AU6: 0.25 | AW6: 0 | AX6: 539746.9452 | AY6: 0 | AZ6: 0 | BA6: 0 | BB6: 0 | BC6: 0 | BD6: 0 | BE6: 0 | BF6: 0 | BG6: 0
A7: =Financial!A140 -> 1978-1995 Small , Single Attached, Apart., Mob. H. | B7: =IF(Scenario=1,B27,IF(Scenario=2,B47,IF(Scenario=3,B67,IF(Scenario=4,B87,IF(Scenario=5,B107,IF(Scenario=6,B127,IF(Scenario=7,B147,IF(Scenario=8,B167,IF(Scenario=9,B187,IF(Scenario=10,B207,IF(Scenario=11,B227,IF(Scenario=12,B247,IF(Scenario=13,B267,IF(Scenario=14,B287,IF(Scenario=15,B307))))))))))))))) -> 15 | C7: 6 | D7: 6 | E7: 0.8059305492 | F7: 3 | G7: 0 | H7: 0 | I7: 14.843 | J7: Fossil fuel | K7: 0 | L7: 0 | M7: 0 | N7: 0 | O7: 0 | P7: 0 | Q7: 0 | R7: 0 | S7: 0 | T7: 0 | U7: 10.2615339 | V7: 0 | Y7: 1153.986744 | Z7: 57 | AA7: 2.917815855 | AB7: 0 | AC7: 13.5 | AD7: 240 | AE7: 1500 | AF7: 1200 | AG7: 1.5 | AH7: 5000 | AI7: 2500 | AJ7: 2500 | AK7: 3500 | AL7: 4000 | AM7: 2000 | AN7: 1000 | AO7: 200 | AP7: 25 | AQ7: 1 | AR7: 0.75 | AS7: 1000 | AT7: 5000 | AU7: 0.25 | AW7: 0 | AX7: 367030.1232 | AY7: 0 | AZ7: 0 | BA7: 0 | BB7: 0 | BC7: 0 | BD7: 0 | BE7: 0 | BF7: 0 | BG7: 0
A8: =Financial!A141 -> 1978-1995 , Single Detached, Single Detached, Apart. | B8: =IF(Scenario=1,B28,IF(Scenario=2,B48,IF(Scenario=3,B68,IF(Scenario=4,B88,IF(Scenario=5,B108,IF(Scenario=6,B128,IF(Scenario=7,B148,IF(Scenario=8,B168,IF(Scenario=9,B188,IF(Scenario=10,B208,IF(Scenario=11,B228,IF(Scenario=12,B248,IF(Scenario=13,B268,IF(Scenario=14,B288,IF(Scenario=15,B308))))))))))))))) -> 78 | C8: 32 | D8: 27 | E8: 0.8059305492 | F8: 18 | G8: 1 | H8: 0 | I8: 7.3415 | J8: Fossil fuel | K8: 0 | L8: 0 | M8: 0 | N8: 0 | O8: 0 | P8: 0 | Q8: 0 | R8: 0 | S8: 0 | T8: 0 | U8: 12.73195985 | V8: 0 | Y8: 1192.915543 | Z8: 65 | AA8: 3.620269122 | AB8: 0 | AC8: 13.5 | AD8: 240 | AE8: 1500 | AF8: 1200 | AG8: 1 | AH8: 5000 | AI8: 2500 | AJ8: 2500 | AK8: 3500 | AL8: 4000 | AM8: 2000 | AN8: 1000 | AO8: 200 | AP8: 25 | AQ8: 1 | AR8: 0.75 | AS8: 1000 | AT8: 5000 | AU8: 0.25 | AW8: 0 | AX8: 429593.1882 | AY8: 0 | AZ8: 0 | BA8: 0 | BB8: 0 | BC8: 0 | BD8: 0 | BE8: 0 | BF8: 0 | BG8: 0
A9: =Financial!A142 -> 1996-2010 Two storey , Single Detached, Single Attached, Apart., Mob. H. | B9: =IF(Scenario=1,B29,IF(Scenario=2,B49,IF(Scenario=3,B69,IF(Scenario=4,B89,IF(Scenario=5,B109,IF(Scenario=6,B129,IF(Scenario=7,B149,IF(Scenario=8,B169,IF(Scenario=9,B189,IF(Scenario=10,B209,IF(Scenario=11,B229,IF(Scenario=12,B249,IF(Scenario=13,B269,IF(Scenario=14,B289,IF(Scenario=15,B309))))))))))))))) -> 54 | C9: 22 | D9: 18 | E9: 0.8059305492 | F9: 13 | G9: 1 | H9: 0 | I9: 19.7155 | J9: Fossil fuel | K9: 0 | L9: 0 | M9: 0 | N9: 0 | O9: 0 | P9: 0 | Q9: 0 | R9: 0 | S9: 0 | T9: 0 | U9: 11.61947365 | V9: 3.962618226 | Y9: 1192.915543 | Z9: 66 | AA9: 3.303939236 | AB9: 1.126750679 | AC9: 13.5 | AD9: 240 | AE9: 1500 | AF9: 1200 | AG9: 1.5 | AH9: 5000 | AI9: 2500 | AJ9: 2500 | AK9: 3000 | AL9: 4000 | AM9: 2000 | AN9: 1000 | AO9: 200 | AP9: 25 | AQ9: 1 | AR9: 0.75 | AS9: 1000 | AT9: 4000 | AU9: 0.25 | AW9: 0 | AX9: 442836.8129 | AY9: 0 | AZ9: 0 | BA9: 0 | BB9: 0 | BC9: 0 | BD9: 0 | BE9: 0 | BF9: 0 | BG9: 0
A10: =Financial!A143 -> 1996-2010 Large, two storey , Single Detached, Single Attached | B10: =IF(Scenario=1,B30,IF(Scenario=2,B50,IF(Scenario=3,B70,IF(Scenario=4,B90,IF(Scenario=5,B110,IF(Scenario=6,B130,IF(Scenario=7,B150,IF(Scenario=8,B170,IF(Scenario=9,B190,IF(Scenario=10,B210,IF(Scenario=11,B230,IF(Scenario=12,B250,IF(Scenario=13,B270,IF(Scenario=14,B290,IF(Scenario=15,B310))))))))))))))) -> 41 | C10: 17 | D10: 15 | E10: 0.8059305492 | F10: 9 | G10: 0 | H10: 0 | I10: 18.6578 | J10: Fossil fuel | K10: 0 | L10: 0 | M10: 0 | N10: 0 | O10: 0 | P10: 0 | Q10: 0 | R10: 0 | S10: 0 | T10: 0 | U10: 18.33921279 | V10: 3.546906053 | Y10: 1622.077966 | Z10: 32 | AA10: 5.21466346 | AB10: 1.008545002 | AC10: 13.5 | AD10: 240 | AE10: 2500 | AF10: 1200 | AG10: 2 | AH10: 5000 | AI10: 2500 | AJ10: 2500 | AK10: 2500 | AL10: 4000 | AM10: 2000 | AN10: 1000 | AO10: 200 | AP10: 25 | AQ10: 1 | AR10: 0.75 | AS10: 1000 | AT10: 2000 | AU10: 0.25 | AW10: 0 | AX10: 276199.7641 | AY10: 0 | AZ10: 0 | BA10: 0 | BB10: 0 | BC10: 0 | BD10: 0 | BE10: 0 | BF10: 0 | BG10: 0
A11: =Financial!A144 -> 1996-2010 One storey , Single Detached, Single Attached | B11: =IF(Scenario=1,B31,IF(Scenario=2,B51,IF(Scenario=3,B71,IF(Scenario=4,B91,IF(Scenario=5,B111,IF(Scenario=6,B131,IF(Scenario=7,B151,IF(Scenario=8,B171,IF(Scenario=9,B191,IF(Scenario=10,B211,IF(Scenario=11,B231,IF(Scenario=12,B251,IF(Scenario=13,B271,IF(Scenario=14,B291,IF(Scenario=15,B311))))))))))))))) -> 41 | C11: 17 | D11: 15 | E11: 0.8059305492 | F11: 9 | G11: 0 | H11: 0 | I11: 8.6114 | J11: Fossil fuel | K11: 0 | L11: 0 | M11: 0 | N11: 0 | O11: 0 | P11: 0 | Q11: 0 | R11: 0 | S11: 0 | T11: 0 | U11: 10.5991273 | V11: 0 | Y11: 1347.827825 | Z11: 16 | AA11: 3.013808853 | AB11: 0 | AC11: 13.5 | AD11: 240 | AE11: 2500 | AF11: 1200 | AG11: 2 | AH11: 7000 | AI11: 2500 | AJ11: 2000 | AK11: 2500 | AL11: 4000 | AM11: 2000 | AN11: 5000 | AO11: 200 | AP11: 20 | AQ11: 1 | AR11: 0.75 | AS11: 1000 | AT11: 2000 | AU11: 0.25 | AW11: 0 | AX11: 121675.716 | AY11: 0 | AZ11: 0 | BA11: 0 | BB11: 0 | BC11: 0 | BD11: 0 | BE11: 0 | BF11: 0 | BG11: 0
A12: =Financial!A145 -> 2011-2020 , Single Detached, Single Attached | B12: =IF(Scenario=1,B32,IF(Scenario=2,B52,IF(Scenario=3,B72,IF(Scenario=4,B92,IF(Scenario=5,B112,IF(Scenario=6,B132,IF(Scenario=7,B152,IF(Scenario=8,B172,IF(Scenario=9,B192,IF(Scenario=10,B212,IF(Scenario=11,B232,IF(Scenario=12,B252,IF(Scenario=13,B272,IF(Scenario=14,B292,IF(Scenario=15,B312))))))))))))))) -> 31 | C12: 12 | D12: 12 | E12: 0.8059305492 | F12: 7 | G12: 0 | H12: 0 | I12: 6.9851 | J12: Fossil fuel | K12: 0 | L12: 0 | M12: 0 | N12: 0 | O12: 0 | P12: 0 | Q12: 0 | R12: 0 | S12: 0 | T12: 0 | U12: 15.09915264 | V12: 7.447999835 | Y12: 1681.285712 | Z12: 3 | AA12: 4.293368558 | AB12: 2.117801513 | AC12: 13.5 | AD12: 240 | AE12: 10000 | AF12: 1000 | AG12: 1 | AH12: 7000 | AI12: 2500 | AJ12: 2000 | AK12: 2500 | AL12: 4000 | AM12: 2000 | AN12: 5000 | AO12: 200 | AP12: 20 | AQ12: 1 | AR12: 0.75 | AS12: 1000 | AT12: 5000 | AU12: 0.25 | AW12: 0 | AX12: 23211.9814 | AY12: 0 | AZ12: 0 | BA12: 0 | BB12: 0 | BC12: 0 | BD12: 0 | BE12: 0 | BF12: 0 | BG12: 0
A13: =Financial!A146 -> 2011-2020 Small , Single Detached, Single Attached, Apart., Mob. H. | B13: =IF(Scenario=1,B33,IF(Scenario=2,B53,IF(Scenario=3,B73,IF(Scenario=4,B93,IF(Scenario=5,B113,IF(Scenario=6,B133,IF(Scenario=7,B153,IF(Scenario=8,B173,IF(Scenario=9,B193,IF(Scenario=10,B213,IF(Scenario=11,B233,IF(Scenario=12,B253,IF(Scenario=13,B273,IF(Scenario=14,B293,IF(Scenario=15,B313))))))))))))))) -> 47 | C13: 19 | D13: 16 | E13: 0.8059305492 | F13: 11 | G13: 1 | H13: 0 | I13: 11.3593 | J13: Fossil fuel | K13: 0 | L13: 0 | M13: 0 | N13: 0 | O13: 0 | P13: 0 | Q13: 0 | R13: 0 | S13: 0 | T13: 0 | U13: 12.31589645 | V13: 5.019131403 | Y13: 1681.285712 | Z13: 4 | AA13: 3.501963575 | AB13: 1.427164919 | AC13: 13.5 | AD13: 240 | AE13: 15000 | AF13: 1000 | AG13: 4 | AH13: 20000 | AI13: 5000 | AJ13: 2000 | AK13: 20000 | AL13: 20000 | AM13: 2000 | AN13: 10000 | AO13: 200 | AP13: 20 | AQ13: 3 | AR13: 1.5 | AS13: 20000 | AT13: 10000 | AU13: 0.25 | AW13: 0 | AX13: 70454.21284 | AY13: 0 | AZ13: 0 | BA13: 0 | BB13: 0 | BC13: 0 | BD13: 0 | BE13: 0 | BF13: 0 | BG13: 0
E14: Source: Statistics Canada. Table 98-10-0002-02 Population and dwelling counts: Canada, provinces and territories, and census subdivisions (municipalities)
A15: ='User Input Output'!K18 -> New Brunswick Aberdeen | E15: Default number of buildings in 2016 | J15: =SUMIF(Cities!K13:K1991,'User Input Output'!$K18,Cities!N13:N1991) -> 503 | K15: and in 2021 | M15: =SUMIF(Cities!K13:K1991,'User Input Output'!$K18,Cities!M13:M1991) -> 468 | N15: growth / yr | P15: =(M15/J15-1)/5 -> -0.01391650099 | Q15: For current year | T15: 2023 | U15: suggested no. of bldgs: | W15: =IF(P15<0,M15,INT(M15*(1+P15)^(T15-2021))) -> 468 | BQ15: Les augmentations ou diminutions d'un paramètre par rapport au scénario précédent sont mises en évidence comme telles:
R16: =IF(Scenario=1,R23,IF(Scenario=2,R43,IF(Scenario=3,R63,IF(Scenario=4,R83,IF(Scenario=5,R103,IF(Scenario=6,R123,IF(Scenario=7,R143,IF(Scenario=8,R163,IF(Scenario=9,R183,IF(Scenario=10,R203,IF(Scenario=11,R223,IF(Scenario=12,R243,IF(Scenario=13,R263,IF(Scenario=14,R283,IF(Scenario=15,R303))))))))))))))) -> 0 | S16: Most recent archetype count increased by | W16: =W15-M15 -> 0
A17: Année de référence/baseline year: | C17: 2005 | E17: Date: | F17: =TODAY() -> 2024-02-13 | K17: =IF(lang="English","Legend:","Légende:") -> Legend: | L17: =IF(lang="English","input","entrée de données") -> input | M17: =IF(lang="English","input","données par défaut") -> input | N17: =IF(lang="English","calculated result","résultat calculé") -> calculated result | O17: =IF(lang="English","calculated default","défaut calculé") -> calculated default | Q17: =IF(lang="English","Press F9 after entering data.","Appuyez sur F9 après avoir entrée les données") -> Press F9 after entering data.
A18: =IF(lang="English","Estimated number of buildings at that time:","Numéro approximatif d'unités en cette année") -> Estimated number of buildings at that time: | C18: =IF(P15<0,M15,INT(M15*(1+P15)^(C17-2021))) -> 468 | Q18: =IF(lang="English","Scroll down to define additional scenarios","Faites défiler vers le bas pour définir des scénarios supplémentaires") -> Scroll down to define additional scenarios | BQ18: Augmentation | BS18: Diminution
D19: =IF(lang="English"," Select space heating method"," Sélectionnez la méthode de chauffage des locaux") -> Select space heating method | K19: =IF(lang="English"," Additional low carbon energy technology options","Options supplémentaires de technologies énergétiques à faible émission de carbone") -> Additional low carbon energy technology options | S19: =IF(lang="English","Energy conservation measures (ECMs)","Mesures d'économie d'énergie (ECM)") -> Energy conservation measures (ECMs)
C20: =IF(lang="English","Electricity","Électricité") -> Electricity | D20: Combustion | G20: =IF(lang="English","Heat pump","Pompe à chaleur") -> Heat pump | I20: =IF(lang="English","Hybrid","Hybride") -> Hybrid | K20: =IF(lang="English"," Enter number of buildings to be upgraded and capacities"," Entrez le nombre de bâtiments à moderniser et les capacités des systèmes") -> Enter number of buildings to be upgraded and capacities | S20: =IF(lang="English","( energy retrofit and appliances ugrades)","(rénovation énergétique et mise à niveau des électroménagers)") -> ( energy retrofit and appliances ugrades) | BO20: Translations"
A21: =IF(lang="English","Archetype","Archétype") -> Archetype | B21: Total number of buildings Nombre total d'unites (ea.) | C21: Baseboard or electric furnace Plinthe ou fournaise électrique (ea.) | D21: =Financial!M127 -> oil | E21: Efficiency Efficacité (%) | F21: Wood Bois de chaufage (ea.) | G21: Air source heat pump Pompe a chaleur source air (ASHP) (ea.) | H21: Ground source heat pump Pompe a chaleur source sol (GSHP) (ea.) | I21: Capacity of heap pump. Capacité de la pompe a chaleur (HP) (kW) | J21: Heat Pump/ Hybrid Pompe a chaleur /hybride option (select below) | K21: Solar domestic water heater Chauffe-eau solaire (SDHW) (ea.) | L21: Photo- voltaic array Panneaux solaires (PV) (ea.) | M21: Capacity of PV array per building Capacité des panneaux solaires par unité (kWp) | N21: Battery electricity storage Stockage d’électricité par batterie (BES) (ea.) | O21: Battery electricity storage capacity Capacité de stockage d’électricité de la batterie (kWhr) | P21: Thermal energy storage (TES) Stockage d'énergie thermique (ea.) | Q21: Thermal energy storage capacity Capacité de stockage d’énergie thermique (kWh) | R21: Number of buildings retrofited (ea.) | S21: Heating Load Reduction Réduction de la charge de chauffage (%) | T21: Cooling Load Reduction Réduction de la charge de refroi- dissement (%) | U21: Domestic Hot Water Reduction Réduction d'énergie pour l'eau chaude (%) | V21: Lighting Load Reduction Réduction de la charge d'éclairage (%) | W21: Plug Load Reduction Réduction de charge des prises électriques (%) | AA21: Average area per building (ft²) | AB21: # of Buildings | AC21: Peak heat load post measures (tons/ building) | AD21: Post measures Peak cooling load (tons/ building) | AE21: Battery bank capacity (kWhrs) | AF21: Thermal storage capacity (kWhrs) | AG21: ASHP (intercept equipment) ( $/unit) | AH21: ASHP ($/ton) | AI21: AS/GS HP (ductwork upgrade average allowance) ($/ft2) | AJ21: AS/GS HP (electrical service upgrade avg allowance) ($/unit) | AK21: GSHP (intercept equipment) ($/unit) | AL21: GSHP ($/ton) | AM21: SDHW ($/each) | AN21: DHW HP ($/each) | AO21: PV ($/kWp) | AP21: indirect cost PV installation ($/building) | AQ21: Battery ($/kWhr) | AR21: # Thermal Storage ($/kWhr) | AS21: Heating Load % Reduction ($/ft2/%) | AT21: Cooling Load % Reduction ($/ft2/%) | AU21: DHW % Reduction avg allowance ($/unit) | AV21: Plug Load reduction ($/unit) | AW21: Lighting Load % Reduction ($/ft2) | AY21: ASHP Cost | AZ21: GSHP Cost | BA21: =K21 -> Solar domestic water heater Chauffe-eau solaire (SDHW) (ea.) | BB21: =L21 -> Photo- voltaic array Panneaux solaires (PV) (ea.) | BC21: Battery Cost | BD21: Thermal Storage | BE21: Heating Load Reduction | BF21: Cooling Load Reduction | BG21: DHW Reduction | BH21: Plug Load reduction | BI21: Lighting Load Reduction | BO21: Note: For the reference year, adjust count of most recent archetypes and their space heating methods to reflect the smaller building stock of the reference year. This can be done by consulting the vintage field in the property tax database, for example. Example, adjust numbers in Cells B30 to B33 to get to the estimated number of buildings as of the end of reference year chosen. See manual section on selecting reference year. Adjust number of heating system in Cells C30 to C33 and F30 to H33. By defining estimated number of electric furnace or baseboard, wood and heat pump, the number of fossil fuel heating system is automatically calculated to complete the count.
A22: =IF(lang="English","Scenario number 1 year:","Scénario no. 1 année:") -> Scenario number 1 year: | B22: =C17 -> 2005 | C22: =CONCATENATE("Baseline scenario ",C17) -> Baseline scenario 2005 | H22: =IF(B34=H35,"","Building number does not match number of heating system entered") ->  | BO22: Remarque : Pour l'année de référence, ajustez le nombre d'archétypes les plus récents et leurs méthodes de chauffage des locaux pour refléter le parc immobilier plus petit de l'année de référence. Cela peut se faire en consultant par exemple le champ "année de construction" dans la base de données de la taxe foncière. Par exemple, ajustez les nombres dans les cellules B30 à B33 pour obtenir le nombre estimé de bâtiments à la fin de l'année de référence choisie. Voir le manuel pour « sélection de l'année de référence ». Ajustez le nombre de systèmes de chauffage dans les cellules C30 à C33 et F30 à H33. En définissant le nombre estimé de fournaises électriques ou de systèmes de plinthes electriques, de chauffage au bois et de pompe à chaleur, le nombre de systèmes de chauffage à combustibles fossiles est automatiquement calculé pour compléter le décompte.
A23: =A3 -> Before 1946 and 1946-1977 Small , Single Detached | B23: =B43 -> 50 | C23: =INT($B23*Financial!M$126) -> 20 | D23: =B23-(C23+F23+G23+H23) -> 17 | E23: =Financial!M$129 -> 0.8059305492 | F23: =INT(B23*Financial!M$130) -> 12 | G23: =INT(B23*Financial!M$131+0.5) -> 1 | I23: =Statistics!R$54/1000*(1-S23) -> 19.6324 | J23: Fossil fuel | N23: 1 | O23: 13.5 | Q23: 240 | X23: =IF(B23=C23+D23+F23+G23+H23,"","error") ->  | AA23: =CONVERT(MAIN!C2,"m2","ft2") -> 1192.641274 | AB23: =B23 -> 50 | AC23: =I23*0.284345 -> 5.582374778 | AD23: =Y23*0.284345 -> 0 | AE23: =13.5*N23 -> 13.5 | AF23: =MAIN!Y2 -> 240 | AG23: 1500 | AH23: 1200 | AI23: 1.5 | AJ23: 5000 | AK23: 2500 | AL23: 2500 | AM23: 2500 | AN23: 4000 | AO23: 2000 | AP23: 2000 | AQ23: 200 | AR23: 25 | AS23: 1 | AT23: 0.75 | AU23: 1000 | AV23: 3000 | AW23: 0.5 | AY23: =(AG23+MAX(AC23,AD23)*AH23+AI23*AA23+AJ23)*G23 -> 14987.81164 | AZ23: =(AK23+I23*0.284345*AL23+AI23*AA23+AJ23)*H23 -> 0 | BA23: =AM23*K23 -> 0 | BB23: =AP23*L23+(M23*AO23)*IF(L23=0,0,1) -> 0 | BC23: =AQ23*AE23*N23 -> 2700 | BD23: =AR23*AF23*P23 -> 0 | BE23: =AS23*AA23*B23*S23 -> 0 | BF23: =AT23*AA23*B23*T23 -> 0 | BG23: =AU23*B23*IF(U23=0,0,1) -> 0 | BH23: =AV23*B23*IF(W23=0,0,1) -> 0 | BI23: =AW23*B23*IF(W23=0,0,1) -> 0
A24: =A4 -> Before 1946 and 1946-1977 , Single Attached, Apart., Mob. H. | B24: =B44 -> 22 | C24: =INT($B24*Financial!M$126) -> 9 | D24: =B24-(C24+F24+G24+H24) -> 8 | E24: =Financial!M$129 -> 0.8059305492 | F24: =INT(B24*Financial!M$130) -> 5 | G24: =INT(B24*Financial!M$131+0.5) -> 0 | I24: =Statistics!R$55/1000*(1-S24) -> 24.5587 | J24: Fossil fuel | O24: 13.5 | Q24: 240 | X24: =IF(B24=C24+D24+F24+G24+H24,"","error") ->  | AA24: =CONVERT(MAIN!C3,"m2","ft2") -> 1226.009396 | AB24: 22 | AC24: =I24*0.284345 -> 6.983143552 | AD24: 0 | AE24: 0 | AF24: =MAIN!Y3 -> 240 | AG24: =AG23 -> 1500 | AH24: 1200 | AI24: 1 | AJ24: =AJ23 -> 5000 | AK24: 2500 | AL24: 2500 | AM24: 2500 | AN24: =AN23 -> 4000 | AO24: =AO23 -> 2000 | AP24: 2000 | AQ24: =AQ23 -> 200 | AR24: =AR23 -> 25 | AS24: =AS23 -> 1 | AT24: 0.75 | AU24: 1000 | AV24: =AV23 -> 3000 | AW24: =AW23 -> 0.5 | AY24: =(AG24+MAX(AC24,AD24)*AH24+AI24*AA24+AJ24)*G24 -> 0 | AZ24: 0 | BA24: 0 | BB24: 0 | BC24: 0 | BD24: 0 | BE24: 0 | BF24: 0 | BG24: 0 | BH24: 0 | BI24: 0 | BO24: Note: For current status year, perform an approximate validation of the archetypes mix and heating methods. Adjust accordingly should there be significant discrepancies from the provincial averages used by CTAP. See "Statistics" Tab for assumptions. Total number of buildings in Cell B54 must be equal to Cell W15.
A25: Before 1946 and 1946-1977 Large , Single Detached, Single Attached | B25: 55 | C25: =INT($B25*Financial!M$126) -> 22 | D25: 19 | E25: =Financial!M$129 -> 0.8059305492 | F25: =INT(B25*Financial!M$130) -> 13 | G25: =INT(B25*Financial!M$131+0.5) -> 1 | I25: =Statistics!R$56/1000*(1-S25) -> 21.2612 | J25: Fossil fuel | O25: 13.5 | Q25: 240 | AA25: =CONVERT(MAIN!C4,"m2","ft2") -> 2209.830809 | AB25: 55 | AC25: 6.045515914 | AD25: 0 | AE25: 0 | AF25: =MAIN!Y4 -> 240 | AG25: 1500 | AH25: 1200 | AI25: 0.5 | AJ25: =AJ24 -> 5000 | AK25: 2500 | AL25: 2500 | AM25: 2500 | AN25: =AN24 -> 4000 | AO25: 2000 | AP25: 2000 | AQ25: =AQ24 -> 200 | AR25: =AR24 -> 25 | AS25: 1 | AT25: 0.75 | AU25: 1000 | AV25: =AV24 -> 3000 | AW25: =AW24 -> 0.5 | AY25: 14859.5345 | AZ25: 0 | BA25: 0 | BB25: 0 | BC25: 0 | BD25: 0 | BE25: 0 | BF25: 0 | BG25: 0 | BH25: 0 | BI25: 0 | BO25: Remarque : Pour l'année en cours, effectuez une validation approximative du mélange d'archétypes et des méthodes de chauffage. Ajuster en conséquence s'il y a des écarts importants par rapport aux moyennes provinciales utilisées par le CTAP. Voir l'onglet « Statistics » pour les hypothèses. Le nombre total de bâtiments dans la cellule B54 doit être égal à la cellule W15.
A26: 1978-1995 Large , Single Detached | B26: 34 | C26: =INT($B26*Financial!M$126) -> 14 | D26: 12 | E26: =Financial!M$129 -> 0.8059305492 | F26: =INT(B26*Financial!M$130) -> 8 | G26: =INT(B26*Financial!M$131+0.5) -> 0 | I26: =Statistics!R$57/1000*(1-S26) -> 13.607 | J26: Fossil fuel | O26: 13.5 | Q26: 240 | AA26: =CONVERT(MAIN!C5,"m2","ft2") -> 1948.267785 | AB26: 34 | AC26: 3.869082415 | AD26: 0 | AE26: 0 | AF26: =MAIN!Y5 -> 240 | AG26: 1500 | AH26: 1200 | AI26: 2 | AJ26: 5000 | AK26: 2500 | AL26: 2500 | AM26: 3500 | AN26: 4000 | AO26: 2000 | AP26: 1000 | AQ26: =AQ25 -> 200 | AR26: 25 | AS26: 1 | AT26: 0.75 | AU26: 1000 | AV26: 5000 | AW26: 0.25 | AY26: 0 | AZ26: 0 | BA26: 0 | BB26: 0 | BC26: 0 | BD26: 0 | BE26: 0 | BF26: 0 | BG26: 0 | BH26: 0 | BI26: 0
A27: 1978-1995 Small , Single Attached, Apart., Mob. H. | B27: 15 | C27: =INT($B27*Financial!M$126) -> 6 | D27: 6 | E27: =Financial!M$129 -> 0.8059305492 | F27: =INT(B27*Financial!M$130) -> 3 | G27: =INT(B27*Financial!M$131+0.5) -> 0 | I27: =Statistics!R$58/1000*(1-S27) -> 14.843 | J27: Fossil fuel | O27: 13.5 | Q27: 240 | AA27: =CONVERT(MAIN!C6,"m2","ft2") -> 938.6129883 | AB27: 15 | AC27: 4.220532835 | AD27: 0 | AE27: 0 | AF27: =MAIN!Y6 -> 240 | AG27: 1500 | AH27: 1200 | AI27: 1.5 | AJ27: 5000 | AK27: 2500 | AL27: 2500 | AM27: 3500 | AN27: 4000 | AO27: 2000 | AP27: 1000 | AQ27: 200 | AR27: 25 | AS27: 1 | AT27: 0.75 | AU27: 1000 | AV27: =AV26 -> 5000 | AW27: 0.25 | AY27: 0 | AZ27: 0 | BA27: 0 | BB27: 0 | BC27: 0 | BD27: 0 | BE27: 0 | BF27: 0 | BG27: 0 | BH27: 0 | BI27: 0 | BO27: Scenario 1 and Scenario 2 are reserved for "Reference Year" and "Current Status" respectively. Scenarios 3 to 15 are to be used to develop future scenarios. In doing so, make sure that the number of dwellings is adjusted upwards by increasing the count of the most recent archetype to reflect antecipated growth. When adding dwellings with improved energy performance compared to the most recent archetype, this improved efficiency can be captured by the reduction in energy demand as per the improved design in Columns S to W.
A28: 1978-1995 , Single Detached, Single Detached, Apart. | B28: 78 | C28: =INT($B28*Financial!M$126) -> 32 | D28: 27 | E28: =Financial!M$129 -> 0.8059305492 | F28: =INT(B28*Financial!M$130) -> 18 | G28: =INT(B28*Financial!M$131+0.5) -> 1 | I28: =Statistics!R$59/1000*(1-S28) -> 7.3415 | J28: Fossil fuel | O28: 13.5 | Q28: 240 | AA28: =CONVERT(MAIN!C7,"m2","ft2") -> 1778.198001 | AB28: 78 | AC28: 2.087518817 | AD28: 0 | AE28: 0 | AF28: =MAIN!Y7 -> 240 | AG28: 1500 | AH28: 1200 | AI28: 1 | AJ28: 5000 | AK28: 2500 | AL28: 2500 | AM28: 3500 | AN28: 4000 | AO28: 2000 | AP28: 1000 | AQ28: 200 | AR28: 25 | AS28: 1 | AT28: 0.75 | AU28: 1000 | AV28: =AV27 -> 5000 | AW28: 0.25 | AY28: 10783.22058 | AZ28: 0 | BA28: 0 | BB28: 0 | BC28: 0 | BD28: 0 | BE28: 0 | BF28: 0 | BG28: 0 | BH28: 0 | BI28: 0 | BO28: Le scénario 1 et le scénario 2 sont réservés respectivement à « Année de référence » et « Statut actuel ». Les scénarios 3 à 15 doivent être utilisés pour élaborer des scénarios futurs. Ce faisant, assurez-vous que le nombre de logements est ajusté à la hausse en augmentant le nombre de l'archétype le plus récent pour refléter la croissance prévue. Lors de l'ajout de logements présentant une performance énergétique améliorée par rapport à l'archétype le plus récent, cette efficacité améliorée peut être reflétée par la réduction de la demande énergétique conformément à la conception améliorée dans les colonnes S à W.
A29: 1996-2010 Two storey , Single Detached, Single Attached, Apart., Mob. H. | B29: 54 | C29: =INT($B29*Financial!M$126) -> 22 | D29: 18 | E29: =Financial!M$129 -> 0.8059305492 | F29: =INT(B29*Financial!M$130) -> 13 | G29: =INT(B29*Financial!M$131+0.5) -> 1 | I29: =Statistics!R$60/1000*(1-S29) -> 19.7155 | J29: Fossil fuel | O29: 13.5 | Q29: 240 | AA29: =CONVERT(MAIN!C8,"m2","ft2") -> 1390.697226 | AB29: 54 | AC29: 5.606003848 | AD29: 0 | AE29: 0 | AF29: =MAIN!Y8 -> 240 | AG29: 1500 | AH29: 1200 | AI29: 1.5 | AJ29: 5000 | AK29: 2500 | AL29: 2500 | AM29: 3000 | AN29: 4000 | AO29: 2000 | AP29: 1000 | AQ29: 200 | AR29: 25 | AS29: 1 | AT29: 0.75 | AU29: 1000 | AV29: 4000 | AW29: 0.25 | AY29: 15313.25046 | AZ29: 0 | BA29: 0 | BB29: 0 | BC29: 0 | BD29: 0 | BE29: 0 | BF29: 0 | BG29: 0 | BH29: 0 | BI29: 0
A30: 1996-2010 Large, two storey , Single Detached, Single Attached | B30: 41 | C30: =INT($B30*Financial!M$126) -> 17 | D30: 15 | E30: =Financial!M$129 -> 0.8059305492 | F30: =INT(B30*Financial!M$130) -> 9 | G30: =INT(B30*Financial!M$131+0.5) -> 0 | I30: =Statistics!R$61/1000*(1-S30) -> 18.6578 | J30: Fossil fuel | O30: 13.5 | Q30: 240 | AA30: =CONVERT(MAIN!C9,"m2","ft2") -> 2903.026639 | AB30: 41 | AC30: 5.305252141 | AD30: 0 | AE30: 0 | AF30: =MAIN!Y9 -> 240 | AG30: 2500 | AH30: 1200 | AI30: 2 | AJ30: 5000 | AK30: 2500 | AL30: 2500 | AM30: 2500 | AN30: 4000 | AO30: 2000 | AP30: 1000 | AQ30: 200 | AR30: 25 | AS30: 1 | AT30: 0.75 | AU30: 1000 | AV30: 2000 | AW30: 0.25 | AY30: =(AG30+MAX(AC30,AD30)*AH30+AI30*AA30+AJ30)*G30 -> 0 | AZ30: 0 | BA30: 0 | BB30: 0 | BC30: 0 | BD30: 0 | BE30: 0 | BF30: 0 | BG30: 0 | BH30: 0 | BI30: 0 | BO30: When defining a future scenario, the interventions it contain can be cummulative to the ones included in the previous scenario. Alternatively, a scenario could be a totally new trial, starting from the current status scenario. To speed up the selections of interventions, the user can use the buttoms on the right to (1) copy the data defining the previous scenario into the one being worked on (the upper, blue button) or copy the data defining the current situation, when the scenario being worked on is a new approach all together (the lower, orange button). - This will take a few seconds - When changing data from the previous scenario, the cells are high-lighted for ease of refernce of the changes made.
A31: 1996-2010 One storey , Single Detached, Single Attached | B31: 41 | C31: =INT($B31*Financial!M$126) -> 17 | D31: 15 | E31: =Financial!M$129 -> 0.8059305492 | F31: =INT(B31*Financial!M$130) -> 9 | G31: =INT(B31*Financial!M$131+0.5) -> 0 | I31: =Statistics!R$62/1000*(1-S31) -> 8.6114 | J31: Fossil fuel | O31: 13.5 | Q31: 240 | AA31: =CONVERT(MAIN!C10,"m2","ft2") -> 2224.900283 | AB31: 41 | AC31: 2.448608533 | AD31: 0 | AE31: 0 | AF31: =MAIN!Y10 -> 240 | AG31: 2500 | AH31: 1200 | AI31: 2 | AJ31: 7000 | AK31: 2500 | AL31: 2000 | AM31: 2500 | AN31: 4000 | AO31: 2000 | AP31: 5000 | AQ31: 200 | AR31: 20 | AS31: 1 | AT31: 0.75 | AU31: 1000 | AV31: 2000 | AW31: =AW30 -> 0.25 | AY31: 0 | AZ31: 0 | BA31: 0 | BB31: 0 | BC31: 0 | BD31: 0 | BE31: 0 | BF31: 0 | BG31: 0 | BH31: 0 | BI31: 0 | BO31: Lors de la définition d'un scénario futur, les interventions qu'il contient peuvent être cumulatives avec celles incluses dans le scénario précédent. Alternativement, un scénario pourrait être un essai totalement nouveau, à partir du scénario de statut actuel. Pour accélérer les sélections d'interventions, l'utilisateur peut utiliser les boutons de droite pour (1) copier les données définissant le scénario précédent dans celui en cours de travail (le bouton supérieur bleu) ou copier les données définissant la situation actuelle, lorsque le scénario sur lequel on travaille est une nouvelle approche dans son ensemble (le bouton orange du bas). - Cela prendra quelques secondes - Lors de la modification des données du scénario précédent, les cellules sont mises en surbrillance pour faciliter la référence des modifications apportées.
A32: 2011-2020 , Single Detached, Single Attached | B32: 31 | C32: =INT($B32*Financial!M$126) -> 12 | D32: 12 | E32: =Financial!M$129 -> 0.8059305492 | F32: =INT(B32*Financial!M$130) -> 7 | G32: =INT(B32*Financial!M$131+0.5) -> 0 | I32: =Statistics!R$63/1000*(1-S32) -> 6.9851 | J32: Fossil fuel | O32: 13.5 | Q32: 240 | AA32: =CONVERT(MAIN!C11,"m2","ft2") -> 2060.212454 | AB32: 31 | AC32: 1.98617826 | AD32: 0 | AE32: 0 | AF32: =MAIN!Y11 -> 240 | AG32: 10000 | AH32: 1000 | AI32: 1 | AJ32: 7000 | AK32: 2500 | AL32: 2000 | AM32: 2500 | AN32: 4000 | AO32: 2000 | AP32: 5000 | AQ32: 200 | AR32: 20 | AS32: 1 | AT32: 0.75 | AU32: 1000 | AV32: 5000 | AW32: =AW31 -> 0.25 | AY32: 0 | AZ32: 0 | BA32: 0 | BB32: 0 | BC32: 0 | BD32: 0 | BE32: 0 | BF32: 0 | BG32: 0 | BH32: 0 | BI32: 0
A33: 2011-2020 Small , Single Detached, Single Attached, Apart., Mob. H. | B33: 47 | C33: =INT($B33*Financial!M$126) -> 19 | D33: 16 | E33: =Financial!M$129 -> 0.8059305492 | F33: =INT(B33*Financial!M$130) -> 11 | G33: =INT(B33*Financial!M$131+0.5) -> 1 | I33: =Statistics!R$64/1000*(1-S33) -> 11.3593 | J33: Fossil fuel | O33: 13.5 | Q33: 240 | AA33: =CONVERT(MAIN!C12,"m2","ft2") -> 1103.300818 | AB33: 47 | AC33: 3.229960158 | AD33: 0 | AE33: 0 | AF33: =MAIN!Y12 -> 240 | AG33: 15000 | AH33: 1000 | AI33: 4 | AJ33: 20000 | AK33: 5000 | AL33: 2000 | AM33: 20000 | AN33: 20000 | AO33: =AO32 -> 2000 | AP33: 10000 | AQ33: =AQ32 -> 200 | AR33: 20 | AS33: =3*AS32 -> 3 | AT33: 1.5 | AU33: 20000 | AV33: 10000 | AW33: =AW32 -> 0.25 | AY33: 42643.16343 | AZ33: 0 | BA33: 0 | BB33: 0 | BC33: 0 | BD33: 0 | BE33: 0 | BF33: 0 | BG33: 0 | BH33: 0 | BI33: 0 | BO33: See user manual if a composite scenario is required. That would be the case if only a subset of the buildings included in a given archetype is to be subjected to ECMs as opposed to the entire set of building included in one archetype.
A34: =CONCATENATE(IF(lang="English","Total (must matche value in Cell C18) ","Total (doit egaler valeur dans cellule C18 "),"Difference =",B34-C18) -> Total (must matche value in Cell C18) Difference =0 | B34: =SUM(B23:B33) -> 468 | C34: =SUM(C23:C33) -> 190 | D34: =SUM(D23:D33) -> 165 | F34: =SUM(F23:F33) -> 108 | G34: =SUM(G23:G33) -> 5 | H34: =SUM(H23:H33) -> 0 | J34: =IF(lang="English",BO21,BO22) -> Note: For the reference year, adjust count of most recent archetypes and their space heating methods to reflect the smaller building stock of the reference year. This can be done by consulting the vintage field in the property tax database, for example. Example, adjust numbers in Cells B30 to B33 to get to the estimated number of buildings as of the end of reference year chosen. See manual section on selecting reference year. Adjust number of heating system in Cells C30 to C33 and F30 to H33. By defining estimated number of electric furnace or baseboard, wood and heat pump, the number of fossil fuel heating system is automatically calculated to complete the count. | BO34: Voir le manuel d'utilisation si un scénario composite est requis. Ce serait le cas si seul un sous-ensemble des bâtiments inclus dans un archétype donné devait être soumis aux Mesures de Conservation d'Energie, par opposition à si l'ensemble des bâtiments inclus dans un archétype donné le serait.
A35: =IF(B34=C18,"OK",IF(lang="English","Error! See note in Cell J34","Erreur voir note dans cellule J34")) -> OK | C35: =C34/$B34 -> 0.405982906 | D35: =D34/$B34 -> 0.3525641026 | F35: =F34/$B34 -> 0.2307692308 | G35: =G34/$B34 -> 0.01068376068 | H35: =SUM(C34:H34) -> 468
A42: =IF(lang="English","Scenario number 2 year:","Scénario no. 2 année:") -> Scenario number 2 year: | B42: =T15 -> 2023 | C42: =CONCATENATE("Current year status ",T15) -> Current year status 2023 | H42: =IF(SUM(C43:D53)+SUM(F43:H53)=SUM(B43:B53),"","Building number does not match number of heating system entered") ->  | BP42: Les nom des archétypes sont en anglais et font partie intégrante des codes. Voici une légende pour interprète en français :
A43: =A$23 -> Before 1946 and 1946-1977 Small , Single Detached | B43: =INT(W$15*Statistics!AR54) -> 50 | C43: =INT($B43*Financial!O$126) -> 28 | D43: =B43-(C43+F43+G43+H43) -> 10 | E43: =Financial!O$129 -> 0.81 | F43: =INT(B43*Financial!O$130) -> 11 | G43: =INT(B43*Financial!O$131+0.5) -> 1 | I43: =Statistics!R$54/1000*(1-S43) -> 19.6324 | J43: Fossil fuel | O43: =O23 -> 13.5 | Q43: =Q23 -> 240 | X43: =IF(B43=C43+D43+F43+G43+H43,"","error") ->  | BP43: All before 1946 | BQ43: Touts les batiments avant 1946
A44: =A$24 -> Before 1946 and 1946-1977 , Single Attached, Apart., Mob. H. | B44: =INT(W$15*Statistics!AR55) -> 22 | C44: =INT($B44*Financial!O$126) -> 12 | D44: =B44-(C44+F44+G44+H44) -> 6 | E44: =Financial!O$129 -> 0.81 | F44: =INT(B44*Financial!O$130) -> 4 | G44: =INT(B44*Financial!O$131+0.5) -> 0 | I44: =Statistics!R$55/1000*(1-S44) -> 24.5587 | J44: Fossil fuel | O44: =O24 -> 13.5 | Q44: =Q24 -> 240 | R44: 6 | X44: =IF(B44=C44+D44+F44+G44+H44,"","error") ->  | BP44: Small | BQ44: petit
A45: =A$25 -> Before 1946 and 1946-1977 Large , Single Detached, Single Attached | B45: =INT(W$15*Statistics!AR56) -> 55 | C45: =INT($B45*Financial!O$126) -> 31 | D45: 11 | E45: =Financial!O$129 -> 0.81 | F45: =INT(B45*Financial!O$130) -> 12 | G45: =INT(B45*Financial!O$131+0.5) -> 1 | I45: =Statistics!R$56/1000*(1-S45) -> 21.2612 | J45: Fossil fuel | O45: 13.5 | Q45: 240 | BP45: Medium | BQ45: moyen
A46: =A$26 -> 1978-1995 Large , Single Detached | B46: =INT(W$15*Statistics!AR57) -> 34 | C46: =INT($B46*Financial!O$126) -> 19 | D46: 7 | E46: =Financial!O$129 -> 0.81 | F46: =INT(B46*Financial!O$130) -> 7 | G46: =INT(B46*Financial!O$131+0.5) -> 1 | I46: =Statistics!R$57/1000*(1-S46) -> 13.607 | J46: Fossil fuel | O46: 13.5 | Q46: 240 | BP46: Large | BQ46: grand
A47: =A$27 -> 1978-1995 Small , Single Attached, Apart., Mob. H. | B47: =INT(W$15*Statistics!AR58) -> 15 | C47: =INT($B47*Financial!O$126) -> 8 | D47: 4 | E47: =Financial!O$129 -> 0.81 | F47: =INT(B47*Financial!O$130) -> 3 | G47: =INT(B47*Financial!O$131+0.5) -> 0 | I47: =Statistics!R$58/1000*(1-S47) -> 14.843 | J47: Fossil fuel | O47: 13.5 | Q47: 240 | BP47: Mob. | BQ47: maison mobile
A48: =A$28 -> 1978-1995 , Single Detached, Single Detached, Apart. | B48: =INT(W$15*Statistics!AR59) -> 78 | C48: =INT($B48*Financial!O$126) -> 45 | D48: 15 | E48: =Financial!O$129 -> 0.81 | F48: =INT(B48*Financial!O$130) -> 17 | G48: =INT(B48*Financial!O$131+0.5) -> 1 | I48: =Statistics!R$59/1000*(1-S48) -> 7.3415 | J48: Fossil fuel | O48: 13.5 | Q48: 240 | BP48: Single detached | BQ48: Unifamilial detache
A49: =A$29 -> 1996-2010 Two storey , Single Detached, Single Attached, Apart., Mob. H. | B49: =INT(W$15*Statistics!AR60) -> 54 | C49: =INT($B49*Financial!O$126) -> 31 | D49: 10 | E49: =Financial!O$129 -> 0.81 | F49: =INT(B49*Financial!O$130) -> 12 | G49: =INT(B49*Financial!O$131+0.5) -> 1 | I49: =Statistics!R$60/1000*(1-S49) -> 19.7155 | J49: Fossil fuel | O49: 13.5 | Q49: 240 | BP49: Single attached | BQ49: duplex, quadruplex, maisons de ville
A50: =A$30 -> 1996-2010 Large, two storey , Single Detached, Single Attached | B50: =INT(W$15*Statistics!AR61) -> 41 | C50: =INT($B50*Financial!O$126) -> 23 | D50: 8 | E50: =Financial!O$129 -> 0.81 | F50: =INT(B50*Financial!O$130) -> 9 | G50: =INT(B50*Financial!O$131+0.5) -> 1 | I50: =Statistics!R$61/1000*(1-S50) -> 18.6578 | J50: Fossil fuel | O50: 13.5 | Q50: 240
A51: =A$31 -> 1996-2010 One storey , Single Detached, Single Attached | B51: =INT(W$15*Statistics!AR62) -> 41 | C51: =INT($B51*Financial!O$126) -> 23 | D51: 8 | E51: =Financial!O$129 -> 0.81 | F51: =INT(B51*Financial!O$130) -> 9 | G51: =INT(B51*Financial!O$131+0.5) -> 1 | I51: =Statistics!R$62/1000*(1-S51) -> 8.6114 | J51: Fossil fuel | O51: 13.5 | Q51: 240
A52: =A$32 -> 2011-2020 , Single Detached, Single Attached | B52: =INT(W$15*Statistics!AR63) -> 31 | C52: =INT($B52*Financial!O$126) -> 17 | D52: 7 | E52: =Financial!O$129 -> 0.81 | F52: =INT(B52*Financial!O$130) -> 6 | G52: =INT(B52*Financial!O$131+0.5) -> 1 | I52: =Statistics!R$63/1000*(1-S52) -> 6.9851 | J52: Fossil fuel | O52: 13.5 | Q52: 240
A53: =A$33 -> 2011-2020 Small , Single Detached, Single Attached, Apart., Mob. H. | B53: =W$15-SUM(B43:B52) -> 47 | C53: =INT($B53*Financial!O$126) -> 27 | D53: 9 | E53: =Financial!O$129 -> 0.81 | F53: =INT(B53*Financial!O$130) -> 10 | G53: =INT(B53*Financial!O$131+0.5) -> 1 | I53: =Statistics!R$64/1000*(1-S53) -> 11.3593 | J53: Fossil fuel | O53: 13.5 | Q53: 240
B54: =SUM(B43:B53) -> 468 | C54: =SUM(C43:C53) -> 264 | D54: =SUM(D43:D53) -> 95 | F54: =SUM(F43:F53) -> 100 | G54: =SUM(G43:G53) -> 9 | H54: =SUM(H43:H53) -> 0 | J54: =IF(lang="English",BO24,BO25) -> Note: For current status year, perform an approximate validation of the archetypes mix and heating methods. Adjust accordingly should there be significant discrepancies from the provincial averages used by CTAP. See "Statistics" Tab for assumptions. Total number of buildings in Cell B54 must be equal to Cell W15.
A55: =IF(B54=W15,"OK","Error! See note in Cell J54") -> OK | C55: =C54/$B54 -> 0.5641025641 | D55: =D54/$B54 -> 0.202991453 | F55: =F54/$B54 -> 0.2136752137 | G55: =G54/$B54 -> 0.01923076923 | H55: =SUM(C54:H54) -> 468
A62: =IF(lang="English","Scenario number 3 year:","Scénario no. 3 année:") -> Scenario number 3 year: | B62: 2027 | C62: 2027 Add 30% HP and Pre 1946 70% ECMs | H62: =IF(SUM(C63:D73)+SUM(F63:H73)=SUM(B63:B73),"","Building number does not match number of heating system entered") -> 
A63: =A$23 -> Before 1946 and 1946-1977 Small , Single Detached | B63: 114 | C63: 8 | D63: =B63-(C63+F63+G63+H63) -> 104 | E63: 0.9397164952 | F63: 1 | G63: 1 | I63: =Statistics!R$54/1000*(1-S63) -> 19.6324 | J63: Fossil fuel | O63: 13.5 | Q63: 240 | X63: =IF(B63=C63+D63+F63+G63+H63,"","error") -> 
A64: =A$24 -> Before 1946 and 1946-1977 , Single Attached, Apart., Mob. H. | B64: 479 | C64: 35 | D64: =B64-(C64+F64+G64+H64) -> 435 | E64: 0.9397164952 | F64: 5 | G64: 4 | I64: =Statistics!R$55/1000*(1-S64) -> 24.5587 | J64: Fossil fuel | O64: 13.5 | Q64: 240 | R64: 6 | X64: =IF(B64=C64+D64+F64+G64+H64,"","error") -> 
A65: =A$25 -> Before 1946 and 1946-1977 Large , Single Detached, Single Attached | B65: 327 | C65: 24 | D65: 297 | E65: 0.9397164952 | F65: 3 | G65: 3 | I65: =Statistics!R$56/1000*(1-S65) -> 21.2612 | J65: Fossil fuel | O65: 13.5 | Q65: 240
A66: =A$26 -> 1978-1995 Large , Single Detached | B66: 574 | C66: 42 | D66: 521 | E66: 0.9397164952 | F66: 6 | G66: 5 | I66: =Statistics!R$57/1000*(1-S66) -> 13.607 | J66: Fossil fuel | O66: 13.5 | Q66: 240
A67: =A$27 -> 1978-1995 Small , Single Attached, Apart., Mob. H. | B67: 355 | C67: 26 | D67: 322 | E67: 0.9397164952 | F67: 4 | G67: 3 | I67: =Statistics!R$58/1000*(1-S67) -> 14.843 | J67: Fossil fuel | O67: 13.5 | Q67: 240
A68: =A$28 -> 1978-1995 , Single Detached, Single Detached, Apart. | B68: 36 | C68: 2 | D68: 34 | E68: 0.9397164952 | F68: 0 | G68: 0 | I68: =Statistics!R$59/1000*(1-S68) -> 7.3415 | J68: Fossil fuel | O68: 13.5 | Q68: 240
A69: =A$29 -> 1996-2010 Two storey , Single Detached, Single Attached, Apart., Mob. H. | B69: 607 | C69: 44 | D69: 550 | E69: 0.9397164952 | F69: 7 | G69: 6 | I69: =Statistics!R$60/1000*(1-S69) -> 19.7155 | J69: Fossil fuel | O69: 13.5 | Q69: 240
A70: =A$30 -> 1996-2010 Large, two storey , Single Detached, Single Attached | B70: 147 | C70: 10 | D70: 135 | E70: 0.9397164952 | F70: 1 | G70: 1 | I70: =Statistics!R$61/1000*(1-S70) -> 18.6578 | J70: Fossil fuel | O70: 13.5 | Q70: 240
A71: =A$31 -> 1996-2010 One storey , Single Detached, Single Attached | B71: 268 | C71: 19 | D71: 243 | E71: 0.9397164952 | F71: 3 | G71: 3 | I71: =Statistics!R$62/1000*(1-S71) -> 8.6114 | J71: Fossil fuel | O71: 13.5 | Q71: 240
A72: =A$32 -> 2011-2020 , Single Detached, Single Attached | B72: 389 | C72: 28 | D72: 353 | E72: 0.9397164952 | F72: 4 | G72: 4 | I72: =Statistics!R$63/1000*(1-S72) -> 6.9851 | J72: Fossil fuel | O72: 13.5 | Q72: 240
A73: =A$33 -> 2011-2020 Small , Single Detached, Single Attached, Apart., Mob. H. | B73: 271 | C73: 19 | D73: 246 | E73: 0.9397164952 | F73: 3 | G73: 3 | I73: =Statistics!R$64/1000*(1-S73) -> 11.3593 | J73: Fossil fuel | O73: 13.5 | Q73: 240
A74: For future scenarios, adjust number of most recent archetypes to reflect antecipated growth. (Cell W15) | B74: =SUM(B63:B73) -> 3567 | C74: =SUM(C63:C73) -> 257 | D74: =SUM(D63:D73) -> 3240 | F74: =SUM(F63:F73) -> 37 | G74: =SUM(G63:G73) -> 33 | H74: =SUM(H63:H73) -> 0 | J74: =IF(lang="English",BO27,BO28) -> Scenario 1 and Scenario 2 are reserved for "Reference Year" and "Current Status" respectively. Scenarios 3 to 15 are to be used to develop future scenarios. In doing so, make sure that the number of dwellings is adjusted upwards by increasing the count of the most recent archetype to reflect antecipated growth. When adding dwellings with improved energy performance compared to the most recent archetype, this improved efficiency can be captured by the reduction in energy demand as per the improved design in Columns S to W.
C75: =C74/$B74 -> 0.07204934118 | D75: =D74/$B74 -> 0.9083263246 | F75: =F74/$B74 -> 0.01037286235 | G75: =G74/$B74 -> 0.009251471825 | H75: =SUM(C74:H74) -> 3567
A82: =IF(lang="English","Scenario number 4 year:","Scénario no. 4 année:") -> Scenario number 4 year: | B82: 2027 | C82: 2027 add Plug load ECM, 50% space heating Pre 1996 | H82: =IF(SUM(C83:D93)+SUM(F83:H93)=SUM(B83:B93),"","Building number does not match number of heating system entered") -> 
A83: =A$23 -> Before 1946 and 1946-1977 Small , Single Detached | B83: 492 | C83: 164 | D83: =B83-(C83+F83+G83+H83) -> 117 | E83: 0.95 | F83: 136 | G83: 75 | I83: =Statistics!R$54/1000*(1-S83) -> 5.88972 | J83: Fossil fuel | O83: 13.5 | Q83: 240 | S83: 0.7 | U83: 0.25 | W83: 0.25 | X83: =IF(B83=C83+D83+F83+G83+H83,"","error") -> 
A84: =A$24 -> Before 1946 and 1946-1977 , Single Attached, Apart., Mob. H. | B84: 376 | C84: 125 | D84: =B84-(C84+F84+G84+H84) -> 97 | E84: 0.95 | F84: 96 | G84: 58 | I84: =Statistics!R$55/1000*(1-S84) -> 12.27935 | J84: Fossil fuel | O84: 13.5 | Q84: 240 | R84: 6 | S84: 0.5 | W84: 0.25 | X84: =IF(B84=C84+D84+F84+G84+H84,"","error") -> 
A85: =A$25 -> Before 1946 and 1946-1977 Large , Single Detached, Single Attached | B85: 204 | C85: 68 | D85: 80 | E85: 0.95 | F85: 52 | G85: 4 | I85: =Statistics!R$56/1000*(1-S85) -> 10.6306 | J85: Fossil fuel | O85: 13.5 | Q85: 240 | S85: 0.5 | W85: 0.25
A86: =A$26 -> 1978-1995 Large , Single Detached | B86: 679 | C86: 227 | D86: 179 | E86: 0.95 | F86: 174 | G86: 99 | I86: =Statistics!R$57/1000*(1-S86) -> 6.8035 | J86: Fossil fuel | O86: 13.5 | Q86: 240 | S86: 0.5 | W86: 0.25
A87: =A$27 -> 1978-1995 Small , Single Attached, Apart., Mob. H. | B87: 328 | C87: 109 | D87: 88 | E87: 0.81 | F87: 84 | G87: 47 | I87: =Statistics!R$58/1000*(1-S87) -> 7.4215 | J87: Fossil fuel | O87: 13.5 | Q87: 240 | S87: 0.5 | W87: 0.25
A88: =A$28 -> 1978-1995 , Single Detached, Single Detached, Apart. | B88: 40 | C88: 13 | D88: 16 | E88: 0.81 | F88: 10 | G88: 1 | I88: =Statistics!R$59/1000*(1-S88) -> 3.67075 | J88: Fossil fuel | O88: 13.5 | Q88: 240 | S88: 0.5 | W88: 0.25
A89: =A$29 -> 1996-2010 Two storey , Single Detached, Single Attached, Apart., Mob. H. | B89: 579 | C89: 193 | D89: 146 | E89: 0.81 | F89: 148 | G89: 92 | I89: =Statistics!R$60/1000*(1-S89) -> 19.7155 | J89: Fossil fuel | O89: 13.5 | Q89: 240 | W89: 0.25
A90: =A$30 -> 1996-2010 Large, two storey , Single Detached, Single Attached | B90: 66 | C90: 22 | D90: 27 | E90: 0.81 | F90: 16 | G90: 1 | I90: =Statistics!R$61/1000*(1-S90) -> 18.6578 | J90: Fossil fuel | O90: 13.5 | Q90: 240 | W90: 0.25
A91: =A$31 -> 1996-2010 One storey , Single Detached, Single Attached | B91: 249 | C91: 83 | D91: 98 | E91: 0.81 | F91: 63 | G91: 5 | I91: =Statistics!R$62/1000*(1-S91) -> 8.6114 | J91: Fossil fuel | O91: 13.5 | Q91: 240 | W91: 0.25
A92: =A$32 -> 2011-2020 , Single Detached, Single Attached | B92: 381 | C92: 119 | D92: 139 | E92: 0.81 | F92: 91 | G92: 32 | I92: =Statistics!R$63/1000*(1-S92) -> 6.635845 | J92: Fossil fuel | O92: 13.5 | Q92: 240 | S92: 0.05 | W92: 0.25
A93: =A$33 -> 2011-2020 Small , Single Detached, Single Attached, Apart., Mob. H. | B93: 223 | C93: 66 | D93: 78 | E93: 0.81 | F93: 50 | G93: 29 | I93: =Statistics!R$64/1000*(1-S93) -> 10.791335 | J93: Fossil fuel | O93: 13.5 | Q93: 240 | S93: 0.05 | W93: 0.25
B94: =SUM(B83:B93) -> 3617 | C94: =SUM(C83:C93) -> 1189 | D94: =SUM(D83:D93) -> 1065 | F94: =SUM(F83:F93) -> 920 | G94: =SUM(G83:G93) -> 443 | H94: =SUM(H83:H93) -> 0 | J94: =IF(lang="English",BO30,BO31) -> When defining a future scenario, the interventions it contain can be cummulative to the ones included in the previous scenario. Alternatively, a scenario could be a totally new trial, starting from the current status scenario. To speed up the selections of interventions, the user can use the buttoms on the right to (1) copy the data defining the previous scenario into the one being worked on (the upper, blue button) or copy the data defining the current situation, when the scenario being worked on is a new approach all together (the lower, orange button). - This will take a few seconds - When changing data from the previous scenario, the cells are high-lighted for ease of refernce of the changes made.
C95: =C94/$B94 -> 0.3287254631 | D95: =D94/$B94 -> 0.2944429085 | F95: =F94/$B94 -> 0.2543544374 | G95: =G94/$B94 -> 0.122477191 | H95: =SUM(C94:H94) -> 3617
A102: =IF(lang="English","Scenario number 5 year:","Scénario no. 5 année:") -> Scenario number 5 year: | B102: 2030 | C102: 2030 add PV (80% of bldgs @ 4kWp) | H102: =IF(SUM(C103:D113)+SUM(F103:H113)=SUM(B103:B113),"","Building number does not match number of heating system entered") -> 
A103: =A$23 -> Before 1946 and 1946-1977 Small , Single Detached | B103: 492 | C103: 164 | D103: =B103-C103-G103-H103-F103 -> 117 | E103: 0.95 | F103: 136 | G103: 75 | I103: =Statistics!R$54/1000*(1-S103) -> 5.88972 | J103: Fossil fuel | L103: =0.8*B103 -> 393.6 | M103: 4 | O103: 13.5 | Q103: 240 | S103: 0.7 | U103: 0.25 | W103: 0.25 | X103: =IF(B103=C103+D103+F103+G103+H103,"","error") -> 
A104: =A$24 -> Before 1946 and 1946-1977 , Single Attached, Apart., Mob. H. | B104: 376 | C104: 125 | D104: =B104-C104-G104-H104-F104 -> 97 | E104: 0.95 | F104: 96 | G104: 58 | I104: =Statistics!R$55/1000*(1-S104) -> 12.27935 | J104: Fossil fuel | L104: =0.8*B104 -> 300.8 | M104: 4 | O104: 13.5 | Q104: 240 | R104: 6 | S104: 0.5 | W104: 0.25 | X104: =IF(B104=C104+D104+F104+G104+H104,"","error") -> 
A105: =A$25 -> Before 1946 and 1946-1977 Large , Single Detached, Single Attached | B105: 204 | C105: 68 | D105: 80 | E105: 0.95 | F105: 52 | G105: 4 | I105: =Statistics!R$56/1000*(1-S105) -> 10.6306 | J105: Fossil fuel | L105: 163.2 | M105: 4 | O105: 13.5 | Q105: 240 | S105: 0.5 | W105: 0.25
A106: =A$26 -> 1978-1995 Large , Single Detached | B106: 679 | C106: 227 | D106: 179 | E106: 0.95 | F106: 174 | G106: 99 | I106: =Statistics!R$57/1000*(1-S106) -> 6.8035 | J106: Fossil fuel | L106: 543.2 | M106: 4 | O106: 13.5 | Q106: 240 | S106: 0.5 | W106: 0.25
A107: =A$27 -> 1978-1995 Small , Single Attached, Apart., Mob. H. | B107: 328 | C107: 109 | D107: 88 | E107: 0.81 | F107: 84 | G107: 47 | I107: =Statistics!R$58/1000*(1-S107) -> 7.4215 | J107: Fossil fuel | L107: 262.4 | M107: 4 | O107: 13.5 | Q107: 240 | S107: 0.5 | W107: 0.25
A108: =A$28 -> 1978-1995 , Single Detached, Single Detached, Apart. | B108: 40 | C108: 13 | D108: 16 | E108: 0.81 | F108: 10 | G108: 1 | I108: =Statistics!R$59/1000*(1-S108) -> 3.67075 | J108: Fossil fuel | L108: 32 | M108: 4 | O108: 13.5 | Q108: 240 | S108: 0.5 | W108: 0.25
A109: =A$29 -> 1996-2010 Two storey , Single Detached, Single Attached, Apart., Mob. H. | B109: 579 | C109: 193 | D109: 146 | E109: 0.81 | F109: 148 | G109: 92 | I109: =Statistics!R$60/1000*(1-S109) -> 19.7155 | J109: Fossil fuel | L109: 463.2 | M109: 4 | O109: 13.5 | Q109: 240 | W109: 0.25
A110: =A$30 -> 1996-2010 Large, two storey , Single Detached, Single Attached | B110: 66 | C110: 22 | D110: 27 | E110: 0.81 | F110: 16 | G110: 1 | I110: =Statistics!R$61/1000*(1-S110) -> 18.6578 | J110: Fossil fuel | L110: 52.8 | M110: 4 | O110: 13.5 | Q110: 240 | W110: 0.25
A111: =A$31 -> 1996-2010 One storey , Single Detached, Single Attached | B111: 249 | C111: 83 | D111: 98 | E111: 0.81 | F111: 63 | G111: 5 | I111: =Statistics!R$62/1000*(1-S111) -> 8.6114 | J111: Fossil fuel | L111: 199.2 | M111: 4 | O111: 13.5 | Q111: 240 | W111: 0.25
A112: =A$32 -> 2011-2020 , Single Detached, Single Attached | B112: 381 | C112: 119 | D112: 139 | E112: 0.81 | F112: 91 | G112: 32 | I112: =Statistics!R$63/1000*(1-S112) -> 6.635845 | J112: Fossil fuel | L112: 304.8 | M112: 4 | O112: 13.5 | Q112: 240 | S112: 0.05 | W112: 0.25
A113: =A$33 -> 2011-2020 Small , Single Detached, Single Attached, Apart., Mob. H. | B113: 223 | C113: 66 | D113: 78 | E113: 0.81 | F113: 50 | G113: 29 | I113: =Statistics!R$64/1000*(1-S113) -> 10.791335 | J113: Fossil fuel | L113: 178.4 | M113: 4 | O113: 13.5 | Q113: 240 | S113: 0.05 | W113: 0.25
B114: =SUM(B103:B113) -> 3617 | C114: =SUM(C103:C113) -> 1189 | D114: =SUM(D103:D113) -> 1065 | F114: =SUM(F103:F113) -> 920 | G114: =SUM(G103:G113) -> 443 | H114: =SUM(H103:H113) -> 0 | J114: =IF(lang="English",BO33,BO34) -> See user manual if a composite scenario is required. That would be the case if only a subset of the buildings included in a given archetype is to be subjected to ECMs as opposed to the entire set of building included in one archetype.
C115: =C114/$B114 -> 0.3287254631 | D115: =D114/$B114 -> 0.2944429085 | F115: =F114/$B114 -> 0.2543544374 | G115: =G114/$B114 -> 0.122477191 | H115: =SUM(C114:H114) -> 3617
A122: =IF(lang="English","Scenario number 6 year:","Scénario no. 6 année:") -> Scenario number 6 year: | H122: =IF(SUM(C123:D133)+SUM(F123:H133)=SUM(B123:B133),"","Building number does not match number of heating system entered") -> 
A123: =A$23 -> Before 1946 and 1946-1977 Small , Single Detached | B123: 721 | C123: 241 | D123: =B123-C123-G123-H123-F123 -> 280 | E123: 0.81 | F123: 185 | G123: 15 | I123: =Statistics!R$54/1000*(1-S123) -> 19.6324 | J123: Fossil fuel | O123: 13.5 | Q123: 240 | X123: =IF(B123=C123+D123+F123+G123+H123,"","error") -> 
A124: =A$24 -> Before 1946 and 1946-1977 , Single Attached, Apart., Mob. H. | B124: 551 | C124: 184 | D124: =B124-C124-G124-H124-F124 -> 215 | E124: 0.81 | F124: 141 | G124: 11 | I124: =Statistics!R$55/1000*(1-S124) -> 24.5587 | J124: Fossil fuel | O124: 13.5 | Q124: 240 | R124: 6 | X124: =IF(B124=C124+D124+F124+G124+H124,"","error") -> 
A125: =A$25 -> Before 1946 and 1946-1977 Large , Single Detached, Single Attached | B125: 300 | C125: 100 | D125: 117 | E125: 0.81 | F125: 77 | G125: 6 | I125: =Statistics!R$56/1000*(1-S125) -> 21.2612 | J125: Fossil fuel | O125: 13.5 | Q125: 240
A126: =A$26 -> 1978-1995 Large , Single Detached | B126: 996 | C126: 333 | D126: 388 | E126: 0.81 | F126: 255 | G126: 20 | I126: =Statistics!R$57/1000*(1-S126) -> 13.607 | J126: Fossil fuel | O126: 13.5 | Q126: 240
A127: =A$27 -> 1978-1995 Small , Single Attached, Apart., Mob. H. | B127: 482 | C127: 161 | D127: 188 | E127: 0.81 | F127: 123 | G127: 10 | I127: =Statistics!R$58/1000*(1-S127) -> 14.843 | J127: Fossil fuel | O127: 13.5 | Q127: 240
A128: =A$28 -> 1978-1995 , Single Detached, Single Detached, Apart. | B128: 59 | C128: 19 | D128: 24 | E128: 0.81 | F128: 15 | G128: 1 | I128: =Statistics!R$59/1000*(1-S128) -> 7.3415 | J128: Fossil fuel | O128: 13.5 | Q128: 240
A129: =A$29 -> 1996-2010 Two storey , Single Detached, Single Attached, Apart., Mob. H. | B129: 850 | C129: 284 | D129: 331 | E129: 0.81 | F129: 218 | G129: 17 | I129: =Statistics!R$60/1000*(1-S129) -> 19.7155 | J129: Fossil fuel | O129: 13.5 | Q129: 240
A130: =A$30 -> 1996-2010 Large, two storey , Single Detached, Single Attached | B130: 97 | C130: 32 | D130: 39 | E130: 0.81 | F130: 24 | G130: 2 | I130: =Statistics!R$61/1000*(1-S130) -> 18.6578 | J130: Fossil fuel | O130: 13.5 | Q130: 240
A131: =A$31 -> 1996-2010 One storey , Single Detached, Single Attached | B131: 365 | C131: 122 | D131: 142 | E131: 0.81 | F131: 93 | G131: 8 | I131: =Statistics!R$62/1000*(1-S131) -> 8.6114 | J131: Fossil fuel | O131: 13.5 | Q131: 240
A132: =A$32 -> 2011-2020 , Single Detached, Single Attached | B132: 522 | C132: 174 | D132: 203 | E132: 0.81 | F132: 134 | G132: 11 | I132: =Statistics!R$63/1000*(1-S132) -> 6.9851 | J132: Fossil fuel | O132: 13.5 | Q132: 240
A133: =A$33 -> 2011-2020 Small , Single Detached, Single Attached, Apart., Mob. H. | B133: 304.7289615 | C133: 102 | D133: 118.7289615 | E133: 0.81 | F133: 78 | G133: 6 | I133: =Statistics!R$64/1000*(1-S133) -> 11.3593 | J133: Fossil fuel | O133: 13.5 | Q133: 240
B134: =SUM(B123:B133) -> 5247.728961 | C134: =SUM(C123:C133) -> 1752 | D134: =SUM(D123:D133) -> 2045.728961 | F134: =SUM(F123:F133) -> 1343 | G134: =SUM(G123:G133) -> 107 | H134: =SUM(H123:H133) -> 0
C135: =C134/$B134 -> 0.3338587059 | D135: =D134/$B134 -> 0.3898312921 | F135: =F134/$B134 -> 0.2559202295 | G135: =G134/$B134 -> 0.02038977256 | H135: =SUM(C134:H134) -> 5247.728961
A142: =IF(lang="English","Scenario number 7 year:","Scénario no. 7 année:") -> Scenario number 7 year: | H142: =IF(SUM(C143:D153)+SUM(F143:H153)=SUM(B143:B153),"","Building number does not match number of heating system entered") -> 
A143: =A$23 -> Before 1946 and 1946-1977 Small , Single Detached | B143: 721 | C143: 0 | D143: =B143-C143-G143-H143-F143 -> 721 | E143: 0 | F143: 0 | G143: 0 | I143: =Statistics!R$54/1000*(1-S143) -> 19.6324 | J143: Fossil fuel | O143: 13.5 | Q143: 240 | X143: =IF(B143=C143+D143+F143+G143+H143,"","error") -> 
A144: =A$24 -> Before 1946 and 1946-1977 , Single Attached, Apart., Mob. H. | B144: 551 | C144: 0 | D144: =B144-C144-G144-H144-F144 -> 551 | E144: 0 | F144: 0 | G144: 0 | I144: =Statistics!R$55/1000*(1-S144) -> 24.5587 | J144: Fossil fuel | O144: 13.5 | Q144: 240 | R144: 6 | X144: =IF(B144=C144+D144+F144+G144+H144,"","error") -> 
A145: =A$25 -> Before 1946 and 1946-1977 Large , Single Detached, Single Attached | B145: 299 | C145: 0 | D145: 299 | E145: 0 | F145: 0 | G145: 0 | I145: =Statistics!R$56/1000*(1-S145) -> 21.2612 | J145: Fossil fuel | O145: 13.5 | Q145: 240
A146: =A$26 -> 1978-1995 Large , Single Detached | B146: 996 | C146: 0 | D146: 996 | E146: 0 | F146: 0 | G146: 0 | I146: =Statistics!R$57/1000*(1-S146) -> 13.607 | J146: Fossil fuel | O146: 13.5 | Q146: 240
A147: =A$27 -> 1978-1995 Small , Single Attached, Apart., Mob. H. | B147: 481 | C147: 0 | D147: 481 | E147: 0 | F147: 0 | G147: 0 | I147: =Statistics!R$58/1000*(1-S147) -> 14.843 | J147: Fossil fuel | O147: 13.5 | Q147: 240
A148: =A$28 -> 1978-1995 , Single Detached, Single Detached, Apart. | B148: 60 | C148: 0 | D148: 60 | E148: 0 | F148: 0 | G148: 0 | I148: =Statistics!R$59/1000*(1-S148) -> 7.3415 | J148: Fossil fuel | O148: 13.5 | Q148: 240
A149: =A$29 -> 1996-2010 Two storey , Single Detached, Single Attached, Apart., Mob. H. | B149: 95 | C149: 0 | D149: 95 | E149: 0 | F149: 0 | G149: 0 | I149: =Statistics!R$60/1000*(1-S149) -> 19.7155 | J149: Fossil fuel | O149: 13.5 | Q149: 240
A150: =A$30 -> 1996-2010 Large, two storey , Single Detached, Single Attached | B150: 850 | C150: 0 | D150: 850 | E150: 0 | F150: 0 | G150: 0 | I150: =Statistics!R$61/1000*(1-S150) -> 18.6578 | J150: Fossil fuel | O150: 13.5 | Q150: 240
A151: =A$31 -> 1996-2010 One storey , Single Detached, Single Attached | B151: 366 | C151: 0 | D151: 366 | E151: 0 | F151: 0 | G151: 0 | I151: =Statistics!R$62/1000*(1-S151) -> 8.6114 | J151: Fossil fuel | O151: 13.5 | Q151: 240
A152: =A$32 -> 2011-2020 , Single Detached, Single Attached | B152: 522 | C152: 0 | D152: 522 | E152: 0 | F152: 0 | G152: 0 | I152: =Statistics!R$63/1000*(1-S152) -> 6.9851 | J152: Fossil fuel | O152: 13.5 | Q152: 240
A153: =A$33 -> 2011-2020 Small , Single Detached, Single Attached, Apart., Mob. H. | B153: 306.7289615 | C153: 0 | D153: 306.7289615 | E153: 0 | F153: 0 | G153: 0 | I153: =Statistics!R$64/1000*(1-S153) -> 11.3593 | J153: Fossil fuel | O153: 13.5 | Q153: 240
B154: =SUM(B143:B153) -> 5247.728961 | C154: =SUM(C143:C153) -> 0 | D154: =SUM(D143:D153) -> 5247.728961 | F154: =SUM(F143:F153) -> 0 | G154: =SUM(G143:G153) -> 0 | H154: =SUM(H143:H153) -> 0
C155: =C154/$B154 -> 0 | D155: =D154/$B154 -> 1 | F155: =F154/$B154 -> 0 | G155: =G154/$B154 -> 0 | H155: =SUM(C154:H154) -> 5247.728961
A162: =IF(lang="English","Scenario number 8 year:","Scénario no. 8 année:") -> Scenario number 8 year: | H162: =IF(SUM(C163:D173)+SUM(F163:H173)=SUM(B163:B173),"","Building number does not match number of heating system entered") -> 
A163: =A$23 -> Before 1946 and 1946-1977 Small , Single Detached | B163: 721 | C163: 0 | D163: =B163-C163-G163-H163-F163 -> 721 | E163: 0 | F163: 0 | G163: 0 | I163: =Statistics!R$54/1000*(1-S163) -> 19.6324 | J163: Fossil fuel | O163: 13.5 | Q163: 240 | X163: =IF(B163=C163+D163+F163+G163+H163,"","error") -> 
A164: =A$24 -> Before 1946 and 1946-1977 , Single Attached, Apart., Mob. H. | B164: 551 | C164: 0 | D164: =B164-C164-G164-H164-F164 -> 551 | E164: 0 | F164: 0 | G164: 0 | I164: =Statistics!R$55/1000*(1-S164) -> 24.5587 | J164: Fossil fuel | O164: 13.5 | Q164: 240 | R164: 6 | X164: =IF(B164=C164+D164+F164+G164+H164,"","error") -> 
A165: =A$25 -> Before 1946 and 1946-1977 Large , Single Detached, Single Attached | B165: 299 | C165: 0 | D165: 299 | E165: 0 | F165: 0 | G165: 0 | I165: =Statistics!R$56/1000*(1-S165) -> 21.2612 | J165: Fossil fuel | O165: 13.5 | Q165: 240
A166: =A$26 -> 1978-1995 Large , Single Detached | B166: 996 | C166: 0 | D166: 996 | E166: 0 | F166: 0 | G166: 0 | I166: =Statistics!R$57/1000*(1-S166) -> 13.607 | J166: Fossil fuel | O166: 13.5 | Q166: 240
A167: =A$27 -> 1978-1995 Small , Single Attached, Apart., Mob. H. | B167: 481 | C167: 0 | D167: 481 | E167: 0 | F167: 0 | G167: 0 | I167: =Statistics!R$58/1000*(1-S167) -> 14.843 | J167: Fossil fuel | O167: 13.5 | Q167: 240
A168: =A$28 -> 1978-1995 , Single Detached, Single Detached, Apart. | B168: 60 | C168: 0 | D168: 60 | E168: 0 | F168: 0 | G168: 0 | I168: =Statistics!R$59/1000*(1-S168) -> 7.3415 | J168: Fossil fuel | O168: 13.5 | Q168: 240
A169: =A$29 -> 1996-2010 Two storey , Single Detached, Single Attached, Apart., Mob. H. | B169: 95 | C169: 0 | D169: 95 | E169: 0 | F169: 0 | G169: 0 | I169: =Statistics!R$60/1000*(1-S169) -> 19.7155 | J169: Fossil fuel | O169: 13.5 | Q169: 240
A170: =A$30 -> 1996-2010 Large, two storey , Single Detached, Single Attached | B170: 850 | C170: 0 | D170: 850 | E170: 0 | F170: 0 | G170: 0 | I170: =Statistics!R$61/1000*(1-S170) -> 18.6578 | J170: Fossil fuel | O170: 13.5 | Q170: 240
A171: =A$31 -> 1996-2010 One storey , Single Detached, Single Attached | B171: 366 | C171: 0 | D171: 366 | E171: 0 | F171: 0 | G171: 0 | I171: =Statistics!R$62/1000*(1-S171) -> 8.6114 | J171: Fossil fuel | O171: 13.5 | Q171: 240
A172: =A$32 -> 2011-2020 , Single Detached, Single Attached | B172: 522 | C172: 0 | D172: 522 | E172: 0 | F172: 0 | G172: 0 | I172: =Statistics!R$63/1000*(1-S172) -> 6.9851 | J172: Fossil fuel | O172: 13.5 | Q172: 240
A173: =A$33 -> 2011-2020 Small , Single Detached, Single Attached, Apart., Mob. H. | B173: 306.7289615 | C173: 0 | D173: 306.7289615 | E173: 0 | F173: 0 | G173: 0 | I173: =Statistics!R$64/1000*(1-S173) -> 11.3593 | J173: Fossil fuel | O173: 13.5 | Q173: 240
B174: =SUM(B163:B173) -> 5247.728961 | C174: =SUM(C163:C173) -> 0 | D174: =SUM(D163:D173) -> 5247.728961 | F174: =SUM(F163:F173) -> 0 | G174: =SUM(G163:G173) -> 0 | H174: =SUM(H163:H173) -> 0
C175: =C174/$B174 -> 0 | D175: =D174/$B174 -> 1 | F175: =F174/$B174 -> 0 | G175: =G174/$B174 -> 0 | H175: =SUM(C174:H174) -> 5247.728961
A182: =IF(lang="English","Scenario number 9 year:","Scénario no. 9 année:") -> Scenario number 9 year: | H182: =IF(SUM(C183:D193)+SUM(F183:H193)=SUM(B183:B193),"","Building number does not match number of heating system entered") -> 
A183: =A$23 -> Before 1946 and 1946-1977 Small , Single Detached | B183: 721 | C183: 241 | D183: =B183-C183-G183-H183-F183 -> 280 | E183: 0.81 | F183: 185 | G183: 15 | I183: =Statistics!R$54/1000*(1-S183) -> 19.6324 | J183: Fossil fuel | O183: 13.5 | Q183: 240 | X183: =IF(B183=C183+D183+F183+G183+H183,"","error") -> 
A184: =A$24 -> Before 1946 and 1946-1977 , Single Attached, Apart., Mob. H. | B184: 551 | C184: 184 | D184: =B184-C184-G184-H184-F184 -> 215 | E184: 0.81 | F184: 141 | G184: 11 | I184: =Statistics!R$55/1000*(1-S184) -> 24.5587 | J184: Fossil fuel | O184: 13.5 | Q184: 240 | R184: 6 | X184: =IF(B184=C184+D184+F184+G184+H184,"","error") -> 
A185: =A$25 -> Before 1946 and 1946-1977 Large , Single Detached, Single Attached | B185: 300 | C185: 100 | D185: 117 | E185: 0.81 | F185: 77 | G185: 6 | I185: =Statistics!R$56/1000*(1-S185) -> 21.2612 | J185: Fossil fuel | O185: 13.5 | Q185: 240
A186: =A$26 -> 1978-1995 Large , Single Detached | B186: 996 | C186: 333 | D186: 388 | E186: 0.81 | F186: 255 | G186: 20 | I186: =Statistics!R$57/1000*(1-S186) -> 13.607 | J186: Fossil fuel | O186: 13.5 | Q186: 240
A187: =A$27 -> 1978-1995 Small , Single Attached, Apart., Mob. H. | B187: 482 | C187: 161 | D187: 188 | E187: 0.81 | F187: 123 | G187: 10 | I187: =Statistics!R$58/1000*(1-S187) -> 14.843 | J187: Fossil fuel | O187: 13.5 | Q187: 240
A188: =A$28 -> 1978-1995 , Single Detached, Single Detached, Apart. | B188: 59 | C188: 19 | D188: 24 | E188: 0.81 | F188: 15 | G188: 1 | I188: =Statistics!R$59/1000*(1-S188) -> 7.3415 | J188: Fossil fuel | O188: 13.5 | Q188: 240
A189: =A$29 -> 1996-2010 Two storey , Single Detached, Single Attached, Apart., Mob. H. | B189: 850 | C189: 284 | D189: 331 | E189: 0.81 | F189: 218 | G189: 17 | I189: =Statistics!R$60/1000*(1-S189) -> 19.7155 | J189: Fossil fuel | O189: 13.5 | Q189: 240
A190: =A$30 -> 1996-2010 Large, two storey , Single Detached, Single Attached | B190: 97 | C190: 32 | D190: 39 | E190: 0.81 | F190: 24 | G190: 2 | I190: =Statistics!R$61/1000*(1-S190) -> 18.6578 | J190: Fossil fuel | O190: 13.5 | Q190: 240
A191: =A$31 -> 1996-2010 One storey , Single Detached, Single Attached | B191: 365 | C191: 122 | D191: 142 | E191: 0.81 | F191: 93 | G191: 8 | I191: =Statistics!R$62/1000*(1-S191) -> 8.6114 | J191: Fossil fuel | O191: 13.5 | Q191: 240
A192: =A$32 -> 2011-2020 , Single Detached, Single Attached | B192: 522 | C192: 174 | D192: 203 | E192: 0.81 | F192: 134 | G192: 11 | I192: =Statistics!R$63/1000*(1-S192) -> 6.9851 | J192: Fossil fuel | O192: 13.5 | Q192: 240
A193: =A$33 -> 2011-2020 Small , Single Detached, Single Attached, Apart., Mob. H. | B193: 304.7289615 | C193: 102 | D193: 118.7289615 | E193: 0.81 | F193: 78 | G193: 6 | I193: =Statistics!R$64/1000*(1-S193) -> 11.3593 | J193: Fossil fuel | O193: 13.5 | Q193: 240
B194: =SUM(B183:B193) -> 5247.728961 | C194: =SUM(C183:C193) -> 1752 | D194: =SUM(D183:D193) -> 2045.728961 | F194: =SUM(F183:F193) -> 1343 | G194: =SUM(G183:G193) -> 107 | H194: =SUM(H183:H193) -> 0
C195: =C194/$B194 -> 0.3338587059 | D195: =D194/$B194 -> 0.3898312921 | F195: =F194/$B194 -> 0.2559202295 | G195: =G194/$B194 -> 0.02038977256 | H195: =SUM(C194:H194) -> 5247.728961
A202: =IF(lang="English","Scenario number 10 year:","Scénario no. 10 année:") -> Scenario number 10 year: | H202: =IF(SUM(C203:D213)+SUM(F203:H213)=SUM(B203:B213),"","Building number does not match number of heating system entered") -> 
A203: =A$23 -> Before 1946 and 1946-1977 Small , Single Detached | B203: 333 | C203: 267 | D203: =B203-C203-G203-H203-F203 -> 37 | E203: 0.78 | F203: 28 | G203: 1 | I203: =Statistics!R$54/1000*(1-S203) -> 19.6324 | J203: Fossil fuel | O203: 13.5 | Q203: 240 | X203: =IF(B203=C203+D203+F203+G203+H203,"","error") -> 
A204: =A$24 -> Before 1946 and 1946-1977 , Single Attached, Apart., Mob. H. | B204: 19 | C204: 15 | D204: =B204-C204-G204-H204-F204 -> 3 | E204: 0.78 | F204: 1 | G204: 0 | I204: =Statistics!R$55/1000*(1-S204) -> 24.5587 | J204: Fossil fuel | O204: 13.5 | Q204: 240 | R204: 6 | X204: =IF(B204=C204+D204+F204+G204+H204,"","error") -> 
A205: =A$25 -> Before 1946 and 1946-1977 Large , Single Detached, Single Attached | B205: 1122 | C205: 902 | D205: 120 | E205: 0.78 | F205: 95 | G205: 5 | I205: =Statistics!R$56/1000*(1-S205) -> 21.2612 | J205: Fossil fuel | O205: 13.5 | Q205: 240
A206: =A$26 -> 1978-1995 Large , Single Detached | B206: 136 | C206: 109 | D206: 16 | E206: 0.78 | F206: 11 | G206: 0 | I206: =Statistics!R$57/1000*(1-S206) -> 13.607 | J206: Fossil fuel | O206: 13.5 | Q206: 240
A207: =A$27 -> 1978-1995 Small , Single Attached, Apart., Mob. H. | B207: 26 | C207: 20 | D207: 4 | E207: 0.78 | F207: 2 | G207: 0 | I207: =Statistics!R$58/1000*(1-S207) -> 14.843 | J207: Fossil fuel | O207: 13.5 | Q207: 240
A208: =A$28 -> 1978-1995 , Single Detached, Single Detached, Apart. | B208: 186 | C208: 149 | D208: 22 | E208: 0.78 | F208: 15 | G208: 0 | I208: =Statistics!R$59/1000*(1-S208) -> 7.3415 | J208: Fossil fuel | O208: 13.5 | Q208: 240
A209: =A$29 -> 1996-2010 Two storey , Single Detached, Single Attached, Apart., Mob. H. | B209: 1527 | C209: 1227 | D209: 164 | E209: 0.78 | F209: 129 | G209: 7 | I209: =Statistics!R$60/1000*(1-S209) -> 19.7155 | J209: Fossil fuel | O209: 13.5 | Q209: 240
A210: =A$30 -> 1996-2010 Large, two storey , Single Detached, Single Attached | B210: 1151 | C210: 925 | D210: 124 | E210: 0.78 | F210: 97 | G210: 5 | I210: =Statistics!R$61/1000*(1-S210) -> 18.6578 | J210: Fossil fuel | O210: 13.5 | Q210: 240
A211: =A$31 -> 1996-2010 One storey , Single Detached, Single Attached | B211: 70 | C211: 56 | D211: 9 | E211: 0.78 | F211: 5 | G211: 0 | I211: =Statistics!R$62/1000*(1-S211) -> 8.6114 | J211: Fossil fuel | O211: 13.5 | Q211: 240
A212: =A$32 -> 2011-2020 , Single Detached, Single Attached | B212: 70 | C212: 56 | D212: 9 | E212: 0.78 | F212: 5 | G212: 0 | I212: =Statistics!R$63/1000*(1-S212) -> 6.9851 | J212: Fossil fuel | O212: 13.5 | Q212: 240
A213: =A$33 -> 2011-2020 Small , Single Detached, Single Attached, Apart., Mob. H. | B213: 892.4498873 | C213: 717 | D213: 96.44988731 | E213: 0.78 | F213: 75 | G213: 4 | I213: =Statistics!R$64/1000*(1-S213) -> 11.3593 | J213: Fossil fuel | O213: 13.5 | Q213: 240
B214: =SUM(B203:B213) -> 5532.449887 | C214: =SUM(C203:C213) -> 4443 | D214: =SUM(D203:D213) -> 604.4498873 | F214: =SUM(F203:F213) -> 463 | G214: =SUM(G203:G213) -> 22 | H214: =SUM(H203:H213) -> 0
C215: =C214/$B214 -> 0.8030800261 | D215: =D214/$B214 -> 0.109255375 | F215: =F214/$B214 -> 0.08368806034 | G215: =G214/$B214 -> 0.003976538504 | H215: =SUM(C214:H214) -> 5532.449887
A222: =IF(lang="English","Scenario number 11 year:","Scénario no. 11 année:") -> Scenario number 11 year: | H222: =IF(SUM(C223:D233)+SUM(F223:H233)=SUM(B223:B233),"","Building number does not match number of heating system entered") -> 
A223: =A$23 -> Before 1946 and 1946-1977 Small , Single Detached | B223: 333 | C223: 267 | D223: =B223-C223-G223-H223-F223 -> 37 | E223: 0.78 | F223: 28 | G223: 1 | I223: =Statistics!R$54/1000*(1-S223) -> 19.6324 | J223: Fossil fuel | O223: 13.5 | Q223: 240 | X223: =IF(B223=C223+D223+F223+G223+H223,"","error") -> 
A224: =A$24 -> Before 1946 and 1946-1977 , Single Attached, Apart., Mob. H. | B224: 19 | C224: 15 | D224: =B224-C224-G224-H224-F224 -> 3 | E224: 0.78 | F224: 1 | G224: 0 | I224: =Statistics!R$55/1000*(1-S224) -> 24.5587 | J224: Fossil fuel | O224: 13.5 | Q224: 240 | R224: 6 | X224: =IF(B224=C224+D224+F224+G224+H224,"","error") -> 
A225: =A$25 -> Before 1946 and 1946-1977 Large , Single Detached, Single Attached | B225: 1122 | C225: 902 | D225: 120 | E225: 0.78 | F225: 95 | G225: 5 | I225: =Statistics!R$56/1000*(1-S225) -> 21.2612 | J225: Fossil fuel | O225: 13.5 | Q225: 240
A226: =A$26 -> 1978-1995 Large , Single Detached | B226: 136 | C226: 109 | D226: 16 | E226: 0.78 | F226: 11 | G226: 0 | I226: =Statistics!R$57/1000*(1-S226) -> 13.607 | J226: Fossil fuel | O226: 13.5 | Q226: 240
A227: =A$27 -> 1978-1995 Small , Single Attached, Apart., Mob. H. | B227: 26 | C227: 20 | D227: 4 | E227: 0.78 | F227: 2 | G227: 0 | I227: =Statistics!R$58/1000*(1-S227) -> 14.843 | J227: Fossil fuel | O227: 13.5 | Q227: 240
A228: =A$28 -> 1978-1995 , Single Detached, Single Detached, Apart. | B228: 186 | C228: 149 | D228: 22 | E228: 0.78 | F228: 15 | G228: 0 | I228: =Statistics!R$59/1000*(1-S228) -> 7.3415 | J228: Fossil fuel | O228: 13.5 | Q228: 240
A229: =A$29 -> 1996-2010 Two storey , Single Detached, Single Attached, Apart., Mob. H. | B229: 1527 | C229: 1227 | D229: 164 | E229: 0.78 | F229: 129 | G229: 7 | I229: =Statistics!R$60/1000*(1-S229) -> 19.7155 | J229: Fossil fuel | O229: 13.5 | Q229: 240
A230: =A$30 -> 1996-2010 Large, two storey , Single Detached, Single Attached | B230: 1151 | C230: 925 | D230: 124 | E230: 0.78 | F230: 97 | G230: 5 | I230: =Statistics!R$61/1000*(1-S230) -> 18.6578 | J230: Fossil fuel | O230: 13.5 | Q230: 240
A231: =A$31 -> 1996-2010 One storey , Single Detached, Single Attached | B231: 70 | C231: 56 | D231: 9 | E231: 0.78 | F231: 5 | G231: 0 | I231: =Statistics!R$62/1000*(1-S231) -> 8.6114 | J231: Fossil fuel | O231: 13.5 | Q231: 240
A232: =A$32 -> 2011-2020 , Single Detached, Single Attached | B232: 70 | C232: 56 | D232: 9 | E232: 0.78 | F232: 5 | G232: 0 | I232: =Statistics!R$63/1000*(1-S232) -> 6.9851 | J232: Fossil fuel | O232: 13.5 | Q232: 240
A233: =A$33 -> 2011-2020 Small , Single Detached, Single Attached, Apart., Mob. H. | B233: 892.4498873 | C233: 717 | D233: 96.44988731 | E233: 0.78 | F233: 75 | G233: 4 | I233: =Statistics!R$64/1000*(1-S233) -> 11.3593 | J233: Fossil fuel | O233: 13.5 | Q233: 240
B234: =SUM(B223:B233) -> 5532.449887 | C234: =SUM(C223:C233) -> 4443 | D234: =SUM(D223:D233) -> 604.4498873 | F234: =SUM(F223:F233) -> 463 | G234: =SUM(G223:G233) -> 22 | H234: =SUM(H223:H233) -> 0
C235: =C234/$B234 -> 0.8030800261 | D235: =D234/$B234 -> 0.109255375 | F235: =F234/$B234 -> 0.08368806034 | G235: =G234/$B234 -> 0.003976538504 | H235: =SUM(C234:H234) -> 5532.449887
A242: =IF(lang="English","Scenario number 12 year:","Scénario no. 12 année:") -> Scenario number 12 year: | H242: =IF(SUM(C243:D253)+SUM(F243:H253)=SUM(B243:B253),"","Building number does not match number of heating system entered") -> 
A243: =A$23 -> Before 1946 and 1946-1977 Small , Single Detached | B243: 333 | C243: 267 | D243: =B243-C243-G243-H243-F243 -> 37 | E243: 0.78 | F243: 28 | G243: 1 | I243: =Statistics!R$54/1000*(1-S243) -> 19.6324 | J243: Fossil fuel | O243: 13.5 | Q243: 240 | X243: =IF(B243=C243+D243+F243+G243+H243,"","error") -> 
A244: =A$24 -> Before 1946 and 1946-1977 , Single Attached, Apart., Mob. H. | B244: 19 | C244: 15 | D244: =B244-C244-G244-H244-F244 -> 3 | E244: 0.78 | F244: 1 | G244: 0 | I244: =Statistics!R$55/1000*(1-S244) -> 24.5587 | J244: Fossil fuel | O244: 13.5 | Q244: 240 | R244: 6 | X244: =IF(B244=C244+D244+F244+G244+H244,"","error") -> 
A245: =A$25 -> Before 1946 and 1946-1977 Large , Single Detached, Single Attached | B245: 1122 | C245: 902 | D245: 120 | E245: 0.78 | F245: 95 | G245: 5 | I245: =Statistics!R$56/1000*(1-S245) -> 21.2612 | J245: Fossil fuel | O245: 13.5 | Q245: 240
A246: =A$26 -> 1978-1995 Large , Single Detached | B246: 136 | C246: 109 | D246: 16 | E246: 0.78 | F246: 11 | G246: 0 | I246: =Statistics!R$57/1000*(1-S246) -> 13.607 | J246: Fossil fuel | O246: 13.5 | Q246: 240
A247: =A$27 -> 1978-1995 Small , Single Attached, Apart., Mob. H. | B247: 26 | C247: 20 | D247: 4 | E247: 0.78 | F247: 2 | G247: 0 | I247: =Statistics!R$58/1000*(1-S247) -> 14.843 | J247: Fossil fuel | O247: 13.5 | Q247: 240
A248: =A$28 -> 1978-1995 , Single Detached, Single Detached, Apart. | B248: 186 | C248: 149 | D248: 22 | E248: 0.78 | F248: 15 | G248: 0 | I248: =Statistics!R$59/1000*(1-S248) -> 7.3415 | J248: Fossil fuel | O248: 13.5 | Q248: 240
A249: =A$29 -> 1996-2010 Two storey , Single Detached, Single Attached, Apart., Mob. H. | B249: 1527 | C249: 1227 | D249: 164 | E249: 0.78 | F249: 129 | G249: 7 | I249: =Statistics!R$60/1000*(1-S249) -> 19.7155 | J249: Fossil fuel | O249: 13.5 | Q249: 240
A250: =A$30 -> 1996-2010 Large, two storey , Single Detached, Single Attached | B250: 1151 | C250: 925 | D250: 124 | E250: 0.78 | F250: 97 | G250: 5 | I250: =Statistics!R$61/1000*(1-S250) -> 18.6578 | J250: Fossil fuel | O250: 13.5 | Q250: 240
A251: =A$31 -> 1996-2010 One storey , Single Detached, Single Attached | B251: 70 | C251: 56 | D251: 9 | E251: 0.78 | F251: 5 | G251: 0 | I251: =Statistics!R$62/1000*(1-S251) -> 8.6114 | J251: Fossil fuel | O251: 13.5 | Q251: 240
A252: =A$32 -> 2011-2020 , Single Detached, Single Attached | B252: 70 | C252: 56 | D252: 9 | E252: 0.78 | F252: 5 | G252: 0 | I252: =Statistics!R$63/1000*(1-S252) -> 6.9851 | J252: Fossil fuel | O252: 13.5 | Q252: 240
A253: =A$33 -> 2011-2020 Small , Single Detached, Single Attached, Apart., Mob. H. | B253: 892.4498873 | C253: 717 | D253: 96.44988731 | E253: 0.78 | F253: 75 | G253: 4 | I253: =Statistics!R$64/1000*(1-S253) -> 11.3593 | J253: Fossil fuel | O253: 13.5 | Q253: 240
B254: =SUM(B243:B253) -> 5532.449887 | C254: =SUM(C243:C253) -> 4443 | D254: =SUM(D243:D253) -> 604.4498873 | F254: =SUM(F243:F253) -> 463 | G254: =SUM(G243:G253) -> 22 | H254: =SUM(H243:H253) -> 0
C255: =C254/$B254 -> 0.8030800261 | D255: =D254/$B254 -> 0.109255375 | F255: =F254/$B254 -> 0.08368806034 | G255: =G254/$B254 -> 0.003976538504 | H255: =SUM(C254:H254) -> 5532.449887
A262: =IF(lang="English","Scenario number 13 year:","Scénario no. 13 année:") -> Scenario number 13 year: | H262: =IF(SUM(C263:D273)+SUM(F263:H273)=SUM(B263:B273),"","Building number does not match number of heating system entered") -> 
A263: =A$23 -> Before 1946 and 1946-1977 Small , Single Detached | B263: 333 | C263: 267 | D263: =B263-C263-G263-H263-F263 -> 37 | E263: 0.78 | F263: 28 | G263: 1 | I263: =Statistics!R$54/1000*(1-S263) -> 19.6324 | J263: Fossil fuel | O263: 13.5 | Q263: 240 | X263: =IF(B263=C263+D263+F263+G263+H263,"","error") -> 
A264: =A$24 -> Before 1946 and 1946-1977 , Single Attached, Apart., Mob. H. | B264: 19 | C264: 15 | D264: =B264-C264-G264-H264-F264 -> 3 | E264: 0.78 | F264: 1 | G264: 0 | I264: =Statistics!R$55/1000*(1-S264) -> 24.5587 | J264: Fossil fuel | O264: 13.5 | Q264: 240 | R264: 6 | X264: =IF(B264=C264+D264+F264+G264+H264,"","error") -> 
A265: =A$25 -> Before 1946 and 1946-1977 Large , Single Detached, Single Attached | B265: 1122 | C265: 902 | D265: 120 | E265: 0.78 | F265: 95 | G265: 5 | I265: =Statistics!R$56/1000*(1-S265) -> 21.2612 | J265: Fossil fuel | O265: 13.5 | Q265: 240
A266: =A$26 -> 1978-1995 Large , Single Detached | B266: 136 | C266: 109 | D266: 16 | E266: 0.78 | F266: 11 | G266: 0 | I266: =Statistics!R$57/1000*(1-S266) -> 13.607 | J266: Fossil fuel | O266: 13.5 | Q266: 240
A267: =A$27 -> 1978-1995 Small , Single Attached, Apart., Mob. H. | B267: 26 | C267: 20 | D267: 4 | E267: 0.78 | F267: 2 | G267: 0 | I267: =Statistics!R$58/1000*(1-S267) -> 14.843 | J267: Fossil fuel | O267: 13.5 | Q267: 240
A268: =A$28 -> 1978-1995 , Single Detached, Single Detached, Apart. | B268: 186 | C268: 149 | D268: 22 | E268: 0.78 | F268: 15 | G268: 0 | I268: =Statistics!R$59/1000*(1-S268) -> 7.3415 | J268: Fossil fuel | O268: 13.5 | Q268: 240
A269: =A$29 -> 1996-2010 Two storey , Single Detached, Single Attached, Apart., Mob. H. | B269: 1527 | C269: 1227 | D269: 164 | E269: 0.78 | F269: 129 | G269: 7 | I269: =Statistics!R$60/1000*(1-S269) -> 19.7155 | J269: Fossil fuel | O269: 13.5 | Q269: 240
A270: =A$30 -> 1996-2010 Large, two storey , Single Detached, Single Attached | B270: 1151 | C270: 925 | D270: 124 | E270: 0.78 | F270: 97 | G270: 5 | I270: =Statistics!R$61/1000*(1-S270) -> 18.6578 | J270: Fossil fuel | O270: 13.5 | Q270: 240
A271: =A$31 -> 1996-2010 One storey , Single Detached, Single Attached | B271: 70 | C271: 56 | D271: 9 | E271: 0.78 | F271: 5 | G271: 0 | I271: =Statistics!R$62/1000*(1-S271) -> 8.6114 | J271: Fossil fuel | O271: 13.5 | Q271: 240
A272: =A$32 -> 2011-2020 , Single Detached, Single Attached | B272: 70 | C272: 56 | D272: 9 | E272: 0.78 | F272: 5 | G272: 0 | I272: =Statistics!R$63/1000*(1-S272) -> 6.9851 | J272: Fossil fuel | O272: 13.5 | Q272: 240
... 31 more rows

Sheet Financial
A1: ='User Input Output'!K18 -> New Brunswick Aberdeen
G2: =IF(lang="English","Order of magnitude Unit Costs for GHG Reduction Measures","Coût unitaire estimé pour les mesures d’économie d’énergie") -> Order of magnitude Unit Costs for GHG Reduction Measures | S2: =IF(lang="English","See explanations of A B C D and E below","Voir explications pour A B C D et E ci-bas") -> See explanations of A B C D and E below
T3: A | U3: B | V3: C | W3: D | X3: E | Z3: Scenario | AB3: =Scenario -> 1
A4: Archétype | B4: Superficie moyenne du batiment | C4: nombre de batiments | D4: charge thermique de pointe (tonnes/bâtiment) apres MEEs | E4: Charge de refroidissement maximale (tonnes/bâtiment) apres MEEs | F4: Capacité du jeu de batteries (kWh) | G4: Capacité de stockage thermique (kWh) | H4: Pompe a chaleur source air coût fixe de base ($/unité) | I4: Pompe a chaleur source air coût variable ($/tonnes) | J4: Pompe a chaleur: (allocation moyenne pour la mise à jour / ajustement des conduits) ($/pi2) | K4: (allocation moyenne de mise à niveau du service électrique) ($/unité) | L4: Pompe a chaleur source sol prix de base ($/unite) | M4: Pompe a chaleur source sol coût de base ($/unite) | N4: Système à eau chaude solaire installé ($/unité) | O4: Pompe à chaleur pour eau chaude coût par unité | P4: Système panneaux solair coût par kWp | Q4: coût indirect pour system electricity solaire par building | R4: coût des batteries ($/kWh) | S4: coût du stockage thermique ($/kWh) | T4: reduction de la charge thermique (%) | U4: Reduction de la charge de refroidissement (%) | V4: Reduction de l'energie pour eau chaude (%) | W4: Reduction des charge selectriques en general | X4: Reduction des charge de lumiere (%) | Z4: Order of magnitude costs of measures for entire inventory
A5: ='User Input Output'!A2 -> Archetype | B5: Average area per building (ft²) | C5: # of Buildings | D5: Peak heat load post measures (tons/ building) | E5: Post measures Peak cooling load (tons/ building) | F5: Battery bank capacity (kWhrs) | G5: Thermal storage capacity (kWhrs) | H5: ASHP (intercept equipment) ( $/unit) | I5: ASHP ($/ton) | J5: AS/GS HP (ductwork upgrade average allowance) ($/ft2) | K5: AS/GS HP (electrical service upgrade avg allowance) ($/unit) | L5: GSHP (intercept equipment) ($/unit) | M5: GSHP ($/ton) | N5: SDHW ($/each) | O5: DHW HP ($/each) | P5: PV ($/kWp) | Q5: indirect cost PV installation ($/building) | R5: Battery ($/kWhr) | S5: # Thermal Storage ($/kWhr) | T5: Heating Load % Reduction ($/ft2/%) | U5: Cooling Load % Reduction ($/ft2/%) | V5: DHW % Reduction avg allowance ($/dwelling/%) | W5: Plug Load reduction ($/dwelling/%) | X5: Lighting Load % Reduction ($/ft2/%) | Z5: ='User Input Output'!AW2 -> ASHP Cost | AA5: ='User Input Output'!AX2 -> GSHP Cost | AB5: ='User Input Output'!AY2 -> SDHW (INPUT) | AC5: ='User Input Output'!AZ2 -> PV #(INPUT) | AD5: ='User Input Output'!BA2 -> Battery Cost | AE5: ='User Input Output'!BB2 -> Thermal Storage | AF5: ='User Input Output'!BC2 -> Heating Load Reduction | AG5: ='User Input Output'!BD2 -> Cooling Load Reduction | AH5: ='User Input Output'!BE2 -> DHW Reduction | AI5: ='User Input Output'!BF2 -> Plug Load reduction | AJ5: ='User Input Output'!BG2 -> Lighting Load Reduction | AK5: total
A6: ='User Input Output'!A3 -> Before 1946 and 1946-1977 Small , Single Detached | B6: ='User Input Output'!Y3 -> 1192.641274 | C6: ='User Input Output'!Z3 -> 50 | D6: ='User Input Output'!AA3 -> 2.386088749 | E6: ='User Input Output'!AB3 -> 0 | F6: ='User Input Output'!AC3 -> 13.5 | G6: ='User Input Output'!AD3 -> 240 | H6: 1500 | I6: 1200 | J6: 1.5 | K6: 5000 | L6: 5000 | M6: 5000 | N6: 2500 | O6: 4000 | P6: 2200 | Q6: 2000 | R6: 800 | S6: 200 | T6: 1 | U6: 0 | V6: =1000/33 -> 30.3030303 | W6: =14000/50 -> 280 | X6: =10*80/75/1800 -> 0.005925925926 | Z6: ='User Input Output'!AW3 -> 0 | AA6: ='User Input Output'!AX3 -> 0 | AB6: ='User Input Output'!AY3 -> 0 | AC6: ='User Input Output'!AZ3 -> 0 | AD6: ='User Input Output'!BA3 -> 10800 | AE6: ='User Input Output'!BB3 -> 0 | AF6: ='User Input Output'!BC3 -> 0 | AG6: ='User Input Output'!BD3 -> 0 | AH6: ='User Input Output'!BE3 -> 0 | AI6: ='User Input Output'!BF3 -> 0 | AJ6: ='User Input Output'!BG3 -> 0 | AK6: =SUM(Z6:AJ6)-MIN(AF6:AG6) -> 10800
A7: ='User Input Output'!A4 -> Before 1946 and 1946-1977 , Single Attached, Apart., Mob. H. | B7: ='User Input Output'!Y4 -> 1226.009396 | C7: ='User Input Output'!Z4 -> 22 | D7: ='User Input Output'!AA4 -> 1.356825201 | E7: ='User Input Output'!AB4 -> 0 | F7: ='User Input Output'!AC4 -> 13.5 | G7: ='User Input Output'!AD4 -> 240 | H7: =H6 -> 1500 | I7: 1200 | J7: 1 | K7: 3000 | L7: 5000 | M7: 5000 | N7: 2500 | O7: =O6 -> 4000 | P7: 2200 | Q7: 2000 | R7: =R6 -> 800 | S7: 100 | T7: 1 | U7: 0 | V7: =V6 -> 30.3030303 | W7: =14000/50 -> 280 | X7: =10*80/75/1800 -> 0.005925925926 | Z7: ='User Input Output'!AW4 -> 0 | AA7: ='User Input Output'!AX4 -> 0 | AB7: ='User Input Output'!AY4 -> 0 | AC7: ='User Input Output'!AZ4 -> 0 | AD7: ='User Input Output'!BA4 -> 0 | AE7: ='User Input Output'!BB4 -> 0 | AF7: ='User Input Output'!BC4 -> 0 | AG7: ='User Input Output'!BD4 -> 0 | AH7: ='User Input Output'!BE4 -> 0 | AI7: ='User Input Output'!BF4 -> 0 | AJ7: ='User Input Output'!BG4 -> 0 | AK7: =SUM(Z7:AJ7)-MIN(AF7:AG7) -> 0
A8: ='User Input Output'!A5 -> Before 1946 and 1946-1977 Large , Single Detached, Single Attached | B8: ='User Input Output'!Y5 -> 2209.830809 | C8: ='User Input Output'!Z5 -> 55 | D8: ='User Input Output'!AA5 -> 1.874971602 | E8: ='User Input Output'!AB5 -> 0 | F8: ='User Input Output'!AC5 -> 13.5 | G8: ='User Input Output'!AD5 -> 240 | H8: =H7 -> 1500 | I8: 1200 | J8: 0.5 | K8: 3000 | L8: 5000 | M8: 5000 | N8: 2500 | O8: =O7 -> 4000 | P8: 2200 | Q8: 2000 | R8: =R7 -> 800 | S8: =S7 -> 100 | T8: 1 | U8: 0 | V8: 30.3030303 | W8: 280 | X8: 0.005925925926 | Z8: ='User Input Output'!AW5 -> 0 | AA8: ='User Input Output'!AX5 -> 0 | AB8: ='User Input Output'!AY5 -> 0 | AC8: ='User Input Output'!AZ5 -> 0 | AD8: ='User Input Output'!BA5 -> 0 | AE8: ='User Input Output'!BB5 -> 0 | AF8: ='User Input Output'!BC5 -> 0 | AG8: ='User Input Output'!BD5 -> 0 | AH8: ='User Input Output'!BE5 -> 0 | AI8: ='User Input Output'!BF5 -> 0 | AJ8: ='User Input Output'!BG5 -> 0 | AK8: 0
A9: ='User Input Output'!A6 -> 1978-1995 Large , Single Detached | B9: ='User Input Output'!Y6 -> 1948.267785 | C9: ='User Input Output'!Z6 -> 34 | D9: ='User Input Output'!AA6 -> 2.870799735 | E9: ='User Input Output'!AB6 -> 0 | F9: ='User Input Output'!AC6 -> 13.5 | G9: ='User Input Output'!AD6 -> 240 | H9: 1500 | I9: 1200 | J9: 2 | K9: 3000 | L9: 5000 | M9: 5000 | N9: 3500 | O9: 4000 | P9: 2200 | Q9: 2000 | R9: =R8 -> 800 | S9: 100 | T9: 0.8 | U9: 0 | V9: 30.3030303 | W9: 280 | X9: 0.005925925926 | Z9: ='User Input Output'!AW6 -> 0 | AA9: ='User Input Output'!AX6 -> 0 | AB9: ='User Input Output'!AY6 -> 0 | AC9: ='User Input Output'!AZ6 -> 0 | AD9: ='User Input Output'!BA6 -> 0 | AE9: ='User Input Output'!BB6 -> 0 | AF9: ='User Input Output'!BC6 -> 0 | AG9: ='User Input Output'!BD6 -> 0 | AH9: ='User Input Output'!BE6 -> 0 | AI9: ='User Input Output'!BF6 -> 0 | AJ9: ='User Input Output'!BG6 -> 0 | AK9: 0
A10: ='User Input Output'!A7 -> 1978-1995 Small , Single Attached, Apart., Mob. H. | B10: ='User Input Output'!Y7 -> 938.6129883 | C10: ='User Input Output'!Z7 -> 15 | D10: ='User Input Output'!AA7 -> 2.639917609 | E10: ='User Input Output'!AB7 -> 0 | F10: ='User Input Output'!AC7 -> 13.5 | G10: ='User Input Output'!AD7 -> 240 | H10: 1500 | I10: 1200 | J10: 1.5 | K10: 3000 | L10: 5000 | M10: 5000 | N10: 3500 | O10: 4000 | P10: 2200 | Q10: 2000 | R10: 800 | S10: 100 | T10: 0.8 | U10: 0 | V10: 30.3030303 | W10: 280 | X10: 0.005925925926 | Z10: ='User Input Output'!AW7 -> 0 | AA10: ='User Input Output'!AX7 -> 0 | AB10: ='User Input Output'!AY7 -> 0 | AC10: ='User Input Output'!AZ7 -> 0 | AD10: ='User Input Output'!BA7 -> 0 | AE10: ='User Input Output'!BB7 -> 0 | AF10: ='User Input Output'!BC7 -> 0 | AG10: ='User Input Output'!BD7 -> 0 | AH10: ='User Input Output'!BE7 -> 0 | AI10: ='User Input Output'!BF7 -> 0 | AJ10: ='User Input Output'!BG7 -> 0 | AK10: 0
A11: ='User Input Output'!A8 -> 1978-1995 , Single Detached, Single Detached, Apart. | B11: ='User Input Output'!Y8 -> 1778.198001 | C11: ='User Input Output'!Z8 -> 78 | D11: ='User Input Output'!AA8 -> 4.448831705 | E11: ='User Input Output'!AB8 -> 0 | F11: ='User Input Output'!AC8 -> 13.5 | G11: ='User Input Output'!AD8 -> 240 | H11: 1500 | I11: 1200 | J11: 1 | K11: 2000 | L11: 5000 | M11: 5000 | N11: 3500 | O11: 4000 | P11: 2200 | Q11: 2000 | R11: 800 | S11: 100 | T11: 0.8 | U11: 0 | V11: 30.3030303 | W11: 280 | X11: 0.005925925926 | Z11: ='User Input Output'!AW8 -> 0 | AA11: ='User Input Output'!AX8 -> 0 | AB11: ='User Input Output'!AY8 -> 0 | AC11: ='User Input Output'!AZ8 -> 0 | AD11: ='User Input Output'!BA8 -> 0 | AE11: ='User Input Output'!BB8 -> 0 | AF11: ='User Input Output'!BC8 -> 0 | AG11: ='User Input Output'!BD8 -> 0 | AH11: ='User Input Output'!BE8 -> 0 | AI11: ='User Input Output'!BF8 -> 0 | AJ11: ='User Input Output'!BG8 -> 0 | AK11: 0
A12: ='User Input Output'!A9 -> 1996-2010 Two storey , Single Detached, Single Attached, Apart., Mob. H. | B12: ='User Input Output'!Y9 -> 1390.697226 | C12: ='User Input Output'!Z9 -> 54 | D12: ='User Input Output'!AA9 -> 2.382470552 | E12: ='User Input Output'!AB9 -> 0 | F12: ='User Input Output'!AC9 -> 13.5 | G12: ='User Input Output'!AD9 -> 240 | H12: 1500 | I12: 1200 | J12: 1.5 | K12: 2000 | L12: 5000 | M12: 5000 | N12: 3000 | O12: 4000 | P12: 2200 | Q12: 2000 | R12: 800 | S12: 100 | T12: 0.7 | U12: 0 | V12: 30.3030303 | W12: 280 | X12: 0.005925925926 | Z12: ='User Input Output'!AW9 -> 0 | AA12: ='User Input Output'!AX9 -> 0 | AB12: ='User Input Output'!AY9 -> 0 | AC12: ='User Input Output'!AZ9 -> 0 | AD12: ='User Input Output'!BA9 -> 0 | AE12: ='User Input Output'!BB9 -> 0 | AF12: ='User Input Output'!BC9 -> 0 | AG12: ='User Input Output'!BD9 -> 0 | AH12: ='User Input Output'!BE9 -> 0 | AI12: ='User Input Output'!BF9 -> 0 | AJ12: ='User Input Output'!BG9 -> 0 | AK12: 0
A13: ='User Input Output'!A10 -> 1996-2010 Large, two storey , Single Detached, Single Attached | B13: ='User Input Output'!Y10 -> 2903.026639 | C13: ='User Input Output'!Z10 -> 41 | D13: ='User Input Output'!AA10 -> 5.343389903 | E13: ='User Input Output'!AB10 -> 1.293101481 | F13: ='User Input Output'!AC10 -> 13.5 | G13: ='User Input Output'!AD10 -> 240 | H13: 2500 | I13: 1200 | J13: 2 | K13: 2000 | L13: 5000 | M13: 5000 | N13: 2500 | O13: 4000 | P13: 2200 | Q13: 2000 | R13: 800 | S13: 100 | T13: 0.7 | U13: 0 | V13: 30.3030303 | W13: 280 | X13: 0.005925925926 | Z13: ='User Input Output'!AW10 -> 0 | AA13: ='User Input Output'!AX10 -> 0 | AB13: ='User Input Output'!AY10 -> 0 | AC13: ='User Input Output'!AZ10 -> 0 | AD13: ='User Input Output'!BA10 -> 0 | AE13: ='User Input Output'!BB10 -> 0 | AF13: ='User Input Output'!BC10 -> 0 | AG13: ='User Input Output'!BD10 -> 0 | AH13: ='User Input Output'!BE10 -> 0 | AI13: ='User Input Output'!BF10 -> 0 | AJ13: ='User Input Output'!BG10 -> 0 | AK13: 0
A14: ='User Input Output'!A11 -> 1996-2010 One storey , Single Detached, Single Attached | B14: ='User Input Output'!Y11 -> 2224.900283 | C14: ='User Input Output'!Z11 -> 41 | D14: ='User Input Output'!AA11 -> 3.269069884 | E14: ='User Input Output'!AB11 -> 0 | F14: ='User Input Output'!AC11 -> 13.5 | G14: ='User Input Output'!AD11 -> 240 | H14: 2500 | I14: 1200 | J14: 2 | K14: 2000 | L14: 5000 | M14: 5000 | N14: 2500 | O14: 4000 | P14: 2200 | Q14: 2000 | R14: 800 | S14: 100 | T14: 0.7 | U14: 0 | V14: 30.3030303 | W14: 280 | X14: 0.005925925926 | Z14: ='User Input Output'!AW11 -> 0 | AA14: ='User Input Output'!AX11 -> 0 | AB14: ='User Input Output'!AY11 -> 0 | AC14: ='User Input Output'!AZ11 -> 0 | AD14: ='User Input Output'!BA11 -> 0 | AE14: ='User Input Output'!BB11 -> 0 | AF14: ='User Input Output'!BC11 -> 0 | AG14: ='User Input Output'!BD11 -> 0 | AH14: ='User Input Output'!BE11 -> 0 | AI14: ='User Input Output'!BF11 -> 0 | AJ14: ='User Input Output'!BG11 -> 0 | AK14: 0
A15: ='User Input Output'!A12 -> 2011-2020 , Single Detached, Single Attached | B15: ='User Input Output'!Y12 -> 2060.212454 | C15: ='User Input Output'!Z12 -> 31 | D15: ='User Input Output'!AA12 -> 3.483017004 | E15: ='User Input Output'!AB12 -> 0 | F15: ='User Input Output'!AC12 -> 13.5 | G15: ='User Input Output'!AD12 -> 240 | H15: 2500 | I15: 1000 | J15: 1 | K15: 2000 | L15: 5000 | M15: 5000 | N15: 2500 | O15: 4000 | P15: 2200 | Q15: 2000 | R15: 800 | S15: 100 | T15: 0.7 | U15: 0 | V15: 30.3030303 | W15: 280 | X15: 0.005925925926 | Z15: ='User Input Output'!AW12 -> 0 | AA15: ='User Input Output'!AX12 -> 0 | AB15: ='User Input Output'!AY12 -> 0 | AC15: ='User Input Output'!AZ12 -> 0 | AD15: ='User Input Output'!BA12 -> 0 | AE15: ='User Input Output'!BB12 -> 0 | AF15: ='User Input Output'!BC12 -> 0 | AG15: ='User Input Output'!BD12 -> 0 | AH15: ='User Input Output'!BE12 -> 0 | AI15: ='User Input Output'!BF12 -> 0 | AJ15: ='User Input Output'!BG12 -> 0 | AK15: 0
A16: ='User Input Output'!A13 -> 2011-2020 Small , Single Detached, Single Attached, Apart., Mob. H. | B16: ='User Input Output'!Y13 -> 1103.300818 | C16: ='User Input Output'!Z13 -> 47 | D16: ='User Input Output'!AA13 -> 3.293299565 | E16: ='User Input Output'!AB13 -> 0 | F16: ='User Input Output'!AC13 -> 13.5 | G16: ='User Input Output'!AD13 -> 240 | H16: 2500 | I16: 1000 | J16: 4 | K16: 2000 | L16: 5000 | M16: 5000 | N16: 2000 | O16: 4000 | P16: 2200 | Q16: 2000 | R16: =R15 -> 800 | S16: 100 | T16: 0.7 | U16: 0 | V16: 30.3030303 | W16: 280 | X16: 0.005925925926 | Z16: ='User Input Output'!AW13 -> 0 | AA16: ='User Input Output'!AX13 -> 0 | AB16: ='User Input Output'!AY13 -> 0 | AC16: ='User Input Output'!AZ13 -> 0 | AD16: ='User Input Output'!BA13 -> 0 | AE16: ='User Input Output'!BB13 -> 0 | AF16: ='User Input Output'!BC13 -> 0 | AG16: ='User Input Output'!BD13 -> 0 | AH16: ='User Input Output'!BE13 -> 0 | AI16: ='User Input Output'!BF13 -> 0 | AJ16: ='User Input Output'!BG13 -> 0 | AK16: 0
AJ17: Total | AK17: =SUM(AK6:AK16) -> 10800
C18: =IF(lang="English","Electricity rates input table","Tableau d’entrée des tarifs d’électricité") -> Electricity rates input table | J18: Heating oil price | L18: 2.25 | M18: $/l | N18: $/kWh | Q18: Wood | R18: Bois | S18: 140 | T18: $/cord
C19: =IF(lang="English","Fixed rate","Taux fixe") -> Fixed rate | E19: 0.15 | F19: $/kWh | J19: Oil | L19: =3.785*L18/0.555 -> 15.34459459 | M19: $/GJ | N19: =L19/278 -> 0.05519638343 | Q19: Wood | R19: Bois | S19: 21 | T19: GJ/cord | W19: Example
C20: =IF(lang="English","Time of Use (TOU) Rates:","Tarifs d'électricité selon l'heure d'utilisation") -> Time of Use (TOU) Rates: | J20: Natural gas price | L20: 0.25 | M20: $/m3 | Q20: Wood | R20: Bois | S20: =S18/S19 -> 6.666666667 | T20: $/GJ | U20: =S20/278 -> 0.02398081535 | W20: 70000 | X20: DER cost
C21: =IF(lang="English","Hours of day starting at:","Heures de la journée à partir de:") -> Hours of day starting at: | D21: =IF(lang="English","Any day","Tous les jours") -> Any day | E21: =IF(lang="English","Summer weekend","Fin de semaine été") -> Summer weekend | F21: =IF(lang="English","Winter week day","Jours de semaine hiver") -> Winter week day | G21: =IF(lang="English","Winter weekend","Fin de semaine hiver") -> Winter weekend | J21: Gas | L21: =L20/0.038 -> 6.578947368 | M21: $/GJ | N21: =L21/278 -> 0.0236652783 | Q21: =IF(lang="English","Wood stove average efficiency","Efficacité moyenne du poêle à bois") -> Wood stove average efficiency | S21: 0.65 | W21: 0.5 | X21: Efficiency gain
C22: 0 | D22: 0.0962 | E22: =D22 -> 0.0962 | F22: =E22 -> 0.0962 | G22: =F22 -> 0.0962 | J22: Propane gas price | L22: 1.27 | M22: $/l | W22: 2000 | X22: ft2 area
C23: 1 | D23: =D22 -> 0.0962 | E23: =E22 -> 0.0962 | F23: =F22 -> 0.0962 | G23: =G22 -> 0.0962 | J23: Propane | L23: 47 | M23: $/GJ | N23: =L23/278 -> 0.1690647482 | W23: 0.7 | X23: $/ft/%
C24: 2 | D24: =D23 -> 0.0962 | E24: 0.0962 | F24: =F23 -> 0.0962 | G24: =G23 -> 0.0962
C25: 3 | D25: 0.0962 | E25: 0.0962 | F25: 0.0962 | G25: 0.0962 | I25: =IF(lang="English","The following parameters are used to calculate the GHG emissions from electricity and from gas. Default values provided:","Les paramètres suivants sont utilisés pour calculer les émissions de GES de l'électricité et du gaz. Valeurs par défaut fournies :") -> The following parameters are used to calculate the GHG emissions from electricity and from gas. Default values provided: | P25: =IF(lang="English","Unit costs per ft2 explanation"," Explication des coûts unitaires par pied carré") -> Unit costs per ft2 explanation
C26: 4 | D26: 0.0962 | E26: 0.0962 | F26: 0.0962 | G26: 0.0962 | P26: A | Q26: =IF(lang="English","For each % point of reduction, for each ft2, this unit cost applies. Example: 50% reduction X 2000 ft2 x $0.75/%/ft2 = $75,000","Pour chaque point de % de réduction, pour chaque pi2, ce coût unitaire s'applique. Exemple : réduction de 50 % X 2 000 pi2 x 0,75 $/%/pi2 = 75 000 $.") -> For each % point of reduction, for each ft2, this unit cost applies. Example: 50% reduction X 2000 ft2 x $0.75/%/ft2 = $75,000
C27: 5 | D27: 0.0962 | E27: 0.0962 | F27: 0.0962 | G27: 0.0962
C28: 6 | D28: 0.0962 | E28: 0.0962 | F28: 0.0962 | G28: 0.0962 | I28: Bois | J28: Wood | L28: 0.004 | M28: kgCO2e/kWh
C29: 7 | D29: 0.0962 | E29: 0.0962 | F29: 0.0962 | G29: 0.0962 | I29: GN | J29: NG | L29: =56/277.8 -> 0.2015838733 | M29: kgCO2e/kWh | P29: B | Q29: =IF(lang="English","Same calculation as above. But usually in our cold climate, heat load reduction yield similar cooling load reduction, so carefull not to double count. ","Même calcul que ci-dessus. Mais généralement, dans notre climat froid, la réduction de la charge thermique entraîne une réduction similaire de la charge de refroidissement, alors faites attention à ne pas compter deux fois.") -> Same calculation as above. But usually in our cold climate, heat load reduction yield similar cooling load reduction, so carefull not to double count.
C30: 8 | D30: 0.0962 | E30: 0.0962 | F30: 0.0962 | G30: 0.0962 | I30: Huile | J30: Oil | L30: 0.245 | M30: =M29 -> kgCO2e/kWh
C31: 9 | D31: 0.0962 | E31: 0.0962 | F31: 0.0962 | G31: 0.0962 | I31: Propane | J31: Propane | L31: 0.21 | M31: =M30 -> kgCO2e/kWh
C32: 10 | D32: 0.0962 | E32: 0.0962 | F32: 0.0962 | G32: 0.0962 | J32: =IF(lang="English","Scope 1 carbon allowance for:","Quota carbone de la portée 1 pour :") -> Scope 1 carbon allowance for: | P32: C | Q32: =IF(lang="English","For each % reduction in hot water energy, this unit cost applies. Example, 33% saving at $30/% means investment of $1000 required.","Pour chaque % de réduction d’énergie pour l’eau chaude, ce coût unitaire s’applique. Par exemple, une économie de 33 % à 30 $/% signifie un investissement de 1 000 $ requis.") -> For each % reduction in hot water energy, this unit cost applies. Example, 33% saving at $30/% means investment of $1000 required.
C33: 11 | D33: 0.0962 | E33: 0.0962 | F33: 0.0962 | G33: 0.0962 | I33: GN | J33: Gas | K33: =IF(lang="English","SCope 1 GHG for NG fugitive is assumed to be 0.6% and with GWP100:","GES pour GN fugitif estime avec GWP100 a 0.6%:") -> SCope 1 GHG for NG fugitive is assumed to be 0.6% and with GWP100: | N33: =0.6/2.7*0.32 -> 0.07111111111
C34: 12 | D34: 0.0962 | E34: 0.0962 | F34: 0.0962 | G34: 0.0962 | I34: Electricite | J34: Electricity | N34: 0.05
C35: 13 | D35: 0.0962 | E35: 0.0962 | F35: 0.0962 | G35: 0.0962 | I35: Huile | J35: Oil | N35: 0.01 | P35: D | Q35: =IF(lang="English","For each % reduction in plug load energy, this unit cost applies. Example, 40% saving at $250/% means investment of $10,000 required.","Pour chaque % de réduction de l’énergie de charge de prises de courant, ce coût unitaire s’applique. Par exemple, une économie de 40 % à 250 $/% signifie un investissement de 10 000 $ requis.") -> For each % reduction in plug load energy, this unit cost applies. Example, 40% saving at $250/% means investment of $10,000 required.
C36: 14 | D36: 0.0962 | E36: 0.0962 | F36: 0.0962 | G36: 0.0962 | I36: Propane | J36: Propane | N36: 0.03
C37: 15 | D37: 0.0962 | E37: 0.0962 | F37: 0.0962 | G37: 0.0962 | I37: =IF(lang="English","(These are added to the nominal emission factor )","(Ceux-ci s'ajoutent aux facteurs d'émission nominaux)") -> (These are added to the nominal emission factor )
C38: 16 | D38: 0.2406 | E38: =E37 -> 0.0962 | F38: 0.0962 | G38: 0.0962 | N38: =75*1800*0.006 -> 810 | P38: E | Q38: =IF(lang="English","For each % point of reduction for lights, for each ft2, this unit cost applies. Example: 75% reduction X 1800 ft2 x $0.006/%/ft2 = $810.","Pour chaque point de % de réduction pour les luminaires, pour chaque pi2, ce coût unitaire s'applique. Exemple : réduction de 75 % X 1 800 pi2 x 0,006 $/%/pi2 = 810 $.") -> For each % point of reduction for lights, for each ft2, this unit cost applies. Example: 75% reduction X 1800 ft2 x $0.006/%/ft2 = $810.
C39: 17 | D39: 0.2406 | E39: 0.0962 | F39: 0.0962 | G39: 0.0962
C40: 18 | D40: 0.2406 | E40: 0.0962 | F40: 0.0962 | G40: 0.0962 | O40: =IF(lang="English","Year","Année") -> Year
C41: 19 | D41: 0.2406 | E41: 0.0962 | F41: 0.0962 | G41: 0.0962 | I41: =IF(lang="english","Community level renewable energy project","Projet d'énergie renouvelable au niveau communautaire") -> Community level renewable energy project | O41: 2030 | Q41: The unit costs provided are default values only. They provide an order of magnitude for the overall investment. Local task force should validate these, especially as projects are completed and costs better understood.
C42: 20 | D42: 0.2406 | E42: 0.0962 | F42: 0.0962 | G42: 0.0962 | I42: =IF(lang="English","Estimated Annual Power Generation","Production annuelle d’électricité estimée") -> Estimated Annual Power Generation | N42: 2000 | O42: MWh
C43: 21 | D43: 0.0962 | E43: 0.0962 | F43: 0.0962 | G43: 0.0962 | I43: =IF(lang="English","LCA GHG emission per kWh","Valeur ACV GES") -> LCA GHG emission per kWh | N43: 100 | O43: g CO2e/kWh | Q43: Les coûts unitaires fournis sont uniquement des valeurs par défaut. Ils donnent un ordre de grandeur pour l’investissement global. Le groupe de travail local devrait les valider, d’autant plus que les projets sont terminés et que les coûts sont mieux compris.
C44: 22 | D44: 0.0962 | E44: 0.0962 | F44: 0.0962 | G44: 0.0962 | I44: =IF(lang="English","Note: this energy source can only be credited to the building sector.","Attention : cette source d'énergie doit etre dédiée au secteur du bâtiment") -> Note: this energy source can only be credited to the building sector.
C45: 23 | D45: 0.0962 | E45: 0.0962 | F45: 0.0962 | G45: 0.0962 | I45: The impact of such a project appears in the result matrix as "Community level renewable energy project credit (kg/CO2)". See sample LCA GHG emission values below. L'impact d'un tel projet apparaît dans la matrice de résultats dans "Crédit pour un projet d'énergie renouvelable au niveau communautaire (kg/CO2)". Voir exemples des valeurs d'emission pour differentes technologies ci-bas.
Q47: =IF(lang="English","Note: LCA = Life Cycle Analysis","Note: ACV = Analyse du cylce de vie") -> Note: LCA = Life Cycle Analysis
C49: Sample LCA GHG emission values (g CO2e / kWhr)
C50: Exemple des valeurs ACV d'emission pour differentes technologies (g CO2e / kWhr)
J51: Minimum | K51: 25th percentile | L51: Median | M51: 75th percentile | N51: Maximum
C52: Photovoltaics // photovoltaique | J52: 20 | K52: 40 | L52: 55 | M52: 80 | N52: 220
C53: Concentrating Solar power // solaire a concentration | J53: 10 | K53: 15 | L53: 20 | M53: 25 | N53: 250
C54: Wind // éolien | J54: 5 | K54: 10 | L54: 15 | M54: 20 | N54: 80
C55: Nuclear // nucléaire | J55: 10 | K55: 12 | L55: 15 | M55: 20 | N55: 240
C56: NG combine cycle // Production d'elec. au gas naturel | J56: 380 | L56: 450 | N56: 750
C57: Coal / Charbon | J57: 700 | L57: 950 | N57: 1700
C62: SOURCE:
C63: Life Cycle Assessment Harmonization | Energy Analysis | NREL, Gavin Heat, The National Renewable Energy Laboratory is a national laboratory of the U.S. Department of Energy, Office of Energy Efficiency and Renewable Energy, operated by the Alliance for Sustainable Energy LLC., 2023.
C66: hhtps://www.nrel.gov/analysis/life-cycle-assessment.html
A86: Information below is for programmer only. Information ci-dessous pour programmeur seulement.
B100: Imported from the Statistic Tab, existing heating systems % by type:
B101: Linear extrapolation based on 2019 to 2020 changes | I101: Reference year selected by User | M101: Sourced default efficiencies (see snips beside) | N101: Assumned default efficiencies
B102: From NEUD data in "Statistics" Tab | I102: ='Scenarios definition'!C17 -> 2005
B103: 2021 | C103: 2022 | D103: 2023 | E103: 2024 | F103: 2025 | G103: 2026 | H103: in play
N104: =I102 -> 2005 | O104: Current
A105: Heating Oil – Normal Efficiency | B105: =IF((Statistics!AF33+(Statistics!$AF33-Statistics!$AE33))/100<0,0,(Statistics!AF33+(Statistics!$AF33-Statistics!$AE33))/100) -> 0 | C105: =IF(B105+(Statistics!$AF33-Statistics!$AE33)/100<0,0,B105+(Statistics!$AF33-Statistics!$AE33)/100) -> 0 | D105: =IF(C105+(Statistics!$AF33-Statistics!$AE33)/100<0,0,C105+(Statistics!$AF33-Statistics!$AE33)/100) -> 0 | E105: =IF(D105+(Statistics!$AF33-Statistics!$AE33)/100<0,0,D105+(Statistics!$AF33-Statistics!$AE33)/100) -> 0 | F105: =IF(E105+(Statistics!$AF33-Statistics!$AE33)/100<0,0,E105+(Statistics!$AF33-Statistics!$AE33)/100) -> 0 | G105: =IF(F105+(Statistics!$AF33-Statistics!$AE33)/100<0,0,F105+(Statistics!$AF33-Statistics!$AE33)/100) -> 0 | H105: =SUMIF(Financial!B$103:G$103,'Scenarios definition'!T$15,Financial!B105:G105) -> 0 | I105: =SUMIF(Statistics!L$31:AF$31,Financial!I$102,Statistics!L33:AF33)/100 -> 0.01208727 | J105: =Statistics!K33 -> Heating Oil – Normal Efficiency | M105: 0.72 | N105: =IF(SUM(I105:I107)=80%,0,(M105*I105+M106*I106+I107*M107)/(+I106+I107+I105)) -> 0.8059305492 | O105: =IF((+E106+E107+E105)=0,M106,(M105*E105+M106*E106+E107*M107)/(+E106+E107+E105)) -> 0.81 | P105: Oil
A106: Heating Oil – Medium Efficiency | B106: =IF((Statistics!AF34+(Statistics!$AF34-Statistics!$AE34))/100<0,0,(Statistics!AF34+(Statistics!$AF34-Statistics!$AE34))/100) -> 0.1636407 | C106: =IF(B106+(Statistics!$AF34-Statistics!$AE34)/100<0,0,B106+(Statistics!$AF34-Statistics!$AE34)/100) -> 0.14641134 | D106: =IF(C106+(Statistics!$AF34-Statistics!$AE34)/100<0,0,C106+(Statistics!$AF34-Statistics!$AE34)/100) -> 0.12918198 | E106: =IF(D106+(Statistics!$AF34-Statistics!$AE34)/100<0,0,D106+(Statistics!$AF34-Statistics!$AE34)/100) -> 0.11195262 | F106: =IF(E106+(Statistics!$AF34-Statistics!$AE34)/100<0,0,E106+(Statistics!$AF34-Statistics!$AE34)/100) -> 0.09472326 | G106: =IF(F106+(Statistics!$AF34-Statistics!$AE34)/100<0,0,F106+(Statistics!$AF34-Statistics!$AE34)/100) -> 0.0774939 | H106: =SUMIF(Financial!B$103:G$103,'Scenarios definition'!T$15,Financial!B106:G106) -> 0.12918198 | I106: =SUMIF(Statistics!L$31:AF$31,Financial!I$102,Statistics!L34:AF34)/100 -> 0.25523487 | J106: =Statistics!K34 -> Heating Oil – Medium Efficiency | M106: 0.81
A107: Heating Oil – High Efficiency | B107: =IF((Statistics!AF35+(Statistics!$AF35-Statistics!$AE35))/100<0,0,(Statistics!AF35+(Statistics!$AF35-Statistics!$AE35))/100) -> 0 | C107: =IF(B107+(Statistics!$AF35-Statistics!$AE35)/100<0,0,B107+(Statistics!$AF35-Statistics!$AE35)/100) -> 0 | D107: =IF(C107+(Statistics!$AF35-Statistics!$AE35)/100<0,0,C107+(Statistics!$AF35-Statistics!$AE35)/100) -> 0 | E107: =IF(D107+(Statistics!$AF35-Statistics!$AE35)/100<0,0,D107+(Statistics!$AF35-Statistics!$AE35)/100) -> 0 | F107: =IF(E107+(Statistics!$AF35-Statistics!$AE35)/100<0,0,E107+(Statistics!$AF35-Statistics!$AE35)/100) -> 0 | G107: =IF(F107+(Statistics!$AF35-Statistics!$AE35)/100<0,0,F107+(Statistics!$AF35-Statistics!$AE35)/100) -> 0 | H107: =SUMIF(Financial!B$103:G$103,'Scenarios definition'!T$15,Financial!B107:G107) -> 0 | I107: =SUMIF(Statistics!L$31:AF$31,Financial!I$102,Statistics!L35:AF35)/100 -> 0 | J107: =Statistics!K35 -> Heating Oil – High Efficiency | M107: 0.92
A108: Natural Gas – Normal Efficiency | B108: =IF((Statistics!AF36+(Statistics!$AF36-Statistics!$AE36))/100<0,0,(Statistics!AF36+(Statistics!$AF36-Statistics!$AE36))/100) -> 0.00016519 | C108: =IF(B108+(Statistics!$AF36-Statistics!$AE36)/100<0,0,B108+(Statistics!$AF36-Statistics!$AE36)/100) -> 0.00017431 | D108: =IF(C108+(Statistics!$AF36-Statistics!$AE36)/100<0,0,C108+(Statistics!$AF36-Statistics!$AE36)/100) -> 0.00018343 | E108: =IF(D108+(Statistics!$AF36-Statistics!$AE36)/100<0,0,D108+(Statistics!$AF36-Statistics!$AE36)/100) -> 0.00019255 | F108: =IF(E108+(Statistics!$AF36-Statistics!$AE36)/100<0,0,E108+(Statistics!$AF36-Statistics!$AE36)/100) -> 0.00020167 | G108: =IF(F108+(Statistics!$AF36-Statistics!$AE36)/100<0,0,F108+(Statistics!$AF36-Statistics!$AE36)/100) -> 0.00021079 | H108: =SUMIF(Financial!B$103:G$103,'Scenarios definition'!T$15,Financial!B108:G108) -> 0.00018343 | I108: =SUMIF(Statistics!L$31:AF$31,Financial!I$102,Statistics!L36:AF36)/100 -> 0.00715435 | J108: =Statistics!K36 -> Natural Gas – Normal Efficiency | M108: 0.8 | N108: =IF(SUM(I108:I110)=0,85%,(M108*I108+M109*I109+I110*M110)/(+I109+I110+I108)) -> 0.8997230285 | O108: =IF((+E109+E110+E108)=0,M109,(M108*E108+M109*E109+E110*M110)/(+E109+E110+E108)) -> 0.9532941668 | P108: gas
A109: Natural Gas – Medium Efficiency | B109: =IF((Statistics!AF37+(Statistics!$AF37-Statistics!$AE37))/100<0,0,(Statistics!AF37+(Statistics!$AF37-Statistics!$AE37))/100) -> 0.00337707 | C109: =IF(B109+(Statistics!$AF37-Statistics!$AE37)/100<0,0,B109+(Statistics!$AF37-Statistics!$AE37)/100) -> 0.00302101 | D109: =IF(C109+(Statistics!$AF37-Statistics!$AE37)/100<0,0,C109+(Statistics!$AF37-Statistics!$AE37)/100) -> 0.00266495 | E109: =IF(D109+(Statistics!$AF37-Statistics!$AE37)/100<0,0,D109+(Statistics!$AF37-Statistics!$AE37)/100) -> 0.00230889 | F109: =IF(E109+(Statistics!$AF37-Statistics!$AE37)/100<0,0,E109+(Statistics!$AF37-Statistics!$AE37)/100) -> 0.00195283 | G109: =IF(F109+(Statistics!$AF37-Statistics!$AE37)/100<0,0,F109+(Statistics!$AF37-Statistics!$AE37)/100) -> 0.00159677 | H109: =SUMIF(Financial!B$103:G$103,'Scenarios definition'!T$15,Financial!B109:G109) -> 0.00266495 | I109: =SUMIF(Statistics!L$31:AF$31,Financial!I$102,Statistics!L37:AF37)/100 -> 0.01078838 | J109: =Statistics!K37 -> Natural Gas – Medium Efficiency | M109: 0.9
A110: Natural Gas – High Efficiency | B110: =IF((Statistics!AF38+(Statistics!$AF38-Statistics!$AE38))/100<0,0,(Statistics!AF38+(Statistics!$AF38-Statistics!$AE38))/100) -> 0.02005114 | C110: =IF(B110+(Statistics!$AF38-Statistics!$AE38)/100<0,0,B110+(Statistics!$AF38-Statistics!$AE38)/100) -> 0.02095123 | D110: =IF(C110+(Statistics!$AF38-Statistics!$AE38)/100<0,0,C110+(Statistics!$AF38-Statistics!$AE38)/100) -> 0.02185132 | E110: =IF(D110+(Statistics!$AF38-Statistics!$AE38)/100<0,0,D110+(Statistics!$AF38-Statistics!$AE38)/100) -> 0.02275141 | F110: =IF(E110+(Statistics!$AF38-Statistics!$AE38)/100<0,0,E110+(Statistics!$AF38-Statistics!$AE38)/100) -> 0.0236515 | G110: =IF(F110+(Statistics!$AF38-Statistics!$AE38)/100<0,0,F110+(Statistics!$AF38-Statistics!$AE38)/100) -> 0.02455159 | H110: =SUMIF(Financial!B$103:G$103,'Scenarios definition'!T$15,Financial!B110:G110) -> 0.02185132 | I110: =SUMIF(Statistics!L$31:AF$31,Financial!I$102,Statistics!L38:AF38)/100 -> 0.01178668 | J110: =Statistics!K38 -> Natural Gas – High Efficiency | M110: 0.96
A111: Electric | B111: =IF((Statistics!AF39+(Statistics!$AF39-Statistics!$AE39))/100<0,0,(Statistics!AF39+(Statistics!$AF39-Statistics!$AE39))/100) -> 0.51553515 | C111: =IF(B111+(Statistics!$AF39-Statistics!$AE39)/100<0,0,B111+(Statistics!$AF39-Statistics!$AE39)/100) -> 0.52808018 | D111: =IF(C111+(Statistics!$AF39-Statistics!$AE39)/100<0,0,C111+(Statistics!$AF39-Statistics!$AE39)/100) -> 0.54062521 | E111: =IF(D111+(Statistics!$AF39-Statistics!$AE39)/100<0,0,D111+(Statistics!$AF39-Statistics!$AE39)/100) -> 0.55317024 | F111: =IF(E111+(Statistics!$AF39-Statistics!$AE39)/100<0,0,E111+(Statistics!$AF39-Statistics!$AE39)/100) -> 0.56571527 | G111: =IF(F111+(Statistics!$AF39-Statistics!$AE39)/100<0,0,F111+(Statistics!$AF39-Statistics!$AE39)/100) -> 0.5782603 | H111: =SUMIF(Financial!B$103:G$103,'Scenarios definition'!T$15,Financial!B111:G111) -> 0.54062521 | I111: =SUMIF(Statistics!L$31:AF$31,Financial!I$102,Statistics!L39:AF39)/100 -> 0.38684161 | J111: =Statistics!K39 -> Electric
A112: Heat Pump | B112: =IF((Statistics!AF40+(Statistics!$AF40-Statistics!$AE40))/100<0,0,(Statistics!AF40+(Statistics!$AF40-Statistics!$AE40))/100) -> 0.01656813 | C112: =IF(B112+(Statistics!$AF40-Statistics!$AE40)/100<0,0,B112+(Statistics!$AF40-Statistics!$AE40)/100) -> 0.01719394 | D112: =IF(C112+(Statistics!$AF40-Statistics!$AE40)/100<0,0,C112+(Statistics!$AF40-Statistics!$AE40)/100) -> 0.01781975 | E112: =IF(D112+(Statistics!$AF40-Statistics!$AE40)/100<0,0,D112+(Statistics!$AF40-Statistics!$AE40)/100) -> 0.01844556 | F112: =IF(E112+(Statistics!$AF40-Statistics!$AE40)/100<0,0,E112+(Statistics!$AF40-Statistics!$AE40)/100) -> 0.01907137 | G112: =IF(F112+(Statistics!$AF40-Statistics!$AE40)/100<0,0,F112+(Statistics!$AF40-Statistics!$AE40)/100) -> 0.01969718 | H112: =SUMIF(Financial!B$103:G$103,'Scenarios definition'!T$15,Financial!B112:G112) -> 0.01781975 | I112: =SUMIF(Statistics!L$31:AF$31,Financial!I$102,Statistics!L40:AF40)/100 -> 0.01084034 | J112: =Statistics!K40 -> Heat Pump
A113: Other1 | B113: =IF((Statistics!AF41+(Statistics!$AF41-Statistics!$AE41))/100<0,0,(Statistics!AF41+(Statistics!$AF41-Statistics!$AE41))/100) -> 0.00765697 | C113: =IF(B113+(Statistics!$AF41-Statistics!$AE41)/100<0,0,B113+(Statistics!$AF41-Statistics!$AE41)/100) -> 0.00428698 | D113: =IF(C113+(Statistics!$AF41-Statistics!$AE41)/100<0,0,C113+(Statistics!$AF41-Statistics!$AE41)/100) -> 0.00091699 | E113: =IF(D113+(Statistics!$AF41-Statistics!$AE41)/100<0,0,D113+(Statistics!$AF41-Statistics!$AE41)/100) -> 0 | F113: =IF(E113+(Statistics!$AF41-Statistics!$AE41)/100<0,0,E113+(Statistics!$AF41-Statistics!$AE41)/100) -> 0 | G113: =IF(F113+(Statistics!$AF41-Statistics!$AE41)/100<0,0,F113+(Statistics!$AF41-Statistics!$AE41)/100) -> 0 | H113: =SUMIF(Financial!B$103:G$103,'Scenarios definition'!T$15,Financial!B113:G113) -> 0.00091699 | I113: =SUMIF(Statistics!L$31:AF$31,Financial!I$102,Statistics!L41:AF41)/100 -> 0.01468976 | J113: Coal and propane | M113: 0.81 | N113: =M113 -> 0.81 | O113: =M113 -> 0.81 | P113: Propane
A114: Wood | B114: =IF((Statistics!AF42+(Statistics!$AF42-Statistics!$AE42))/100<0,0,(Statistics!AF42+(Statistics!$AF42-Statistics!$AE42))/100) -> 0.02323681 | C114: =IF(B114+(Statistics!$AF42-Statistics!$AE42)/100<0,0,B114+(Statistics!$AF42-Statistics!$AE42)/100) -> 0.02350647 | D114: =IF(C114+(Statistics!$AF42-Statistics!$AE42)/100<0,0,C114+(Statistics!$AF42-Statistics!$AE42)/100) -> 0.02377613 | E114: =IF(D114+(Statistics!$AF42-Statistics!$AE42)/100<0,0,D114+(Statistics!$AF42-Statistics!$AE42)/100) -> 0.02404579 | F114: =IF(E114+(Statistics!$AF42-Statistics!$AE42)/100<0,0,E114+(Statistics!$AF42-Statistics!$AE42)/100) -> 0.02431545 | G114: =IF(F114+(Statistics!$AF42-Statistics!$AE42)/100<0,0,F114+(Statistics!$AF42-Statistics!$AE42)/100) -> 0.02458511 | H114: =SUMIF(Financial!B$103:G$103,'Scenarios definition'!T$15,Financial!B114:G114) -> 0.02377613 | I114: =SUMIF(Statistics!L$31:AF$31,Financial!I$102,Statistics!L42:AF42)/100 -> 0.07836119 | J114: =Statistics!K42 -> Wood
A115: Dual Systems | B115: =IF((Statistics!AF43+(Statistics!$AF43-Statistics!$AE43))/100<0,0,(Statistics!AF43+(Statistics!$AF43-Statistics!$AE43))/100) -> 0 | C115: =IF(B115+(Statistics!$AF43-Statistics!$AE43)/100<0,0,B115+(Statistics!$AF43-Statistics!$AE43)/100) -> 0 | D115: =IF(C115+(Statistics!$AF43-Statistics!$AE43)/100<0,0,C115+(Statistics!$AF43-Statistics!$AE43)/100) -> 0 | E115: =IF(D115+(Statistics!$AF43-Statistics!$AE43)/100<0,0,D115+(Statistics!$AF43-Statistics!$AE43)/100) -> 0 | F115: =IF(E115+(Statistics!$AF43-Statistics!$AE43)/100<0,0,E115+(Statistics!$AF43-Statistics!$AE43)/100) -> 0 | G115: =IF(F115+(Statistics!$AF43-Statistics!$AE43)/100<0,0,F115+(Statistics!$AF43-Statistics!$AE43)/100) -> 0 | H115: =SUMIF(Financial!B$103:G$103,'Scenarios definition'!T$15,Financial!B115:G115) -> 0 | I115: =SUMIF(Statistics!L$31:AF$31,Financial!I$102,Statistics!L43:AF43)/100 -> 0 | J115: =Statistics!K43 -> Dual Systems
A116: Wood/Electric | B116: =IF((Statistics!AF44+(Statistics!$AF44-Statistics!$AE44))/100<0,0,(Statistics!AF44+(Statistics!$AF44-Statistics!$AE44))/100) -> 0.16186957 | C116: =IF(B116+(Statistics!$AF44-Statistics!$AE44)/100<0,0,B116+(Statistics!$AF44-Statistics!$AE44)/100) -> 0.16729726 | D116: =IF(C116+(Statistics!$AF44-Statistics!$AE44)/100<0,0,C116+(Statistics!$AF44-Statistics!$AE44)/100) -> 0.17272495 | E116: =IF(D116+(Statistics!$AF44-Statistics!$AE44)/100<0,0,D116+(Statistics!$AF44-Statistics!$AE44)/100) -> 0.17815264 | F116: =IF(E116+(Statistics!$AF44-Statistics!$AE44)/100<0,0,E116+(Statistics!$AF44-Statistics!$AE44)/100) -> 0.18358033 | G116: =IF(F116+(Statistics!$AF44-Statistics!$AE44)/100<0,0,F116+(Statistics!$AF44-Statistics!$AE44)/100) -> 0.18900802 | H116: =SUMIF(Financial!B$103:G$103,'Scenarios definition'!T$15,Financial!B116:G116) -> 0.17272495 | I116: =SUMIF(Statistics!L$31:AF$31,Financial!I$102,Statistics!L44:AF44)/100 -> 0.13236438 | J116: =Statistics!K44 -> Wood/Electric
A117: Wood/Heating Oil | B117: =IF((Statistics!AF45+(Statistics!$AF45-Statistics!$AE45))/100<0,0,(Statistics!AF45+(Statistics!$AF45-Statistics!$AE45))/100) -> 0.07549957 | C117: =IF(B117+(Statistics!$AF45-Statistics!$AE45)/100<0,0,B117+(Statistics!$AF45-Statistics!$AE45)/100) -> 0.07636937 | D117: =IF(C117+(Statistics!$AF45-Statistics!$AE45)/100<0,0,C117+(Statistics!$AF45-Statistics!$AE45)/100) -> 0.07723917 | E117: =IF(D117+(Statistics!$AF45-Statistics!$AE45)/100<0,0,D117+(Statistics!$AF45-Statistics!$AE45)/100) -> 0.07810897 | F117: =IF(E117+(Statistics!$AF45-Statistics!$AE45)/100<0,0,E117+(Statistics!$AF45-Statistics!$AE45)/100) -> 0.07897877 | G117: =IF(F117+(Statistics!$AF45-Statistics!$AE45)/100<0,0,F117+(Statistics!$AF45-Statistics!$AE45)/100) -> 0.07984857 | H117: =SUMIF(Financial!B$103:G$103,'Scenarios definition'!T$15,Financial!B117:G117) -> 0.07723917 | I117: =SUMIF(Statistics!L$31:AF$31,Financial!I$102,Statistics!L45:AF45)/100 -> 0.0711654 | J117: =Statistics!K45 -> Wood/Heating Oil | N117: Back up ratio | P117: 0.2
A118: Natural Gas/Electric | B118: =IF((Statistics!AF46+(Statistics!$AF46-Statistics!$AE46))/100<0,0,(Statistics!AF46+(Statistics!$AF46-Statistics!$AE46))/100) -> 0 | C118: =IF(B118+(Statistics!$AF46-Statistics!$AE46)/100<0,0,B118+(Statistics!$AF46-Statistics!$AE46)/100) -> 0 | D118: =IF(C118+(Statistics!$AF46-Statistics!$AE46)/100<0,0,C118+(Statistics!$AF46-Statistics!$AE46)/100) -> 0 | E118: =IF(D118+(Statistics!$AF46-Statistics!$AE46)/100<0,0,D118+(Statistics!$AF46-Statistics!$AE46)/100) -> 0 | F118: =IF(E118+(Statistics!$AF46-Statistics!$AE46)/100<0,0,E118+(Statistics!$AF46-Statistics!$AE46)/100) -> 0 | G118: =IF(F118+(Statistics!$AF46-Statistics!$AE46)/100<0,0,F118+(Statistics!$AF46-Statistics!$AE46)/100) -> 0 | H118: =SUMIF(Financial!B$103:G$103,'Scenarios definition'!T$15,Financial!B118:G118) -> 0 | I118: =SUMIF(Statistics!L$31:AF$31,Financial!I$102,Statistics!L46:AF46)/100 -> 0 | J118: =Statistics!K46 -> Natural Gas/Electric
A119: Heating Oil/Electric | B119: =IF((Statistics!AF47+(Statistics!$AF47-Statistics!$AE47))/100<0,0,(Statistics!AF47+(Statistics!$AF47-Statistics!$AE47))/100) -> 0.0123997 | C119: =IF(B119+(Statistics!$AF47-Statistics!$AE47)/100<0,0,B119+(Statistics!$AF47-Statistics!$AE47)/100) -> 0.01270791 | D119: =IF(C119+(Statistics!$AF47-Statistics!$AE47)/100<0,0,C119+(Statistics!$AF47-Statistics!$AE47)/100) -> 0.01301612 | E119: =IF(D119+(Statistics!$AF47-Statistics!$AE47)/100<0,0,D119+(Statistics!$AF47-Statistics!$AE47)/100) -> 0.01332433 | F119: =IF(E119+(Statistics!$AF47-Statistics!$AE47)/100<0,0,E119+(Statistics!$AF47-Statistics!$AE47)/100) -> 0.01363254 | G119: =IF(F119+(Statistics!$AF47-Statistics!$AE47)/100<0,0,F119+(Statistics!$AF47-Statistics!$AE47)/100) -> 0.01394075 | H119: =SUMIF(Financial!B$103:G$103,'Scenarios definition'!T$15,Financial!B119:G119) -> 0.01301612 | I119: =SUMIF(Statistics!L$31:AF$31,Financial!I$102,Statistics!L47:AF47)/100 -> 0.00868577 | J119: =Statistics!K47 -> Heating Oil/Electric
B120: =IF((Statistics!AF48+(Statistics!$AF48-Statistics!$AE48))/100<0,0,(Statistics!AF48+(Statistics!$AF48-Statistics!$AE48))/100) -> 1 | C120: =IF(B120+(Statistics!$AF48-Statistics!$AE48)/100<0,0,B120+(Statistics!$AF48-Statistics!$AE48)/100) -> 1 | D120: =IF(C120+(Statistics!$AF48-Statistics!$AE48)/100<0,0,C120+(Statistics!$AF48-Statistics!$AE48)/100) -> 1 | E120: =IF(D120+(Statistics!$AF48-Statistics!$AE48)/100<0,0,D120+(Statistics!$AF48-Statistics!$AE48)/100) -> 1 | F120: =IF(E120+(Statistics!$AF48-Statistics!$AE48)/100<0,0,E120+(Statistics!$AF48-Statistics!$AE48)/100) -> 1 | G120: =IF(F120+(Statistics!$AF48-Statistics!$AE48)/100<0,0,F120+(Statistics!$AF48-Statistics!$AE48)/100) -> 1 | H120: =SUMIF(Financial!B$103:G$103,'Scenarios definition'!T$15,Financial!B120:G120) -> 1 | I120: =SUMIF(Statistics!L$31:AF$31,Financial!I$102,Statistics!L48:AF48)/100 -> 1 | J120: =Statistics!K48 -> 0
B121: =SUM(B105:B120) -> 2 | C121: 2 | D121: 2 | E121: 2.002453 | F121: 2.00582299 | G121: 2.00919298
I124: Summarizing all those heating systems into the 5 heating systems used for scenario definition
D125: Main FF | E125: ref, year | F125: current | M125: =N104 -> 2005 | O125: =O104 -> Current
D126: gas | E126: =SUM(I108:I110) -> 0.02972941 | F126: =SUM(H108:H110) -> 0.0246997 | H126: A | I126: Beseboard or electric furnace (ea.) | M126: =I111+(I116+I118+I119)*P117 -> 0.41505164 | O126: =H111+(H116+H118+H119)*P117 -> 0.577773424
D127: oil | E127: =SUM(I105:I107) -> 0.26732214 | F127: =SUM(H105:H107) -> 0.12918198 | I127: Dominant Fossil Fuel | M127: =IF(E126=MAX(E126:E128),D126,IF(E127=MAX(E126:E128),D127,D128)) -> oil | O127: =IF(F126=MAX(F126:F128),D126,IF(F127=MAX(F126:F128),D127,D128)) -> oil
D128: propane | E128: =I113 -> 0.01468976 | F128: =H113 -> 0.00091699 | H128: B | I128: % fossil fuel heating system | M128: =SUM(I105:I110)+I113+I117*P117+(I118+I119)*(1-P117) -> 0.332923006 | O128: =SUM(H105:H110)+H113+H117*P117+(H118+H119)*(1-P117) -> 0.1806594
I129: Efficiency | M129: =SUMIF(P105:P113,M127,N105:N113) -> 0.8059305492 | O129: =SUMIF(P105:P113,O127,O105:O113) -> 0.81
H130: C | I130: Wood (ea.) | M130: =(I114+(I116+I117)*(1-P117)) -> 0.241185014 | O130: =(H114+(H116+H117)*(1-P117)) -> 0.223747426
H131: D | I131: Air source heat pump (ASHP) (ea.) | M131: =I112 -> 0.01084034 | O131: =H112 -> 0.01781975
A132: ARCHETYPES AREA | K132: check A+B+C+D | M132: =M126+M128+M130+M131 -> 1 | O132: =O126+O128+O130+O131 -> 1
A133: Note from programmer. | M133: Scenario 1 | O133: Scenario 2
A134: Imported from Archetypes Files from "Analysis" Tab to populate Scenarios 1 and 2
A135: Archetype | E135: Sq. ft. | F135: m2
A136: =Statistics!AG54 -> Before 1946 and 1946-1977 Small , Single Detached | E136: =F136/0.3048^2 -> 1192.641274 | F136: =Statistics!G54 -> 110.8
A137: =Statistics!AG55 -> Before 1946 and 1946-1977 , Single Attached, Apart., Mob. H. | E137: =F137/0.3048^2 -> 1226.009396 | F137: =Statistics!G55 -> 113.9
A138: =Statistics!AG56 -> Before 1946 and 1946-1977 Large , Single Detached, Single Attached | E138: 2209.830809 | F138: =Statistics!G56 -> 205.3
A139: =Statistics!AG57 -> 1978-1995 Large , Single Detached | E139: 1948.267785 | F139: =Statistics!G57 -> 181
A140: =Statistics!AG58 -> 1978-1995 Small , Single Attached, Apart., Mob. H. | E140: 938.6129883 | F140: =Statistics!G58 -> 87.2
A141: =Statistics!AG59 -> 1978-1995 , Single Detached, Single Detached, Apart. | E141: 1778.198001 | F141: =Statistics!G59 -> 165.2
A142: =Statistics!AG60 -> 1996-2010 Two storey , Single Detached, Single Attached, Apart., Mob. H. | E142: 1390.697226 | F142: =Statistics!G60 -> 129.2
A143: =Statistics!AG61 -> 1996-2010 Large, two storey , Single Detached, Single Attached | E143: 2903.026639 | F143: =Statistics!G61 -> 269.7
A144: =Statistics!AG62 -> 1996-2010 One storey , Single Detached, Single Attached | E144: 2224.900283 | F144: =Statistics!G62 -> 206.7
A145: =Statistics!AG63 -> 2011-2020 , Single Detached, Single Attached | E145: 2060.212454 | F145: =Statistics!G63 -> 191.4
A146: =Statistics!AG64 -> 2011-2020 Small , Single Detached, Single Attached, Apart., Mob. H. | E146: 1103.300818 | F146: =Statistics!G64 -> 102.5
A149: Lookup table for energy source costs per kWh and GHG emissions
A150: Bois
A151: Gas

Sheet Q&A English
A1: Questions and Answers Section:
A3: Category | B3: Question | C3: Answer
B5: What seasonal COP (SCOP) is assumed for ASHP (air source heat pump)? | C5: ASHP COP is a function of ambient temperature. The perofmance curve is based on a performance map of readily availble equipment.
B6: What seasonal COP (SCOP) is assumed for GSHP (ground source heat pump)? | C6: 4.1 (Heating), 3.9 (Cooling)
B7: What is the temperature range for heat pump operation | C7: ASHP will operate to ambient temperatures as low as -15°C.
B8: In hybrid systems, how is the split between primary and back-up energy determined? | C8: Hybrid heating systems involve a heat pump (ASHP of GSHP) and an auxiliary/ back-up heaing source. Heatpump operation is prioritized - auxiliary heating system is used, as needed, when the thermal demand exceeds the heat pump capacity (heat pump capacity is a user input). For Hybrid heating systems which include an ASHP: the auxiliary heating source is also used to meet the full heating load when ambient temperatures are below the operation range of the ASHP (-15°C).
B9: How is the thermal storage drawn and recharged in the daily cycle? | C9: Thermal storage draw/ charge is based on a schedule (user input). Themal storage schedule should be derrived based on time of use utility rate.
B10: How is the energy retrofit cost calculated ?
B11: When is the electrical storage drawn and recharged in batteries? | C11: Electrical storage draw/ charge is based on a schedule (user input). Themal storage schedule should be derrived based on time of use utility rate.
B12: How is the electrical storage drawn and recharged when PV panels are installed? | C12: Electrical storage draw/ charge is based on a schedule (user input). Themal storage schedule should be derrived based on time of use utility rate.
B13: How is the thermal storage capacity determined? | C13: User Input
B14: How is the electrical storage capacity determined? | C14: User Input
B16: What are factors impacting unit cost of a fossil fuel to electricity conversion | C16: Default unit costs for each interventions are provided for preliminary results. However, subject matter experts, HVAC contractors/designers and electricians must be consulted to evaluate if the air distribution duct network are appropriate to distribute the warm air within the dwellings and if the electrical service entrance can handle the additional load for the heat pumps, for example. Depending on the existing systems, more or less modifications may be required. Each archetype of each vintage in a given region may have similar cost components and this is better assessed by local workers/ subject matter experts.
B18: What are the factors impacting cost of a ground source heat pump vs that of an air source heat pump? | C18: Ground source heat pumps require a relatively large footprint and disturbance of ground cover, significant earth moving operations and a large amount of tubing to provide heat exchange loop bellow the frost depth. GSHP are very expensive initially but provide reliable performance in very cold climate regions.
B20: How accurate are the default unit costs? | C20: The defaults unit costs provided are very approximate. Every building, every region have their own context. And unit costs vary with supply and demand and other external factors. The purpose of the very coarse financial analysis is to provide order of magnitude of the investment required to implement a given scenario, for the entire building stock.
B22: How accurate are the future average emission factors (AEFs) for the provincial grids? | C22: These are the subject of ongoing discussion and research. Average emission factors (AEF) are considered for "inventories" . As electrification progresses, there is a need to assess heating system technologies that rely on electricity using mean margin factors (MMEF). This is better done by analyzing the various options using a specialized carbon accounting too. Such a tool is under review at NRCan and will be incorporated to CTAP when ready.
B24: Is embodied carbon included in the analysis? | C24: No, Except for the option of including a community based renewable project, where the full life cycle GHG emission per kWh are taken into account.
B25: Are recent initiatives (example conversions from fossil fuels to electric heating systems, baseboards, HP or others) being credited in this analysis? | C25: Yes. The reference year and current status use the provincial statistics of existing heating system technologies in any given year. Should your jurisdiction have been more or less active in that regard, these numbers can be adjusted in the "Scenarios Definition" Tab accordingly.
B26: How do I decide to use a given percentage of space heating energy reduction when defining a given scenario? | C26: When setting a value, for example 50% or 70%, an experienced energy advisor familiar with the local building stock characteristics should be involved. As well, representatives of trades with local knowledge - HVAC contractors, renovators, electricians, even real estate agents - would be able to provide costing perspectives to determine the point at which measures to improve further energy conservation may reach the threshold of "law of diminishing returns". And this may vary per archetypes. The perspective of home owners and landlords should also be sought through public consultations. See the related sections in the user manual about the making up of a local task force, about developing value proposition and the serval resource links provided in the "Useful Links" of this software file.
B27: How do I assess if the default unit costs are appropriate for our local circumstances? | C27: The cost of building level interventions are subject to several external factors: supply chain hick-ups, exceptional variation in demand (remember the deck building mania during lumber during Covid?), labor shortages, even geopolitical event may cause commodity prices fluctuation finding their way into equipment and material unit costs. So "accurate unit costs" are not a realistic concept. CTAP provides "back of the envelope" costing for a stock of building. Any individual building may have specific conditions that make these unit costs absolutely unreliable: access, existing conditions, operational restrictions, etc... On a case by case, specific evaluation must be performed. That being said, the local task force which should include local trades representatives, and the first several implementations case studies should provide a mean to validate or adjust these unit costs. That can be done in the top table of the "Financial" Tab.
B28: Can CTAP evaluate the contribution of a mix of heating systems with various fossil fuels, for example oil, natural gas and propane in an analysis? | C28: No. CTAP works with the "dominant" fossil fuel in any given region as per the provincial statistics. The combustion gases combine with fugitive natural gas in the supply chain yield approximatively the same GHG as for oil or propane. The difference in a few percentage points of furnaces with second and third most common fossil fuels does not alter the overall results significantly.
B29: Does the analysis consider GHG associated to refrigerant leakage in heat pumps? | C29: No. This could be added in a future version as those GHG can be significant. An independent analysis can be performed using the HSCAT (Heating System Carbon Accounting Tool) now under review at NRCan. Once peer reviewed, this will be added to CTAP.

Sheet Questions et réponses
A1: Questions et réponses
A3: Categorie | B3: Questions | C3: Réponses
B5: Quel coefficient de performance ou coefficient de performance saisonnier est supposé pour les pompes à chaleur géothermiques ?
B6: Quel coefficient de performance ou coefficient de performance saisonnier est supposé pour les pompes à chaleur aérothermiques ?
B7: Quelle est la plage de température pour le fonctionnement de la pompe à chaleur?
B8: Dans les systèmes hybrides, comment est déterminée la répartition entre l’énergie primaire et l’énergie de secours ?
B9: Comment le stockage thermique est-il puisé et rechargé dans le cycle quotidien ?
B10: Comment est calculé le coût de la rénovation énergétique ?
B11: Quand le stockage électrique est-il puisé et rechargé en batteries ?
B12: Comment le stockage électrique est-il consommé et rechargé lorsque des panneaux photovoltaïques sont installés ?
B13: Comment est déterminée la capacité de stockage thermique ?
B14: Comment est déterminée la capacité de stockage électrique ?
B16: Quels sont les facteurs ayant une incidence sur le coût de la conversion d’un système de chauffage aux combustibles fossiles en système de chauffage à l’électricité ? | C16: Les coûts unitaires par défaut pour chaque intervention sont fournis à titre de résultats préliminaires. Cependant, des experts en la matière, des entrepreneurs/concepteurs CVC et des électriciens doivent être consultés pour évaluer si le réseau de conduits de distribution d'air est approprié pour distribuer l'air chaud dans les logements et si l'entrée de service électrique peut supporter la charge supplémentaire pour les pompes à chaleur, par exemple. exemple. Selon les systèmes existants, plus ou moins de modifications peuvent être nécessaires. Chaque archétype de chaque millésime dans une région donnée peut avoir des éléments de coût similaires et ceci est mieux évalué par les travailleurs/experts locaux en la matière.
B18: Quels sont les facteurs ayant un impact sur le coût d’une pompe à chaleur géothermique par rapport à celui d’une pompe à chaleur à air ? | C18: Les pompes à chaleur géothermiques nécessitent une empreinte au sol relativement importante et une perturbation de la couverture végétale, des opérations de terrassement importantes et une grande quantité de tubes pour fournir une boucle d'échange thermique en dessous de la profondeur de gel. Les GSHP sont très chers au départ mais offrent des performances fiables dans les régions au climat très froid.
B20: Quelle est la précision des coûts unitaires par défaut ? | C20: Les coûts unitaires par défaut fournis sont très approximatifs. Chaque bâtiment, chaque région a son propre contexte. Et les coûts unitaires varient en fonction de l’offre et de la demande ainsi que d’autres facteurs externes. L’objectif de l’analyse financière très grossière est de fournir un ordre de grandeur de l’investissement nécessaire à la mise en œuvre d’un scénario donné, pour l’ensemble du parc immobilier.
B22: Quelle est la précision des futurs facteurs d’émission moyens pour les réseaux électriques provinciaux ? | C22: Ceux-ci font l’objet de discussions et de recherches continues. Des facteurs d'émission moyens sont pris en compte pour les « inventaires » de GES. À mesure que l’électrification progresse, il devient nécessaire d’évaluer les technologies de systèmes de chauffage qui dépendent de l’électricité à l’aide de facteurs de marge moyenne (MMEF). Il est préférable d’y parvenir en analysant les différentes options à l’aide d’une comptabilité carbone spécialisée. Un tel outil est en cours d'examen à RNCan et sera intégré au CTAP lorsqu'il sera prêt.
B24: Le carbone incorporé est-il inclus dans l’analyse ? | C24: Non, sauf pour l'option d'inclure un projet renouvelable à l'échelle communautaire, où les émissions de GES par kWh sur le cycle de vie complet sont prises en compte.
B25: Les initiatives récemment réalisées (par exemple, conversions de combustibles fossiles vers des systèmes de chauffage électriques, des plinthes, des HP ou autres) sont-elles créditées dans cette analyse ? | C25: Oui. L'année de référence et la situation actuelle utilisent les statistiques provinciales sur les technologies de systèmes de chauffage existantes au cours d'une année donnée. Si votre juridiction a été plus ou moins active à cet égard, ces chiffres peuvent être ajustés en conséquence dans l'onglet « Définition des scénarios », dans les cellules K43 à W53.
B26: Comment puis-je décider d’utiliser un pourcentage donné de réduction d’énergie pour le chauffage des locaux lors de la définition d’un scénario donné ? | C26: Lors de la définition d'une valeur, par exemple 50 % ou 70 %, un conseiller en énergie expérimenté et familier avec les caractéristiques du parc immobilier local doit être impliqué. De plus, des représentants des métiers possédant une connaissance locale - entrepreneurs en CVC, rénovateurs, électriciens et même agents immobiliers - seraient en mesure de fournir des perspectives de coûts pour déterminer le point à partir duquel les mesures visant à améliorer davantage les économies d'énergie pourraient atteindre le seuil de la « loi des rendements décroissants ». Et cela peut varier selon les archétypes. Le point de vue des propriétaires et des propriétaires devrait également être recherché par le biais de consultations publiques. Voir les sections connexes du manuel d'utilisation sur la constitution d'un groupe de travail local, sur le développement d'une proposition de valeur et les liens de ressources serval fournis dans les « Liens utiles » de ce fichier logiciel.
B27: Comment puis-je évaluer si les coûts unitaires par défaut sont adaptés à nos circonstances locales ? | C27: Le coût des interventions au niveau du bâtiment est soumis à plusieurs facteurs externes : des problèmes dans la chaîne d'approvisionnement, des variations exceptionnelles de la demande (vous vous souvenez de la folie de la construction de terrasses pendant le bois d'œuvre pendant la Covid ?), des pénuries de main-d'œuvre et même des événements géopolitiques peuvent entraîner des fluctuations des prix des matières premières. en coûts unitaires d’équipement et de matériel. Les « coûts unitaires précis » ne constituent donc pas un concept réaliste. CTAP fournit un chiffrage « à l'arrière de l'enveloppe » pour un parc de bâtiments. Tout bâtiment individuel peut présenter des conditions spécifiques qui rendent ces coûts unitaires absolument peu fiables : accès, conditions existantes, restrictions d'exploitation, etc... Au cas par cas, une évaluation spécifique doit être réalisée. Cela étant dit, le groupe de travail local, qui devrait inclure des représentants des métiers locaux, et les premières études de cas de mise en œuvre devraient fournir un moyen de valider ou d'ajuster ces coûts unitaires. Cela peut être fait dans le tableau supérieur de l'onglet « Financial ».
B28: Le CTAP peut-il évaluer dans une analyse la contribution d’un mélange de systèmes de chauffage utilisant divers combustibles fossiles, par exemple l'huile de chaufage, le gaz naturel et le propane ? | C28: Non. L'OETC travaille avec le combustible fossile « dominant » dans une région donnée, selon les statistiques provinciales. Les gaz de combustion se combinent au gaz naturel fugitif dans la chaîne d’approvisionnement et produisent à peu près les mêmes GES que le pétrole ou le propane. La différence de quelques points de pourcentage entre les systemes utilisant un deuxième ou troisième combustible fossile parmis les plus courants ne modifie pas de manière significative les résultats globaux.
B29: L’analyse prend-elle en compte les GES associés aux fuites de réfrigérant dans les pompes à chaleur ? | C29: Non. Cela pourrait être ajouté dans une prochaine version car ces GES peuvent être importants. Une analyse indépendante peut être effectuée à l’aide du HSCAT (Heating System Carbon Accounting Tool) actuellement en cours d’examen à RNCan. Une fois terminé, celui-ci sera ajouté au CTAP.

Sheet Usefull links
C5: What Is The Cost Of A Ground Source Heat Pump? (climatebiz.com)
C9: Useful links regarding biomass:
C10: · Biomass / Rural community programs/ small scale district biomass
C12: https://www.nrcan.gc.ca/reducingdiesel
C13: · See attached pdf on small scale biomass energy system. From the UK, but still very informative
C14: · Here are NRCan publication: https://publications.gc.ca/site/fra/9.647721/publication.html https://d1ied5g1xfgpx8.cloudfront.net/pdfs/9511.pdf
C15: Small scale biomass district heating system: https://www.sciencedirect.com/science/article/abs/pii/S0306261915013422
C17: A Real Estate valuation study was performed a few years back in Edmonton aiming at determining the added valuation to a property following energy savings measures investment. It would be interesting to discuss the findings and any gaps with local RE professionals. A copy of the study can be found at this link:
C18: https://homes.changeforclimate.ca/wp-content/uploads/2019/08/City-of-Edmonton-Hedonic-Price-Analysis-Energy-Efficiency-Final.pdf?5f4561&5f4561
C20: Additional helpful links:
C21: · NRCan DER guides and others:
C22: Energy efficiency for homes (nrcan.gc.ca)
C24: · NRCan research on exterior wall panels for insulation value upgrade:
C25: https://www.nrcan.gc.ca/energy-efficiency/data-research-insights-energy-efficiency/housing-innovation/peer-prefabricated-exterior-energy-retrofit/19406
C26: · Looking ahead of the curve… for our next LCCES CTAP process workshop in the fall: link to financial incentives:
C27: https://oee.nrcan.gc.ca/residential/programs/programs.cfm?attr=24
C28: https://oee.nrcan.gc.ca/corporate/statistics/neud/dpa/policy_e/programs.cfm
C29: https://www.nrcan.gc.ca/energy-efficiency/homes/canada-greener-homes-grant/start-your-energy-efficient-retrofits/plan-document-and-complete-your-home-retrofits/eligible-grants-for-my-home-retrofit/23504
C31: * A Real Estate valuation study was performed a few years back in Edmonton aiming at determining the added valuation to a property following energy savings measures investment. It would be interesting to discuss the findings and any gaps with local RE professionals. A copy of the study can be found at this link:
C32: https://homes.changeforclimate.ca/wp-content/uploads/2019/08/City-of-Edmonton-Hedonic-Price-Analysis-Energy-Efficiency-Final.pdf?5f4561&5f4561
C34: Additional helpful links:
C35: · NRCan DER guides and others:
C36: Energy efficiency for homes (nrcan.gc.ca)
C38: · NRCan research on exterior wall panels for insulation value upgrade:
C39: https://www.nrcan.gc.ca/energy-efficiency/data-research-insights-energy-efficiency/housing-innovation/peer-prefabricated-exterior-energy-retrofit/19406
C40: · Looking ahead of the curve… for our next LCCES CTAP process workshop in the fall: link to financial incentives:
C41: https://oee.nrcan.gc.ca/residential/programs/programs.cfm?attr=24
C42: https://oee.nrcan.gc.ca/corporate/statistics/neud/dpa/policy_e/programs.cfm
C43: https://www.nrcan.gc.ca/energy-efficiency/homes/canada-greener-homes-grant/start-your-energy-efficient-retrofits/plan-document-and-complete-your-home-retrofits/eligible-grants-for-my-home-retrofit/23504
C45: 1) More guides
C46: All via this link: https://www.nrcan.gc.ca/energy-efficiency/homes/local-energy-efficiency-partnerships-leep/leep-technology-guides/17346
C48: CER – Provincial and Territorial Energy Profiles – Alberta (cer-rec.gc.ca)
C50: https://www.canada.ca/en/environment-climate-change/news/2021/07/government-of-canada-confirms-ambitious-new-greenhouse-gas-emissions-reduction-target.html
C52: https://data.ec.gc.ca/data/substances/monitor/canada-s-greenhouse-gas-emissions-projections/Current-Projections-Actuelles/Energy-Energie/Grid-O%26G-Intensities-Intensites-Reseau-Delectricite-P%26G/Electricity-grid-intensities-intensites-reseau-delectricite-1.csv
C55: Energy content of wood
C56: https://www.engineeringtoolbox.com/wood-combustion-heat-d_372.html
C57: …of propane
C58: http://www.alaskawoodheating.com/energy_content.php
C59: 91,800 Btu/gal
C60: https://hypertextbook.com/facts/2002/EricLeung.shtml
C61: 7.5 kWh/l
B65: https://data.ec.gc.ca/data/substances/monitor/canada-s-greenhouse-gas-emissions-projections/Current-Projections-Actuelles/Energy-Energie/Grid-O%26G-Intensities-Intensites-Reseau-Delectricite-P%26G/Electricity-grid-intensities-intensites-reseau-delectricite-1.csv

Sheet Emission factors
A1: Electric Grid Intensity | B1: by Province (including Biomass & RNG CO2 emissions)/Intensitï¿½ du rï¿½seau ï¿½lectrique par province (incluant les ï¿½missions de CO2 provenant de la biomasse et du gaz naturel renouvelable)
A2: Region (English) / Rï¿½gion (anglais) | B2: Region (French) / Rï¿½gion (franï¿½ais) | C2: Units (English) / Unitï¿½s (anglais) | D2: Units (French) / Unitï¿½s (franï¿½ais) | E2: 2005 | F2: 2006 | G2: 2007 | H2: 2008 | I2: 2009 | J2: 2010 | K2: 2011 | L2: 2012 | M2: 2013 | N2: 2014 | O2: 2015 | P2: 2016 | Q2: 2017 | R2: 2018 | S2: 2019 | T2: 2020 | U2: 2021 | V2: 2022 | W2: 2023 | X2: 2024 | Y2: 2025 | Z2: 2026 | AA2: 2027 | AB2: 2028 | AC2: 2029 | AD2: 2030 | AE2: 2031 | AF2: 2032 | AG2: 2033 | AH2: 2034 | AI2: 2035 | AJ2: 2036 | AK2: 2037 | AL2: 2038 | AM2: 2039 | AN2: 2040 | AO2: 2041 | AP2: 2042 | AQ2: 2043 | AR2: 2044 | AS2: 2045 | AT2: 2046 | AU2: 2047 | AV2: 2048 | AW2: 2049 | AX2: 2050
A3: Alberta | B3: Alberta | C3: t CO2e/GWh | D3: t d'ï¿½q CO2/GWh | E3: 961.2 | F3: 987.7 | G3: 923.8 | H3: 914.5 | I3: 826.1 | J3: 842.3 | K3: 800.1 | L3: 759.6 | M3: 785.7 | N3: 808.1 | O3: 811.2 | P3: 760.1 | Q3: 737.3 | R3: 598.5 | S3: 567.4 | T3: 523.1 | U3: 456.7 | V3: 369.4 | W3: 330 | X3: 186.9 | Y3: 182.7 | Z3: 192.1 | AA3: 212.9 | AB3: 147.1 | AC3: 149.4 | AD3: 153.6 | AE3: 138.3 | AF3: 130.8 | AG3: 127.8 | AH3: 119.3 | AI3: 115.6 | AJ3: 113.1 | AK3: 111.9 | AL3: 112.7 | AM3: 113.9 | AN3: 115.7 | AO3: 116.6 | AP3: 117.2 | AQ3: 118.4 | AR3: 120.1 | AS3: 121 | AT3: 121.6 | AU3: 122.7 | AV3: 124.1 | AW3: 122.5 | AX3: 124.4
A4: British Columbia | B4: Colombie-Britannique | C4: t CO2e/GWh | D4: t d'ï¿½q CO2/GWh | E4: 46.5 | F4: 41 | G4: 36.8 | H4: 41.8 | I4: 35.4 | J4: 44.4 | K4: 35.9 | L4: 23.4 | M4: 26.3 | N4: 20.8 | O4: 17.9 | P4: 21.7 | Q4: 21.1 | R4: 19.4 | S4: 20.6 | T4: 17.2 | U4: 22.1 | V4: 17.5 | W4: 16.2 | X4: 16 | Y4: 14.5 | Z4: 13.2 | AA4: 12.3 | AB4: 11.8 | AC4: 10.9 | AD4: 10.7 | AE4: 9.6 | AF4: 9.1 | AG4: 8.5 | AH4: 8.2 | AI4: 8.1 | AJ4: 8 | AK4: 8 | AL4: 8 | AM4: 8 | AN4: 8 | AO4: 8.1 | AP4: 8.1 | AQ4: 8.1 | AR4: 8.1 | AS4: 8.1 | AT4: 8.1 | AU4: 8.1 | AV4: 8.1 | AW4: 7.9 | AX4: 7.7
A5: Manitoba | B5: Manitoba | C5: t CO2e/GWh | D5: t d'ï¿½q CO2/GWh | E5: 19.2 | F5: 23.6 | G5: 26.2 | H5: 20.8 | I5: 9.5 | J5: 4.4 | K5: 5.8 | L5: 5.3 | M5: 5.4 | N5: 5.6 | O5: 5.6 | P5: 3.3 | Q5: 3.1 | R5: 1.8 | S5: 1.8 | T5: 1.9 | U5: 2.6 | V5: 0 | W5: 0 | X5: 0 | Y5: 0 | Z5: 0 | AA5: 0 | AB5: 0 | AC5: 0 | AD5: 0 | AE5: 0 | AF5: 0 | AG5: 0 | AH5: 0 | AI5: 0 | AJ5: 0 | AK5: 0 | AL5: 0 | AM5: 0 | AN5: 0 | AO5: 0 | AP5: 0 | AQ5: 0 | AR5: 0 | AS5: 0 | AT5: 0 | AU5: 0 | AV5: 0 | AW5: 0 | AX5: 0
A6: New Brunswick | B6: Nouveau-Brunswick | C6: t CO2e/GWh | D6: t d'ï¿½q CO2/GWh | E6: 590 | F6: 595.8 | G6: 539.4 | H6: 547.2 | I6: 537.8 | J6: 371.1 | K6: 326.2 | L6: 275.6 | M6: 264.4 | N6: 300.9 | O6: 302.7 | P6: 333.2 | Q6: 261.2 | R6: 281.8 | S6: 261.1 | T6: 181.5 | U6: 259.1 | V6: 255.1 | W6: 245 | X6: 242.1 | Y6: 243.6 | Z6: 230.3 | AA6: 230 | AB6: 228.1 | AC6: 105.1 | AD6: 59 | AE6: 43.8 | AF6: 35.1 | AG6: 21.4 | AH6: 16 | AI6: 10 | AJ6: 10 | AK6: 10.1 | AL6: 10.1 | AM6: 10.2 | AN6: 10.1 | AO6: 10.2 | AP6: 2.8 | AQ6: 2.8 | AR6: 2.8 | AS6: 2.8 | AT6: 2.8 | AU6: 2.8 | AV6: 2.8 | AW6: 2.8 | AX6: 2.9
A7: Newfoundland and Labrador | B7: Terre-Neuve-et-Labrador | C7: t CO2e/GWh | D7: t d'ï¿½q CO2/GWh | E7: 86.7 | F7: 65.2 | G7: 105.8 | H7: 85.4 | I7: 84.5 | J7: 71.7 | K7: 81.7 | L7: 79.3 | M7: 85.9 | N7: 119.8 | O7: 136.6 | P7: 151.4 | Q7: 145.1 | R7: 104.5 | S7: 103.5 | T7: 89.4 | U7: 80.9 | V7: 6.3 | W7: 9.4 | X7: 9.1 | Y7: 9.2 | Z7: 10.3 | AA7: 9.2 | AB7: 9.2 | AC7: 10.5 | AD7: 0 | AE7: 0 | AF7: 0 | AG7: 0 | AH7: 0 | AI7: 0 | AJ7: 0 | AK7: 0 | AL7: 0 | AM7: 0 | AN7: 0 | AO7: 0 | AP7: 0 | AQ7: 0 | AR7: 0 | AS7: 0 | AT7: 0 | AU7: 0 | AV7: 0 | AW7: 0 | AX7: 0
A8: Northwest Territory | B8: Territoires du Nord-Ouest | C8: t CO2e/GWh | D8: t d'ï¿½q CO2/GWh | E8: 302.2 | F8: 271.7 | G8: 291.8 | H8: 265.1 | I8: 210 | J8: 225.4 | K8: 222.4 | L8: 192.7 | M8: 180.1 | N8: 231.4 | O8: 353.7 | P8: 187.3 | Q8: 182.2 | R8: 194.9 | S8: 180.2 | T8: 172.9 | U8: 169.1 | V8: 253 | W8: 145.5 | X8: 1 | Y8: 0 | Z8: 0 | AA8: 0 | AB8: 0 | AC8: 0 | AD8: 0 | AE8: 0 | AF8: 0 | AG8: 0 | AH8: 0 | AI8: 0 | AJ8: 0 | AK8: 0 | AL8: 0 | AM8: 0 | AN8: 0 | AO8: 0 | AP8: 0 | AQ8: 0 | AR8: 0 | AS8: 0 | AT8: 0 | AU8: 0 | AV8: 0 | AW8: 0 | AX8: 0
A9: Nova Scotia | B9: Nouvelle-ï¿½cosse | C9: t CO2e/GWh | D9: t d'ï¿½q CO2/GWh | E9: 973.7 | F9: 1029.3 | G9: 984.3 | H9: 810.8 | I9: 827.2 | J9: 746.7 | K9: 751 | L9: 732.7 | M9: 719.4 | N9: 692.6 | O9: 647.1 | P9: 636.8 | Q9: 657.8 | R9: 691.9 | S9: 653.8 | T9: 628.7 | U9: 590.5 | V9: 661.8 | W9: 642.7 | X9: 560.1 | Y9: 513.9 | Z9: 482.4 | AA9: 453.1 | AB9: 370.9 | AC9: 144.2 | AD9: 84.6 | AE9: 75.7 | AF9: 65.9 | AG9: 59 | AH9: 52.8 | AI9: 45.1 | AJ9: 41.8 | AK9: 38.3 | AL9: 37.4 | AM9: 36.6 | AN9: 35.8 | AO9: 34.8 | AP9: 33.8 | AQ9: 33.2 | AR9: 32.4 | AS9: 31.4 | AT9: 30.4 | AU9: 29.7 | AV9: 29.1 | AW9: 24.8 | AX9: 26
A10: Nunavut | B10: Nunavut | C10: t CO2e/GWh | D10: t d'ï¿½q CO2/GWh | E10: 606.1 | F10: 507.6 | G10: 510.2 | H10: 539.1 | I10: 566.8 | J10: 566.8 | K10: 482.4 | L10: 484.2 | M10: 453.9 | N10: 567.6 | O10: 481.8 | P10: 607.6 | Q10: 574.9 | R10: 675.4 | S10: 673.5 | T10: 616.3 | U10: 638.9 | V10: 825.1 | W10: 798.9 | X10: 718.3 | Y10: 577.5 | Z10: 561.3 | AA10: 537.5 | AB10: 540.7 | AC10: 533.8 | AD10: 527.7 | AE10: 515.9 | AF10: 506.1 | AG10: 516.5 | AH10: 515.6 | AI10: 525.5 | AJ10: 529.5 | AK10: 535.2 | AL10: 537.4 | AM10: 545.5 | AN10: 551.6 | AO10: 553.5 | AP10: 562.6 | AQ10: 560.3 | AR10: 567.7 | AS10: 570.4 | AT10: 577.6 | AU10: 580.7 | AV10: 582.8 | AW10: 589.9 | AX10: 590.8
A11: Ontario | B11: Ontario | C11: t CO2e/GWh | D11: t d'ï¿½q CO2/GWh | E11: 243.9 | F11: 218.2 | G11: 240 | H11: 200.4 | I11: 124.6 | J11: 148 | K11: 100.4 | L11: 100.8 | M11: 67.8 | N11: 36.3 | O11: 46.3 | P11: 39.6 | Q11: 20.2 | R11: 29.2 | S11: 27.8 | T11: 28.4 | U11: 28.9 | V11: 75.4 | W11: 86.3 | X11: 68.1 | Y11: 89.2 | Z11: 74.5 | AA11: 89.6 | AB11: 77.5 | AC11: 71.2 | AD11: 59.5 | AE11: 57.8 | AF11: 52.2 | AG11: 45.1 | AH11: 35.9 | AI11: 33 | AJ11: 30.8 | AK11: 29.1 | AL11: 27.5 | AM11: 25.6 | AN11: 24.8 | AO11: 23.8 | AP11: 23.3 | AQ11: 22.6 | AR11: 21.6 | AS11: 20.5 | AT11: 19 | AU11: 17.8 | AV11: 17.2 | AW11: 17.9 | AX11: 19
A12: Prince Edward Island | B12: ï¿½le-du-Prince-ï¿½douard | C12: t CO2e/GWh | D12: t d'ï¿½q CO2/GWh | E12: 4.3 | F12: 2.9 | G12: 3.5 | H12: 3.5 | I12: 4.8 | J12: 1.4 | K12: 1.1 | L12: 8.9 | M12: 3.1 | N12: 3.4 | O12: 11.2 | P12: 3.5 | Q12: 6.5 | R12: 2.1 | S12: 0.8 | T12: 0.2 | U12: 1.3 | V12: 0 | W12: 0 | X12: 0 | Y12: 0 | Z12: 0 | AA12: 0 | AB12: 0 | AC12: 0 | AD12: 0 | AE12: 0 | AF12: 0 | AG12: 0 | AH12: 0 | AI12: 0 | AJ12: 0 | AK12: 0 | AL12: 0 | AM12: 0 | AN12: 0 | AO12: 0 | AP12: 0 | AQ12: 0 | AR12: 0 | AS12: 0 | AT12: 0 | AU12: 0 | AV12: 0 | AW12: 0 | AX12: 0
A13: Quebec | B13: Quï¿½bec | C13: t CO2e/GWh | D13: t d'ï¿½q CO2/GWh | E13: 11.4 | F13: 7.5 | G13: 18.5 | H13: 7.8 | I13: 9.9 | J13: 2.3 | K13: 2.6 | L13: 2.4 | M13: 1.4 | N13: 1.5 | O13: 1.3 | P13: 1.5 | Q13: 1.4 | R13: 1.4 | S13: 6.4 | T13: 1.8 | U13: 1.5 | V13: 4.9 | W13: 0.5 | X13: 0.4 | Y13: 0.4 | Z13: 3.9 | AA13: 7.7 | AB13: 11.2 | AC13: 14.7 | AD13: 18.1 | AE13: 18 | AF13: 17.9 | AG13: 17.8 | AH13: 17.7 | AI13: 17.6 | AJ13: 17.5 | AK13: 17.4 | AL13: 17.3 | AM13: 17.3 | AN13: 17.2 | AO13: 17.1 | AP13: 17.1 | AQ13: 17 | AR13: 16.9 | AS13: 16.8 | AT13: 11.7 | AU13: 11.7 | AV13: 11.6 | AW13: 11.6 | AX13: 11.5
A14: Saskatchewan | B14: Saskatchewan | C14: t CO2e/GWh | D14: t d'ï¿½q CO2/GWh | E14: 844.7 | F14: 813 | G14: 802.8 | H14: 770.2 | I14: 873 | J14: 847 | K14: 798.5 | L14: 808.5 | M14: 685.3 | N14: 701 | O14: 737.9 | P14: 722.7 | Q14: 704.6 | R14: 721.6 | S14: 700 | T14: 628.6 | U14: 726.7 | V14: 618.5 | W14: 587 | X14: 582.9 | Y14: 525.3 | Z14: 523.5 | AA14: 513.3 | AB14: 407.4 | AC14: 383.5 | AD14: 167.5 | AE14: 160.3 | AF14: 138.6 | AG14: 131.3 | AH14: 124.2 | AI14: 99.9 | AJ14: 91.2 | AK14: 87.9 | AL14: 83.8 | AM14: 79.6 | AN14: 75.8 | AO14: 77.3 | AP14: 78.3 | AQ14: 79.2 | AR14: 78.1 | AS14: 78 | AT14: 73.4 | AU14: 68.8 | AV14: 62.2 | AW14: 51.2 | AX14: 49.9
A15: Yukon Territory | B15: Yukon | C15: t CO2e/GWh | D15: t d'ï¿½q CO2/GWh | E15: 70 | F15: 53.4 | G15: 53.2 | H15: 51.2 | I15: 44.6 | J15: 48.5 | K15: 68.6 | L15: 42.8 | M15: 41.4 | N15: 41.5 | O15: 44.7 | P15: 47.2 | Q15: 53.5 | R15: 76.3 | S15: 113.3 | T15: 111.1 | U15: 79.6 | V15: 145.2 | W15: 159.8 | X15: 178.4 | Y15: 111.5 | Z15: 126 | AA15: 102.3 | AB15: 78.6 | AC15: 57.8 | AD15: 39.4 | AE15: 12.3 | AF15: 0.5 | AG15: 0 | AH15: 0.1 | AI15: 0.6 | AJ15: 1.7 | AK15: 4.7 | AL15: 9.9 | AM15: 15.6 | AN15: 22 | AO15: 31.4 | AP15: 39.6 | AQ15: 41.8 | AR15: 30.4 | AS15: 24.3 | AT15: 19.5 | AU15: 16.3 | AV15: 18.2 | AW15: 20.1 | AX15: 24.7
A17: In use | B17: ='User Input Output'!L21 -> New Brunswick | E17: =SUMIF($A$3:$A$15,$B17,E3:E15) -> 590 | F17: =SUMIF($A$3:$A$15,$B17,F3:F15) -> 595.8 | G17: 539.4 | H17: 547.2 | I17: 537.8 | J17: 371.1 | K17: 326.2 | L17: 275.6 | M17: 264.4 | N17: 300.9 | O17: 302.7 | P17: 333.2 | Q17: 261.2 | R17: 281.8 | S17: 261.1 | T17: 181.5 | U17: 259.1 | V17: 255.1 | W17: 245 | X17: 242.1 | Y17: 243.6 | Z17: 230.3 | AA17: 230 | AB17: 228.1 | AC17: 105.1 | AD17: 59 | AE17: 43.8 | AF17: 35.1 | AG17: 21.4 | AH17: 16 | AI17: 10 | AJ17: 10 | AK17: 10.1 | AL17: 10.1 | AM17: 10.2 | AN17: 10.1 | AO17: 10.2 | AP17: 2.8 | AQ17: 2.8 | AR17: 2.8 | AS17: 2.8 | AT17: 2.8 | AU17: 2.8 | AV17: 2.8 | AW17: 2.8 | AX17: 2.9
A18: Notes:
A19: The electricity grid intensities are calculated from Canadaï¿½s greenhouse gas and air pollutant emissions projections (https://protect-us.mimecast.com/s/7QlWCjRVD8tLMMEcWsGBw?domain=publications.gc.ca).
A20: The electricity grid intensities are computed by dividing electricity emissions by electricity sales from the utility grid within a province or territory. Electricity emissions are the sum of emissions from utility electricity production and emissions from industrial electricity sold to the utility grid (including emissions from electricity losses).
A21: This methodology implies that imports and exports of electricity are assumed to have an emissions intensity of zero while the electricity imported still contributes to the sales of electricity from the utility grid. This also means that emissions from exported electricity are attributed to the exporting province or territory.
A22: "x" indicates content suppressed in order to meet the confidentiality requirements of the Statistics Act.
A23: "0" Indicates data truncated due to rounding.
A24: -: no data.

Sheet Cities (hidden)
A1: Population and dwelling counts: Canada, provinces and territories, and census subdivisions (municipalities) 1
A2: Frequency: Occasional
A3: Table: 98-10-0002-02 | K3: Validation Table for Cities part of any given CTAP version
A4: Release date: 2022-02-09
A5: Geography: Canada, Province or territory, Census division, Census subdivision
A6: Universe: All persons, 2021 and 2016 censuses – 100% data
A7: Variable List: Population and dwelling counts (13)
A8: https://www150.statcan.gc.ca/t1/tbl1/en/tv.action?pid=9810000202&pickMembers%5B0%5D=1.488 | S8: CTAP
A9: Cities in use by this version of CTAP (based on Province of community under study) | S9: Version
A10: Province City | B10: Population, 2021 | C10: Total private dwellings, 2021 | D10: Total private dwellings, 2016 | E10: ACZ no. | F10: Ref. City | G10: HDD | H10: HDD scaling factor | K10: City | L10: Population, 2021 | M10: Total private dwellings, 2021 | N10: Total private dwellings, 2016 | O10: ACZ no. | P10: Ref. City | Q10: HDD | R10: HDD scaling factor | S10: 23 | V10: CTAP Versions customization for Cities and provinces as per version No.
A11: =CONCATENATE(Province," ",City) -> New Brunswick New Brunswick Aberdeen | B11: =SUMIF($A13:$A5500,$A11,B13:B5500) -> 0 | C11: =SUMIF($A13:$A5500,$A11,C13:C5500) -> 0 | D11: 0 | E11: 0 | F11: 0 | G11: 0 | H11: 0 | I11: <== in play | K11: Line below has formulas copied by macro to generate short list of cities. | S11: Province
A12: Canada | B12: =SUM(B13:B6000)/2 -> 36992051.5 | F12: =IF($E12=0,"",LOOKUP($E12,$V$13:$V$63,Y$13:Y$63)) ->  | G12: =IF($E12=0,"",LOOKUP($E12,$V$13:$V$63,AA$13:AA$63)) ->  | H12: =IF($E12=0,"",LOOKUP($E12,$V$13:$V$63,AC$13:AC$63)) ->  | J12: =IF(K12="",0,1) -> 0 | K12: =IF($I12=$S$12,RIGHT(A12,LEN(A12)-LEN(Province)-1),"") ->  | L12: =IF($I12=$S$12,B12,"") ->  | S12: =Statistics!D2 -> NB | V12: CTAP version | W12: Province | X12: Area | Y12: City | Z12: Climate Zone | AA12: HDD | AB12: Scaling factor | AC12: Province
A13: Nova Scotia Nova Scotia | B13: 969383 | C13: 476007 | D13: 458568 | E13: 31 | F13: =IF($E13=0,"",LOOKUP($E13,$V$13:$V$63,Y$13:Y$63)) -> Sydney Area | G13: =IF($E13=0,"",LOOKUP($E13,$V$13:$V$63,AA$13:AA$63)) -> 0 | H13: =IF($E13=0,"",LOOKUP($E13,$V$13:$V$63,AB$13:AB$63)) -> 1.01 | I13: NS | J13: 1 | K13: New Brunswick Aberdeen | L13: 812 | M13: 468 | N13: 503 | O13: 0 | S13: =Statistics!H2 -> Charlo | V13: 1 | W13: AB | X13: C6 1 | Y13: Lethbridge Area | Z13: 6 | AB13: 1.01 | AC13: Alberta
A14: Nova Scotia Amherst | B14: 9404 | C14: 4799 | D14: 4745 | E14: 31 | F14: =IF($E14=0,"",LOOKUP($E14,$V$13:$V$63,Y$13:Y$63)) -> Sydney Area | G14: =IF($E14=0,"",LOOKUP($E14,$V$13:$V$63,AA$13:AA$63)) -> 0 | H14: =IF($E14=0,"",LOOKUP($E14,$V$13:$V$63,AB$13:AB$63)) -> 1.01 | I14: NS | J14: 1 | K14: New Brunswick Acadieville | L14: 752 | M14: 381 | N14: 388 | O14: 0 | V14: 2 | W14: AB | X14: C6 2 | Y14: Medicine Hat Area | Z14: 6 | AB14: 1.01 | AC14: Alberta
A15: Nova Scotia Annapolis Royal | B15: 530 | C15: 364 | D15: 346 | E15: 31 | F15: Sydney Area | G15: 0 | H15: 1.01 | I15: NS | J15: 1 | K15: New Brunswick Addington | L15: 698 | M15: 354 | N15: 333 | O15: 0 | V15: 3 | W15: AB | X15: C7A 1 | Y15: Calgary Area | Z15: 7A | AB15: 1.01 | AC15: Alberta
A16: Nova Scotia Annapolis Valley First Nation | B16: 743 | C16: 330 | D16: 56 | E16: 31 | F16: Sydney Area | G16: 0 | H16: 1.01 | I16: NS | J16: 1 | K16: New Brunswick Allardville | L16: 1949 | M16: 919 | N16: 932 | O16: 0 | V16: 4 | W16: AB | X16: C7A 2 | Y16: Edmonton Area | Z16: 7A | AB16: 1.01 | AC16: Alberta
A17: Nova Scotia Annapolis, Subd. A | B17: 5980 | C17: 3435 | D17: 3412 | E17: 31 | F17: Sydney Area | G17: 0 | H17: 1.01 | I17: NS | J17: 1 | K17: New Brunswick Alma | L17: 282 | M17: 196 | N17: 202 | O17: 0 | V17: 5 | W17: AB | X17: C7A 3 | Y17: Cold Lake Area | Z17: yA | AB17: 1.01 | AC17: Alberta
A18: Nova Scotia Annapolis, Subd. B | B18: 4587 | C18: 2353 | D18: 2342 | E18: 31 | F18: Sydney Area | G18: 0 | H18: 1.01 | I18: NS | J18: 1 | K18: New Brunswick Alma 2 | L18: 5 | M18: 5 | N18: 3 | O18: 0 | V18: 6 | W18: AB | X18: C7B 1 | Y18: Fort McMurray Area | Z18: 7B | AB18: 1.01 | AC18: Alberta
A19: Nova Scotia Annapolis, Subd. C | B19: 5218 | C19: 2516 | D19: 2488 | E19: 31 | F19: Sydney Area | G19: 0 | H19: 1.01 | I19: NS | J19: 1 | K19: New Brunswick Alnwick | L19: 3615 | M19: 1852 | N19: 1882 | O19: 0 | V19: 7 | W19: AB | X19: C7B 2 | Y19: Peace River Area | Z19: 7B | AB19: 1.01 | AC19: Alberta
A20: Nova Scotia Annapolis, Subd. D | B20: 3049 | C20: 1964 | D20: 1805 | E20: 31 | F20: Sydney Area | G20: 0 | H20: 1.01 | I20: NS | J20: 1 | K20: New Brunswick Andover | L20: 879 | M20: 387 | N20: 407 | O20: 0 | V20: 8 | W20: BC | X20: C4 1 | Y20: Vancouver Area | Z20: 4 | AB20: 1.01 | AC20: British Columbia
A21: Nova Scotia Antigonish | B21: 4656 | C21: 2675 | D21: 2596 | E21: 31 | F21: Sydney Area | G21: 0 | H21: 1.01 | I21: NS | J21: 1 | K21: New Brunswick Aroostook | L21: 313 | M21: 163 | N21: 165 | O21: 0 | V21: 9 | W21: BC | X21: C4 2 | Y21: Victoria Area | Z21: 4 | AB21: 1.01 | AC21: British Columbia
A22: Nova Scotia Antigonish, Subd. A | B22: 8963 | C22: 4478 | D22: 4222 | E22: 31 | F22: Sydney Area | G22: 0 | H22: 1.01 | I22: NS | J22: 1 | K22: New Brunswick Atholville | L22: 3290 | M22: 1550 | N22: 1584 | O22: 0 | V22: 10 | W22: BC | X22: C5 1 | Y22: Kamloops Area | Z22: 5 | AB22: 1.01 | AC22: British Columbia
A23: Nova Scotia Antigonish, Subd. B | B23: 6138 | C23: 2849 | D23: 2890 | E23: 31 | F23: Sydney Area | G23: 0 | H23: 1.01 | I23: NS | J23: 1 | K23: New Brunswick Balmoral | L23: 309 | M23: 131 | N23: 120 | O23: 0 | V23: 11 | W23: BC | X23: C5 2 | Y23: Port Hardy Area | Z23: 5 | AB23: 1.01 | AC23: British Columbia
A24: Nova Scotia Argyle | B24: 7870 | C24: 3818 | D24: 3821 | E24: 31 | F24: Sydney Area | G24: 0 | H24: 1.01 | I24: NS | J24: 1 | K24: New Brunswick Balmoral 2 | L24: 1603 | M24: 713 | N24: 720 | O24: 0 | V24: 12 | W24: BC | X24: C6 1 | Y24: Prince George Area | Z24: 6 | AB24: 1.01 | AC24: British Columbia
A25: Nova Scotia Barrington | B25: 6523 | C25: 3546 | D25: 3494 | E25: 30 | F25: Yarmouth Area | G25: 5000 | H25: 1.01 | I25: NS | J25: 1 | K25: New Brunswick Bas-Caraquet | L25: 1311 | M25: 687 | N25: 675 | O25: 0 | V25: 13 | W25: BC | X25: C6 2 | Y25: Cranbrook Area | Z25: 6 | AB25: 1.01 | AC25: British Columbia
A26: Nova Scotia Bear River (Part) 6 | B26: 141 | C26: 56 | D26: 53 | E26: 31 | F26: =IF($E26=0,"",LOOKUP($E26,$V$13:$V$63,Y$13:Y$63)) -> Sydney Area | G26: =IF($E26=0,"",LOOKUP($E26,$V$13:$V$63,AA$13:AA$63)) -> 0 | H26: =IF($E26=0,"",LOOKUP($E26,$V$13:$V$63,AB$13:AB$63)) -> 1.01 | I26: NS | J26: 1 | K26: New Brunswick Bath | L26: 440 | M26: 223 | N26: 224 | O26: 0 | V26: 14 | W26: BC | X26: C7A 1 | Y26: Fort St John Area | Z26: 7A | AB26: 1.01 | AC26: British Columbia
A27: Nova Scotia Bear River (Part) 6 2 | B27: 141 | C27: 56 | D27: 53 | E27: 31 | F27: Sydney Area | G27: 0 | H27: 1.01 | I27: NS | J27: 1 | K27: New Brunswick Bathurst | L27: 4761 | M27: 2293 | N27: 2292 | O27: 0 | V27: 15 | W27: BC | X27: C7A 2 | Y27: Smithers Area | Z27: 7A | AB27: 1.01 | AC27: British Columbia
A28: Nova Scotia Bear River 6B | B28: 15 | C28: 3 | D28: 3 | E28: 31 | F28: Sydney Area | G28: 0 | H28: 1.01 | I28: NS | J28: 1 | K28: New Brunswick Bathurst 2 | L28: 12157 | M28: 6445 | N28: 6317 | O28: 0 | V28: 16 | W28: MB | X28: C7A 1 | Y28: Winnipeg Area | Z28: 7A | AB28: 1.01 | AC28: Manitoba
A29: Nova Scotia Beaver Lake 17 | B29: 20 | C29: 6 | D29: 5 | E29: 31 | F29: Sydney Area | G29: 0 | H29: 1.01 | I29: NS | J29: 1 | K29: New Brunswick Beaubassin East / Beaubassin-est | L29: 6718 | M29: 3368 | N29: 3388 | O29: 0 | V29: 17 | W29: MB | X29: C7A 2 | Y29: Brandon Area | Z29: 7A | AB29: 1.01 | AC29: Manitoba
A30: Nova Scotia Berwick | B30: 2455 | C30: 1080 | D30: 1071 | E30: 31 | F30: Sydney Area | G30: 0 | H30: 1.01 | I30: NS | J30: 1 | K30: New Brunswick Belledune | L30: 1325 | M30: 782 | N30: 883 | O30: 0 | V30: 18 | W30: MB | X30: C7B 1 | Y30: The Pass Area | Z30: 7B | AB30: 1.01 | AC30: Manitoba
A31: Nova Scotia Bridgewater | B31: 8790 | C31: 4493 | D31: 4299 | E31: 31 | F31: Sydney Area | G31: 0 | H31: 1.01 | I31: NS | J31: 1 | K31: New Brunswick Beresford | L31: 6226 | M31: 2785 | N31: 2780 | O31: 0 | V31: 19 | W31: MB | X31: C7B 2 | Y31: Portage La Prairie Area | Z31: 7B | AB31: 1.01 | AC31: Manitoba
A32: Nova Scotia Cape Breton 3 | B32: 93694 | C32: 46471 | D32: 45741 | E32: 31 | F32: Sydney Area | G32: 0 | H32: 1.01 | I32: NS | J32: 1 | K32: New Brunswick Beresford 2 | L32: 4294 | M32: 2225 | N32: 2150 | O32: 0 | V32: 20 | W32: MB | X32: C8 1 | Y32: Churchill Area | Z32: 8 | AB32: 1.01 | AC32: Manitoba
A33: Nova Scotia Chapel Island 5 | B33: 405 | C33: 147 | D33: 167 | E33: 31 | F33: Sydney Area | G33: 0 | H33: 1.01 | I33: NS | J33: 1 | K33: New Brunswick Bertrand | L33: 1153 | M33: 665 | N33: 678 | O33: 0 | V33: 21 | W33: MB | X33: C8 2 | Y33: Thompson Area | Z33: 8 | AB33: 1.01 | AC33: Manitoba
A34: Nova Scotia Chester | B34: 10693 | C34: 6482 | D34: 6492 | E34: 31 | F34: Sydney Area | G34: 0 | H34: 1.01 | I34: NS | J34: 1 | K34: New Brunswick Big Hole Tract 8 (North Half) 4 | L34: 30 | M34: 15 | N34: 17 | O34: 0 | V34: 22 | W34: NB | X34: C6 | Y34: Fredericton Area | Z34: 6 | AB34: 1.01 | AC34: New Brunswick
A35: Nova Scotia Clare | B35: 7678 | C35: 4393 | D35: 4681 | E35: 31 | F35: Sydney Area | G35: 0 | H35: 1.01 | I35: NS | J35: 1 | K35: New Brunswick Big Hole Tract 8 (South Half) 4 | L35: 16 | M35: 16 | N35: 16 | O35: 0 | V35: 23 | W35: NB | X35: C7A | Y35: Charlo Area | Z35: 7A | AB35: 1.01 | AC35: New Brunswick
A36: Nova Scotia Clark's Harbour | B36: 725 | C36: 399 | D36: 407 | E36: 30 | F36: Yarmouth Area | G36: 0 | H36: 1.01 | I36: NS | J36: 1 | K36: New Brunswick Blacks Harbour | L36: 907 | M36: 421 | N36: 411 | O36: 0 | V36: 24 | W36: NF | X36: C6 | Y36: Saint Johns Area | Z36: 6 | AB36: 1.01 | AC36: Newfoundland and Labrador
A37: Nova Scotia Colchester, Subd. A | B37: 3762 | C37: 2262 | D37: 2219 | E37: 31 | F37: Sydney Area | G37: 0 | H37: 1.01 | I37: NS | J37: 1 | K37: New Brunswick Blackville | L37: 1996 | M37: 970 | N37: 974 | O37: 0 | V37: 25 | W37: NF | X37: C7A | Y37: Gander Area | Z37: 7A | AB37: 1.01 | AC37: Newfoundland and Labrador
A38: Nova Scotia Colchester, Subd. B | B38: 19806 | C38: 9836 | D38: 9564 | E38: 31 | F38: Sydney Area | G38: 0 | H38: 1.01 | I38: NS | J38: 1 | K38: New Brunswick Blackville 2 | L38: 914 | M38: 446 | N38: 417 | O38: 0 | V38: 26 | W38: NU | X38: C8 | Y38: Resolute Area | Z38: 8 | AB38: 1.01 | AC38: Nunavut
A39: Nova Scotia Colchester, Subd. C | B39: 12476 | C39: 5779 | D39: 6031 | E39: 31 | F39: Sydney Area | G39: 0 | H39: 1.01 | I39: NS | J39: 1 | K39: New Brunswick Blissfield | L39: 491 | M39: 256 | N39: 268 | O39: 0 | V39: 27 | W39: NW | X39: C8 1 | Y39: Yellowknife Area | Z39: 8 | AB39: 1.01 | AC39: Northwest Territories
A40: Nova Scotia Cole Harbour 30 | B40: 208 | C40: 130 | D40: 123 | E40: 31 | F40: Sydney Area | G40: 0 | H40: 1.01 | I40: NS | J40: 1 | K40: New Brunswick Blissville | L40: 777 | M40: 369 | N40: 378 | O40: 0 | V40: 28 | W40: NW | X40: C8 2 | Y40: Inuvik Area | Z40: 8 | AB40: 1.01 | AC40: Northwest Territories
A41: Nova Scotia Cumberland, Subd. A 3 | B41: 3201 | C41: 2107 | D41: 2162 | E41: 31 | F41: Sydney Area | G41: 0 | H41: 1.01 | I41: NS | J41: 1 | K41: New Brunswick Botsford | L41: 1120 | M41: 978 | N41: 1045 | O41: 0 | V41: 29 | W41: YK | X41: C8 | Y41: Whitehorse Area | Z41: 8 | AB41: 1.01 | AC41: Yukon
A42: Nova Scotia Cumberland, Subd. B | B42: 6786 | C42: 3448 | D42: 3558 | E42: 31 | F42: Sydney Area | G42: 0 | H42: 1.01 | I42: NS | J42: 1 | K42: New Brunswick Bouctouche | L42: 2513 | M42: 1188 | N42: 1179 | O42: 0 | V42: 30 | W42: NS | X42: C5 | Y42: Yarmouth Area | Z42: 5 | AB42: 1.01 | AC42: Nova Scotia
A43: Nova Scotia Cumberland, Subd. C | B43: 5694 | C43: 4111 | D43: 4003 | E43: 31 | F43: Sydney Area | G43: 0 | H43: 1.01 | I43: NS | J43: 1 | K43: New Brunswick Bright | L43: 3317 | M43: 1477 | N43: 1440 | O43: 0 | V43: 31 | W43: NS | X43: C6 1 | Y43: Sydney Area | Z43: 6 | AB43: 1.01 | AC43: Nova Scotia
A44: Nova Scotia Cumberland, Subd. D | B44: 4283 | C44: 3322 | D44: 3380 | E44: 31 | F44: Sydney Area | G44: 0 | H44: 1.01 | I44: NS | J44: 1 | K44: New Brunswick Brighton | L44: 1596 | M44: 773 | N44: 814 | O44: 0 | V44: 32 | W44: NS | X44: C6 2 | Y44: Truro Area | Z44: 6 | AB44: 1.01 | AC44: Nova Scotia
A45: Nova Scotia Digby | B45: 7242 | C45: 4099 | D45: 4048 | E45: 31 | F45: Sydney Area | G45: 0 | H45: 1.01 | I45: NS | J45: 1 | K45: New Brunswick Brunswick | L45: 224 | M45: 193 | N45: 159 | O45: 0 | V45: 33 | W45: Ontario | X45: C5 1 | Y45: Simcoe Area | Z45: 5 | AB45: 1.01 | AC45: Ontario
A46: Nova Scotia Digby 2 | B46: 2001 | C46: 1133 | D46: 1145 | E46: 31 | F46: Sydney Area | G46: 0 | H46: 1.01 | I46: NS | J46: 1 | K46: New Brunswick Buctouche 16 | L46: 101 | M46: 44 | N46: 40 | O46: 0 | V46: 34 | W46: Ontario | X46: C5 2 | Y46: Windsor Area | Z46: 5 | AB46: 1.01 | AC46: Ontario
A47: Nova Scotia East Hants | B47: 22892 | C47: 10046 | D47: 9930 | E47: 31 | F47: Sydney Area | G47: 0 | H47: 1.01 | I47: NS | J47: 1 | K47: New Brunswick Burton | L47: 5176 | M47: 2074 | N47: 2020 | O47: 0 | V47: 35 | W47: Ontario | X47: C6 1 | Y47: Ottawa Area | Z47: 6 | AB47: 1.01 | AC47: Ontario
A48: Nova Scotia Eskasoni 3 | B48: 3521 | C48: 1138 | D48: 1114 | E48: 31 | F48: Sydney Area | G48: 0 | H48: 1.01 | I48: NS | J48: 1 | K48: New Brunswick Cambridge | L48: 684 | M48: 478 | N48: 617 | O48: 0 | V48: 36 | W48: Ontario | X48: C6 2 | Y48: Sault St. Marie Area | Z48: 6 | AB48: 1.01 | AC48: Ontario
A49: Nova Scotia Fisher's Grant 24 | B49: 449 | C49: 158 | D49: 158 | E49: 31 | F49: Sydney Area | G49: 0 | H49: 1.01 | I49: NS | J49: 1 | K49: New Brunswick Cambridge-Narrows | L49: 715 | M49: 629 | N49: 659 | O49: 0 | V49: 37 | W49: Ontario | X49: C7A 1 | Y49: North Bay Area | Z49: 7A | AB49: 1.01 | AC49: Ontario
A50: Nova Scotia Glooscap 35 | B50: 111 | C50: 52 | D50: 36 | E50: 31 | F50: Sydney Area | G50: 0 | H50: 1.01 | I50: NS | J50: 1 | K50: New Brunswick Campbellton | L50: 7047 | M50: 3531 | N50: 3443 | O50: 0 | V50: 38 | W50: Ontario | X50: C7A 2 | Y50: Timmins Area | Z50: 7A | AB50: 1.01 | AC50: Ontario
A51: Nova Scotia Gold River 21 | B51: 81 | C51: 34 | D51: 34 | E51: 31 | F51: Sydney Area | G51: 0 | H51: 1.01 | I51: NS | J51: 1 | K51: New Brunswick Campobello Island | L51: 949 | M51: 612 | N51: 616 | O51: 0 | V51: 39 | W51: PEI | X51: C6 | Y51: Charlottetown Area | Z51: 6 | AB51: 1 | AC51: Prince Edward Island
A52: Nova Scotia Guysborough | B52: 4585 | C52: 3043 | D52: 3196 | E52: 31 | F52: Sydney Area | G52: 0 | H52: 1.01 | I52: NS | J52: 1 | K52: New Brunswick Canning | L52: 1028 | M52: 850 | N52: 755 | O52: 0 | V52: 40 | W52: Quebec | X52: C6 1 | Y52: Montreal Area | Z52: 6 | AB52: 1.01 | AC52: Quebec
A53: Nova Scotia Halifax | B53: 439819 | C53: 200473 | D53: 187338 | E53: 31 | F53: Sydney Area | G53: 0 | H53: 1.01 | I53: NS | J53: 1 | K53: New Brunswick Canterbury | L53: 552 | M53: 419 | N53: 456 | O53: 0 | V53: 41 | W53: Quebec | X53: C6 2 | Y53: Sherbrooke Area | Z53: 6 | AB53: 1.01 | AC53: Quebec
A54: Nova Scotia Indian Brook 14 | B54: 2739 | C54: 1124 | D54: 382 | E54: 31 | F54: Sydney Area | G54: 0 | H54: 1.01 | I54: NS | J54: 1 | K54: New Brunswick Canterbury 2 | L54: 320 | M54: 142 | N54: 152 | O54: 0 | V54: 42 | W54: Quebec | X54: C7A 1 | Y54: Quebec Area | Z54: 7A | AB54: 1.01 | AC54: Quebec
A55: Nova Scotia Inverness, Subd. A | B55: 5207 | C55: 3257 | D55: 3255 | E55: 31 | F55: Sydney Area | G55: 0 | H55: 1.01 | I55: NS | J55: 1 | K55: New Brunswick Cap-Pelé | L55: 2441 | M55: 1144 | N55: 1078 | O55: 0 | V55: 43 | W55: Quebec | X55: C7A 2 | Y55: Ste. Agathe-des-Monts Area | Z55: 7A | AB55: 1.01 | AC55: Quebec
A56: Nova Scotia Inverness, Subd. B | B56: 4865 | C56: 2688 | D56: 2775 | E56: 31 | F56: Sydney Area | G56: 0 | H56: 1.01 | I56: NS | J56: 1 | K56: New Brunswick Caraquet | L56: 1261 | M56: 659 | N56: 668 | O56: 0 | V56: 44 | W56: Quebec | X56: C7B 1 | Y56: Val D'Or Area | Z56: 7B | AB56: 1.01 | AC56: Quebec
A57: Nova Scotia Inverness, Subd. C 3 | B57: 3167 | C57: 1969 | D57: 1982 | E57: 31 | F57: Sydney Area | G57: 0 | H57: 1.01 | I57: NS | J57: 1 | K57: New Brunswick Caraquet 2 | L57: 4285 | M57: 2150 | N57: 2075 | O57: 0 | V57: 45 | W57: Quebec | X57: C7B 2 | Y57: Sept-iles Area | Z57: 7B | AB57: 1.01 | AC57: Quebec
A58: Nova Scotia Kentville | B58: 6630 | C58: 3090 | D58: 2891 | E58: 31 | F58: Sydney Area | G58: 0 | H58: 1.01 | I58: NS | J58: 1 | K58: New Brunswick Cardwell | L58: 1401 | M58: 721 | N58: 709 | O58: 0 | V58: 46 | W58: Quebec | X58: C8 | Y58: La Grande Riviere Area | Z58: 8 | AB58: 1.01 | AC58: Quebec
A59: Nova Scotia Kings, Subd. A | B59: 22355 | C59: 10711 | D59: 10635 | E59: 31 | F59: Sydney Area | G59: 0 | H59: 1.01 | I59: NS | J59: 1 | K59: New Brunswick Carleton | L59: 764 | M59: 413 | N59: 404 | O59: 0 | V59: 47 | W59: SK | X59: C7A 1 | Y59: Regina Area | Z59: 7A | AB59: 1.01 | AC59: Saskatchewan
A60: Nova Scotia Kings, Subd. B | B60: 11951 | C60: 5704 | D60: 5567 | E60: 31 | F60: Sydney Area | G60: 0 | H60: 1.01 | I60: NS | J60: 1 | K60: New Brunswick Centreville | L60: 508 | M60: 263 | N60: 278 | O60: 0 | V60: 48 | W60: SK | X60: C7A 2 | Y60: Saskatoon Area | Z60: 7A | AB60: 1.01 | AC60: Saskatchewan
A61: Nova Scotia Kings, Subd. C | B61: 8348 | C61: 3952 | D61: 3817 | E61: 31 | F61: Sydney Area | G61: 0 | H61: 1.01 | I61: NS | J61: 1 | K61: New Brunswick Charlo | L61: 1323 | M61: 724 | N61: 719 | O61: 0 | V61: 49 | W61: SK | X61: C7B 1 | Y61: Yorkton Area | Z61: 7B | AB61: 1.01 | AC61: Saskatchewan
A62: Nova Scotia Kings, Subd. D | B62: 5264 | C62: 2591 | D62: 2529 | E62: 31 | F62: Sydney Area | G62: 0 | H62: 1.01 | I62: NS | J62: 1 | K62: New Brunswick Chatham | L62: 527 | M62: 269 | N62: 262 | O62: 0 | V62: 50 | W62: SK | X62: C7B 2 | Y62: Prince Albert Area | Z62: 7B | AB62: 1.01 | AC62: Saskatchewan
A63: Nova Scotia Lockeport | B63: 476 | C63: 307 | D63: 320 | E63: 30 | F63: Yarmouth Area | G63: 0 | H63: 1.01 | I63: NS | J63: 1 | K63: New Brunswick Chipman | L63: 853 | M63: 504 | N63: 541 | O63: 0 | V63: 51 | W63: SK | X63: C8 1 | Y63: Uranium City Area | Z63: 8 | AB63: 1.01 | AC63: Saskatchewan
A64: Nova Scotia Lunenburg 1 | B64: 25545 | C64: 14233 | D64: 14038 | E64: 32 | F64: Truro Area | G64: 0 | H64: 1.01 | I64: NS | J64: 1 | K64: New Brunswick Chipman 2 | L64: 1201 | M64: 647 | N64: 638 | O64: 0
A65: Nova Scotia Lunenburg 2 | B65: 2396 | C65: 1242 | D65: 1206 | E65: 32 | F65: Truro Area | G65: 0 | H65: 1.01 | I65: NS | J65: 1 | K65: New Brunswick Clarendon | L65: 66 | M65: 64 | N65: 90 | O65: 0
A66: Nova Scotia Mahone Bay | B66: 1064 | C66: 599 | D66: 571 | E66: 32 | F66: Truro Area | G66: 0 | H66: 1.01 | I66: NS | J66: 1 | K66: New Brunswick Cocagne | L66: 2757 | M66: 1430 | N66: 1418 | O66: 0
A67: Nova Scotia Malagawatch 4 3 | B67: 20 | C67: 22 | D67: 40 | E67: 32 | F67: Truro Area | G67: 0 | H67: 1.01 | I67: NS | J67: 1 | K67: New Brunswick Colborne | L67: 266 | M67: 162 | N67: 144 | O67: 0
A68: Nova Scotia Medway River 11 3 | B68: 15 | C68: 7 | D68: 3 | E68: 32 | F68: Truro Area | G68: 0 | H68: 1.01 | I68: NS | J68: 1 | K68: New Brunswick Coverdale | L68: 4766 | M68: 1919 | N68: 1806 | O68: 0
A69: Nova Scotia Membertou 28B | B69: 1103 | C69: 411 | D69: 349 | E69: 32 | F69: Truro Area | G69: 0 | H69: 1.01 | I69: NS | J69: 1 | K69: New Brunswick Dalhousie | L69: 1090 | M69: 551 | N69: 531 | O69: 0
A70: Nova Scotia Merigomish Harbour 31 | B70: 0 | C70: 0 | D70: 0 | E70: 32 | F70: Truro Area | G70: 0 | H70: 1.01 | I70: NS | J70: 1 | K70: New Brunswick Dalhousie 2 | L70: 3223 | M70: 1678 | N70: 1696 | O70: 0
A71: Nova Scotia Middleton | B71: 1873 | C71: 977 | D71: 995 | E71: 32 | F71: Truro Area | G71: 0 | H71: 1.01 | I71: NS | J71: 1 | K71: New Brunswick Denmark | L71: 1424 | M71: 677 | N71: 733 | O71: 0
A72: Nova Scotia Millbrook 27 | B72: 921 | C72: 364 | D72: 309 | E72: 32 | F72: Truro Area | G72: 0 | H72: 1.01 | I72: NS | J72: 1 | K72: New Brunswick Derby | L72: 938 | M72: 450 | N72: 466 | O72: 0
A73: Nova Scotia Mulgrave | B73: 627 | C73: 316 | D73: 327 | E73: 32 | F73: Truro Area | G73: 0 | H73: 1.01 | I73: NS | J73: 1 | K73: New Brunswick Devon 30 | L73: 1070 | M73: 365 | N73: 323 | O73: 0
A74: Nova Scotia New Glasgow | B74: 9471 | C74: 4782 | D74: 4640 | E74: 32 | F74: Truro Area | G74: 0 | H74: 1.01 | I74: NS | J74: 1 | K74: New Brunswick Dieppe | L74: 28114 | M74: 11993 | N74: 10829 | O74: 0
A75: Nova Scotia New Ross 20 | B75: 0 | C75: 0 | D75: 0 | E75: 32 | F75: Truro Area | G75: 0 | H75: 1.01 | I75: NS | J75: 1 | K75: New Brunswick Doaktown | L75: 808 | M75: 430 | N75: 425 | O75: 0
A76: Nova Scotia Oxford | B76: 1170 | C76: 576 | D76: 597 | E76: 32 | F76: Truro Area | G76: 0 | H76: 1.01 | I76: NS | J76: 1 | K76: New Brunswick Dorchester | L76: 438 | M76: 207 | N76: 215 | O76: 0
A77: Nova Scotia Paqtnkek-Niktuek No. 23 | B77: 372 | C77: 143 | D77: 134 | E77: 32 | F77: Truro Area | G77: 0 | H77: 1.01 | I77: NS | J77: 1 | K77: New Brunswick Dorchester 2 | L77: 906 | M77: 221 | N77: 235 | O77: 0
A78: Nova Scotia Pennal 19 | B78: 30 | C78: 9 | D78: 8 | E78: 32 | F78: =IF($E78=0,"",LOOKUP($E78,$V$13:$V$63,Y$13:Y$63)) -> Truro Area | G78: =IF($E78=0,"",LOOKUP($E78,$V$13:$V$63,AA$13:AA$63)) -> 0 | H78: =IF($E78=0,"",LOOKUP($E78,$V$13:$V$63,AB$13:AB$63)) -> 1.01 | I78: NS | J78: 1 | K78: New Brunswick Douglas 4 | L78: 5935 | M78: 2357 | N78: 2368 | O78: 0
A79: Nova Scotia Pictou | B79: 3107 | C79: 1600 | D79: 1627 | E79: 32 | F79: Truro Area | G79: 0 | H79: 1.01 | I79: NS | J79: 1 | K79: New Brunswick Drummond | L79: 2095 | M79: 899 | N79: 938 | O79: 0
A80: Nova Scotia Pictou, Subd. A | B80: 6153 | C80: 3739 | D80: 3863 | E80: 32 | F80: Truro Area | G80: 0 | H80: 1.01 | I80: NS | J80: 1 | K80: New Brunswick Drummond 2 | L80: 729 | M80: 350 | N80: 350 | O80: 0
A81: Nova Scotia Pictou, Subd. B | B81: 6137 | C81: 2817 | D81: 2769 | E81: 32 | F81: Truro Area | G81: 0 | H81: 1.01 | I81: NS | J81: 1 | K81: New Brunswick Dufferin | L81: 565 | M81: 265 | N81: 256 | O81: 0
A82: Nova Scotia Pictou, Subd. C | B82: 8386 | C82: 4470 | D82: 4546 | E82: 32 | F82: Truro Area | G82: 0 | H82: 1.01 | I82: NS | J82: 1 | K82: New Brunswick Dumbarton | L82: 346 | M82: 182 | N82: 195 | O82: 0
A83: Nova Scotia Ponhook Lake 10 | B83: 15 | C83: 6 | D83: 7 | E83: 32 | F83: Truro Area | G83: 0 | H83: 1.01 | I83: NS | J83: 1 | K83: New Brunswick Dumfries | L83: 420 | M83: 304 | N83: 334 | O83: 0
A84: Nova Scotia Port Hawkesbury | B84: 3210 | C84: 1523 | D84: 1554 | E84: 32 | F84: Truro Area | G84: 0 | H84: 1.01 | I84: NS | J84: 1 | K84: New Brunswick Dundas | L84: 4332 | M84: 2569 | N84: 2529 | O84: 0
A85: Nova Scotia Queens 3 | B85: 10422 | C85: 6676 | D85: 6583 | E85: 32 | F85: Truro Area | G85: 0 | H85: 1.01 | I85: NS | J85: 1 | K85: New Brunswick Durham | L85: 950 | M85: 563 | N85: 592 | O85: 0
A86: Nova Scotia Richmond, Subd. A | B86: 3763 | C86: 2104 | D86: 2083 | E86: 32 | F86: Truro Area | G86: 0 | H86: 1.01 | I86: NS | J86: 1 | K86: New Brunswick Edmundston | L86: 16437 | M86: 8117 | N86: 8051 | O86: 0
A87: Nova Scotia Richmond, Subd. B 3 | B87: 1610 | C87: 1287 | D87: 1252 | E87: 32 | F87: Truro Area | G87: 0 | H87: 1.01 | I87: NS | J87: 1 | K87: New Brunswick Eel Ground 2 | L87: 545 | M87: 235 | N87: 234 | O87: 0
A88: Nova Scotia Richmond, Subd. C | B88: 3136 | C88: 1692 | D88: 1621 | E88: 32 | F88: Truro Area | G88: 0 | H88: 1.01 | I88: NS | J88: 1 | K88: New Brunswick Eel River 3 | L88: 342 | M88: 157 | N88: 146 | O88: 0
A89: Nova Scotia Sheet Harbour 36 | B89: 10 | C89: 7 | D89: 9 | E89: 32 | F89: Truro Area | G89: 0 | H89: 1.01 | I89: NS | J89: 1 | K89: New Brunswick Eel River Crossing | L89: 1844 | M89: 887 | N89: 893 | O89: 0
A90: Nova Scotia Shelburne 1 | B90: 4336 | C90: 2735 | D90: 2635 | E90: 30 | F90: Yarmouth Area | G90: 0 | H90: 1.01 | I90: NS | J90: 1 | K90: New Brunswick Eldon 5 | L90: 674 | M90: 369 | N90: 367 | O90: 0
A91: Nova Scotia Shelburne 2 | B91: 1644 | C91: 917 | D91: 909 | E91: 30 | F91: Yarmouth Area | G91: 0 | H91: 1.01 | I91: NS | J91: 1 | K91: New Brunswick Elgin | L91: 1064 | M91: 610 | N91: 595 | O91: 0
A92: Nova Scotia St. Mary's | B92: 2161 | C92: 1538 | D92: 1667 | E92: 0 | I92: NS | J92: 1 | K92: New Brunswick Esgenoôpetitj 14 | L92: 1223 | M92: 472 | N92: 401 | O92: 0
A93: Nova Scotia Stellarton | B93: 4007 | C93: 2017 | D93: 2018 | E93: 0 | I93: NS | J93: 1 | K93: New Brunswick Florenceville-Bristol | L93: 1573 | M93: 729 | N93: 723 | O93: 0
A94: Nova Scotia Stewiacke | B94: 1557 | C94: 739 | D94: 681 | E94: 0 | I94: NS | J94: 1 | K94: New Brunswick Fort Folly 1 | L94: 36 | M94: 22 | N94: 22 | O94: 0
A95: Nova Scotia Trenton | B95: 2407 | C95: 1167 | D95: 1206 | E95: 0 | I95: NS | J95: 1 | K95: New Brunswick Fredericton 5 | L95: 63116 | M95: 29892 | N95: 28632 | O95: 0
A96: Nova Scotia Truro | B96: 12954 | C96: 6658 | D96: 6574 | E96: 0 | I96: NS | J96: 1 | K96: New Brunswick Fredericton Junction | L96: 719 | M96: 304 | N96: 298 | O96: 0
A97: Nova Scotia Victoria, Subd. A | B97: 2673 | C97: 1788 | D97: 1672 | E97: 0 | I97: NS | J97: 1 | K97: New Brunswick Gagetown | L97: 324 | M97: 149 | N97: 155 | O97: 0
A98: Nova Scotia Victoria, Subd. B | B98: 4077 | C98: 2755 | D98: 2599 | E98: 0 | I98: NS | J98: 1 | K98: New Brunswick Gagetown 2 | L98: 787 | M98: 341 | N98: 339 | O98: 0
A99: Nova Scotia Wagmatcook 1 | B99: 691 | C99: 210 | D99: 166 | E99: 0 | I99: NS | J99: 1 | K99: New Brunswick Gladstone | L99: 486 | M99: 227 | N99: 239 | O99: 0
A100: Nova Scotia Wallace Hills 14A | B100: 15 | C100: 3 | D100: 3 | E100: 0 | I100: NS | J100: 1 | K100: New Brunswick Glenelg | L100: 1532 | M100: 729 | N100: 742 | O100: 0
A101: Nova Scotia West Hants 3 | B101: 19509 | C101: 9136 | D101: 8890 | E101: 0 | I101: NS | J101: 1 | K101: New Brunswick Gordon | L101: 1559 | M101: 776 | N101: 786 | O101: 0
A102: Nova Scotia Westville | B102: 3540 | C102: 1660 | D102: 1698 | E102: 0 | I102: NS | J102: 1 | K102: New Brunswick Grand Bay-Westfield | L102: 4967 | M102: 2031 | N102: 2029 | O102: 0
A103: Nova Scotia Whycocomagh 2 | B103: 877 | C103: 278 | D103: 270 | E103: 0 | I103: NS | J103: 1 | K103: New Brunswick Grand Falls | L103: 1077 | M103: 488 | N103: 506 | O103: 0
A104: Nova Scotia Wildcat 12 | B104: 49 | C104: 16 | D104: 15 | E104: 0 | I104: NS | J104: 1 | K104: New Brunswick Grand Falls / Grand-Sault | L104: 5220 | M104: 2639 | N104: 2622 | O104: 0
A105: Nova Scotia Wolfville | B105: 5057 | C105: 2856 | D105: 2585 | E105: 0 | I105: NS | J105: 1 | K105: New Brunswick Grand Manan | L105: 139 | M105: 106 | N105: 103 | O105: 0
A106: Nova Scotia Yarmouth 1 | B106: 10067 | C106: 5072 | D106: 4981 | E106: 30 | F106: Yarmouth Area | G106: 0 | H106: 1.01 | I106: NS | J106: 1 | K106: New Brunswick Grand Manan 2 | L106: 2595 | M106: 1408 | N106: 1365 | O106: 0
A107: Nova Scotia Yarmouth 2 | B107: 6829 | C107: 3569 | D107: 3470 | E107: 30 | F107: Yarmouth Area | G107: 0 | H107: 1.01 | I107: NS | J107: 1 | K107: New Brunswick Grande-Anse | L107: 731 | M107: 412 | N107: 517 | O107: 0
A108: Nova Scotia Yarmouth 33 | B108: 181 | C108: 70 | D108: 70 | E108: 30 | F108: Yarmouth Area | G108: 0 | H108: 1.01 | I108: NS | J108: 1 | K108: New Brunswick Greenwich | L108: 1126 | M108: 579 | N108: 560 | O108: 0
B109: 0 | C109: 0 | D109: 0 | E109: 0 | J109: 1 | K109: New Brunswick Hammond | L109: 276 | M109: 159 | N109: 153 | O109: 0
A110: Newfoundland and Labrador | B110: 510550 | C110: 269184 | D110: 265739 | E110: 0 | I110: NF | J110: 1 | K110: New Brunswick Hampstead | L110: 288 | M110: 167 | N110: 185 | O110: 0
A111: Newfoundland and Labrador Admirals Beach | B111: 97 | C111: 76 | D111: 80 | E111: 0 | I111: NF | J111: 1 | K111: New Brunswick Hampton | L111: 2969 | M111: 1216 | N111: 1157 | O111: 0
A112: Newfoundland and Labrador Anchor Point | B112: 305 | C112: 131 | D112: 130 | E112: 0 | I112: NF | J112: 1 | K112: New Brunswick Hampton 2 | L112: 4395 | M112: 1804 | N112: 1709 | O112: 0
A113: Newfoundland and Labrador Appleton | B113: 620 | C113: 285 | D113: 246 | E113: 0 | I113: NF | J113: 1 | K113: New Brunswick Hanwell 5 | L113: 4743 | M113: 1887 | N113: 1833 | O113: 0
A114: Newfoundland and Labrador Aquaforte | B114: 74 | C114: 63 | D114: 71 | E114: 0 | I114: NF | J114: 1 | K114: New Brunswick Harcourt | L114: 346 | M114: 237 | N114: 274 | O114: 0
A115: Newfoundland and Labrador Arnold's Cove | B115: 964 | C115: 547 | D115: 537 | E115: 0 | I115: NF | J115: 1 | K115: New Brunswick Hardwicke | L115: 2203 | M115: 1181 | N115: 1217 | O115: 0
A116: Newfoundland and Labrador Avondale | B116: 584 | C116: 346 | D116: 373 | E116: 0 | I116: NF | J116: 1 | K116: New Brunswick Hartland | L116: 933 | M116: 390 | N116: 402 | O116: 0
A117: Newfoundland and Labrador Badger | B117: 682 | C117: 357 | D117: 325 | E117: 0 | I117: NF | J117: 1 | K117: New Brunswick Harvey | L117: 358 | M117: 239 | N117: 248 | O117: 0
A118: Newfoundland and Labrador Baie Verte | B118: 1311 | C118: 647 | D118: 646 | E118: 0 | I118: NF | J118: 1 | K118: New Brunswick Harvey 2 | L118: 402 | M118: 176 | N118: 158 | O118: 0
A119: Newfoundland and Labrador Baine Harbour | B119: 126 | C119: 69 | D119: 61 | E119: 0 | I119: NF | J119: 1 | K119: New Brunswick Haut-Madawaska 4 | L119: 3720 | M119: 1781 | N119: 1795 | O119: 0
A120: Newfoundland and Labrador Bauline | B120: 412 | C120: 172 | D120: 174 | E120: 0 | I120: NF | J120: 1 | K120: New Brunswick Havelock | L120: 1042 | M120: 522 | N120: 550 | O120: 0
A121: Newfoundland and Labrador Bay Bulls | B121: 1566 | C121: 631 | D121: 589 | E121: 0 | I121: NF | J121: 1 | K121: New Brunswick Hillsborough | L121: 1397 | M121: 656 | N121: 649 | O121: 0
A122: Newfoundland and Labrador Bay de Verde | B122: 347 | C122: 200 | D122: 216 | E122: 0 | I122: NF | J122: 1 | K122: New Brunswick Hillsborough 2 | L122: 1348 | M122: 590 | N122: 584 | O122: 0
A123: Newfoundland and Labrador Bay L'Argent | B123: 234 | C123: 134 | D123: 132 | E123: 0 | I123: NF | J123: 1 | K123: New Brunswick Hopewell | L123: 597 | M123: 310 | N123: 319 | O123: 0
A124: Newfoundland and Labrador Bay Roberts | B124: 5974 | C124: 2803 | D124: 2658 | E124: 0 | I124: NF | J124: 1 | K124: New Brunswick Huskisson | L124: 5 | M124: 8 | N124: 11 | O124: 0
A125: Newfoundland and Labrador Baytona | B125: 251 | C125: 162 | D125: 129 | E125: 0 | I125: NF | J125: 1 | K125: New Brunswick Indian Island 28 4 | L125: 116 | M125: 46 | N125: 63 | O125: 0
A126: Newfoundland and Labrador Beachside | B126: 97 | C126: 70 | D126: 80 | E126: 0 | I126: NF | J126: 1 | K126: New Brunswick Indian Ranch | L126: 134 | M126: 49 | N126: 37 | O126: 0
A127: Newfoundland and Labrador Bellburns | B127: 52 | C127: 41 | D127: 46 | E127: 0 | I127: NF | J127: 1 | K127: New Brunswick Inkerman | L127: 2373 | M127: 1162 | N127: 1084 | O127: 0
A128: Newfoundland and Labrador Belleoram | B128: 348 | C128: 170 | D128: 175 | E128: 0 | I128: NF | J128: 1 | K128: New Brunswick Johnston | L128: 638 | M128: 384 | N128: 392 | O128: 0
A129: Newfoundland and Labrador Birchy Bay | B129: 511 | C129: 267 | D129: 260 | E129: 0 | I129: NF | J129: 1 | K129: New Brunswick Kars | L129: 377 | M129: 291 | N129: 352 | O129: 0
A130: Newfoundland and Labrador Bird Cove | B130: 175 | C130: 88 | D130: 93 | E130: 0 | I130: NF | J130: 1 | K130: New Brunswick Kedgwick 5 | L130: 1986 | M130: 951 | N130: 949 | O130: 0
A131: Newfoundland and Labrador Bishop's Cove | B131: 252 | C131: 147 | D131: 147 | E131: 0 | I131: NF | J131: 1 | K131: New Brunswick Kent | L131: 1966 | M131: 906 | N131: 953 | O131: 0
A132: Newfoundland and Labrador Bishop's Falls | B132: 3082 | C132: 1540 | D132: 1502 | E132: 0 | I132: NF | J132: 1 | K132: New Brunswick Kingsclear | L132: 2839 | M132: 1104 | N132: 1069 | O132: 0
A133: Newfoundland and Labrador Bonavista | B133: 3190 | C133: 1732 | D133: 1749 | E133: 0 | I133: NF | J133: 1 | K133: New Brunswick Kingsclear 6 | L133: 518 | M133: 209 | N133: 186 | O133: 0
A134: Newfoundland and Labrador Botwood | B134: 2778 | C134: 1389 | D134: 1302 | E134: 0 | I134: NF | J134: 1 | K134: New Brunswick Kingston | L134: 3202 | M134: 1631 | N134: 1671 | O134: 0
A135: Newfoundland and Labrador Branch | B135: 177 | C135: 142 | D135: 174 | E135: 0 | I135: NF | J135: 1 | K135: New Brunswick Lac Baker | L135: 685 | M135: 459 | N135: 505 | O135: 0
A136: Newfoundland and Labrador Brent's Cove | B136: 119 | C136: 84 | D136: 85 | E136: 0 | I136: NF | J136: 1 | K136: New Brunswick Lamèque | L136: 1301 | M136: 606 | N136: 619 | O136: 0
A137: Newfoundland and Labrador Brighton | B137: 163 | C137: 97 | D137: 98 | E137: 0 | I137: NF | J137: 1 | K137: New Brunswick Le Goulet | L137: 749 | M137: 339 | N137: 321 | O137: 0
A138: Newfoundland and Labrador Brigus | B138: 699 | C138: 506 | D138: 446 | E138: 0 | I138: NF | J138: 1 | K138: New Brunswick Lepreau | L138: 803 | M138: 492 | N138: 507 | O138: 0
A139: Newfoundland and Labrador Bryant's Cove | B139: 343 | C139: 149 | D139: 162 | E139: 0 | I139: NF | J139: 1 | K139: New Brunswick Lincoln | L139: 7519 | M139: 3152 | N139: 3019 | O139: 0
A140: Newfoundland and Labrador Buchans | B140: 590 | C140: 338 | D140: 417 | E140: 0 | I140: NF | J140: 1 | K140: New Brunswick Lorne | L140: 313 | M140: 337 | N140: 407 | O140: 0
A141: Newfoundland and Labrador Burgeo | B141: 1176 | C141: 660 | D141: 655 | E141: 0 | I141: NF | J141: 1 | K141: New Brunswick Madawaska | L141: 0 | M141: 0 | N141: 4 | O141: 0
A142: Newfoundland and Labrador Burin | B142: 2237 | C142: 1155 | D142: 1145 | E142: 0 | F142: =IF($E142=0,"",LOOKUP($E142,$V$13:$V$63,Y$13:Y$63)) ->  | G142: =IF($E142=0,"",LOOKUP($E142,$V$13:$V$63,AA$13:AA$63)) ->  | H142: =IF($E142=0,"",LOOKUP($E142,$V$13:$V$63,AB$13:AB$63)) ->  | I142: NF | J142: 1 | K142: New Brunswick Maisonnette | L142: 535 | M142: 401 | N142: 400 | O142: 0
A143: Newfoundland and Labrador Burlington | B143: 304 | C143: 135 | D143: 144 | E143: 0 | I143: NF | J143: 1 | K143: New Brunswick Manners Sutton | L143: 1920 | M143: 1067 | N143: 1123 | O143: 0
A144: Newfoundland and Labrador Burnt Islands | B144: 540 | C144: 251 | D144: 257 | E144: 0 | I144: NF | J144: 1 | K144: New Brunswick Maugerville | L144: 1772 | M144: 726 | N144: 765 | O144: 0
A145: Newfoundland and Labrador Campbellton | B145: 459 | C145: 289 | D145: 268 | E145: 0 | I145: NF | J145: 1 | K145: New Brunswick McAdam | L145: 1173 | M145: 600 | N145: 618 | O145: 0
A146: Newfoundland and Labrador Cape Broyle | B146: 499 | C146: 314 | D146: 291 | E146: 0 | I146: NF | J146: 1 | K146: New Brunswick McAdam 2 | L146: 61 | M146: 45 | N146: 63 | O146: 0
A147: Newfoundland and Labrador Cape St. George | B147: 809 | C147: 433 | D147: 410 | E147: 0 | I147: NF | J147: 1 | K147: New Brunswick Meductic 3 | L147: 180 | M147: 93 | N147: 93 | O147: 0
A148: Newfoundland and Labrador Carbonear | B148: 4696 | C148: 2289 | D148: 2166 | E148: 0 | I148: NF | J148: 1 | K148: New Brunswick Memramcook | L148: 5029 | M148: 2147 | N148: 2119 | O148: 0
A149: Newfoundland and Labrador Carmanville | B149: 784 | C149: 457 | D149: 378 | E149: 0 | I149: NF | J149: 1 | K149: New Brunswick Millville | L149: 274 | M149: 145 | N149: 152 | O149: 0
A150: Newfoundland and Labrador Cartwright, Labrador | B150: 439 | C150: 243 | D150: 221 | E150: 0 | I150: NF | J150: 1 | K150: New Brunswick Minto | L150: 2234 | M150: 1145 | N150: 1170 | O150: 0
A151: Newfoundland and Labrador Centreville-Wareham-Trinity | B151: 1116 | C151: 581 | D151: 561 | E151: 0 | I151: NF | J151: 1 | K151: New Brunswick Miramichi | L151: 17692 | M151: 8484 | N151: 8248 | O151: 0
A152: Newfoundland and Labrador Chance Cove | B152: 213 | C152: 129 | D152: 150 | E152: 0 | I152: NF | J152: 1 | K152: New Brunswick Moncton | L152: 10704 | M152: 4291 | N152: 4036 | O152: 0
A153: Newfoundland and Labrador Change Islands | B153: 184 | C153: 204 | D153: 196 | E153: 0 | I153: NF | J153: 1 | K153: New Brunswick Moncton 2 | L153: 79470 | M153: 37318 | N153: 35380 | O153: 0
A154: Newfoundland and Labrador Channel-Port aux Basques | B154: 3547 | C154: 1814 | D154: 1954 | E154: 0 | I154: NF | J154: 1 | K154: New Brunswick Musquash | L154: 1253 | M154: 594 | N154: 600 | O154: 0
A155: Newfoundland and Labrador Chapel Arm | B155: 446 | C155: 241 | D155: 244 | E155: 0 | I155: NF | J155: 1 | K155: New Brunswick Nackawic | L155: 962 | M155: 451 | N155: 455 | O155: 0
A156: Newfoundland and Labrador Charlottetown (Labrador) | B156: 292 | C156: 140 | D156: 128 | E156: 0 | I156: NF | J156: 1 | K156: New Brunswick Neguac | L156: 1692 | M156: 781 | N156: 783 | O156: 0
A157: Newfoundland and Labrador Clarenville | B157: 6704 | C157: 3123 | D157: 2809 | E157: 0 | I157: NF | J157: 1 | K157: New Brunswick Nelson 4 | L157: 929 | M157: 433 | N157: 428 | O157: 0
A158: Newfoundland and Labrador Clarke's Beach | B158: 1400 | C158: 678 | D158: 642 | E158: 0 | I158: NF | J158: 1 | K158: New Brunswick New Bandon | L158: 1200 | M158: 714 | N158: 794 | O158: 0
A159: Newfoundland and Labrador Coachman's Cove | B159: 111 | C159: 74 | D159: 70 | E159: 0 | I159: NF | J159: 1 | K159: New Brunswick New Maryland | L159: 2806 | M159: 1057 | N159: 998 | O159: 0
A160: Newfoundland and Labrador Colinet | B160: 103 | C160: 81 | D160: 73 | E160: 0 | I160: NF | J160: 1 | K160: New Brunswick New Maryland 2 | L160: 4153 | M160: 1550 | N160: 1513 | O160: 0
A161: Newfoundland and Labrador Colliers | B161: 613 | C161: 414 | D161: 424 | E161: 0 | I161: NF | J161: 1 | K161: New Brunswick Newcastle | L161: 1149 | M161: 529 | N161: 522 | O161: 0
A162: Newfoundland and Labrador Come By Chance | B162: 208 | C162: 108 | D162: 125 | E162: 0 | I162: NF | J162: 1 | K162: New Brunswick Nigadoo | L162: 997 | M162: 450 | N162: 437 | O162: 0
A163: Newfoundland and Labrador Comfort Cove-Newstead | B163: 345 | C163: 247 | D163: 248 | E163: 0 | I163: NF | J163: 1 | K163: New Brunswick North Lake | L163: 282 | M163: 383 | N163: 387 | O163: 0
A164: Newfoundland and Labrador Conception Bay South | B164: 27168 | C164: 11364 | D164: 10553 | E164: 0 | I164: NF | J164: 1 | K164: New Brunswick Northampton | L164: 1875 | M164: 766 | N164: 762 | O164: 0
A165: Newfoundland and Labrador Conception Harbour | B165: 624 | C165: 330 | D165: 392 | E165: 0 | I165: NF | J165: 1 | K165: New Brunswick Northesk | L165: 2169 | M165: 1069 | N165: 1068 | O165: 0
A166: Newfoundland and Labrador Conche | B166: 149 | C166: 120 | D166: 125 | E166: 0 | I166: NF | J166: 1 | K166: New Brunswick Northfield | L166: 577 | M166: 286 | N166: 327 | O166: 0
A167: Newfoundland and Labrador Cook's Harbour | B167: 118 | C167: 92 | D167: 87 | E167: 0 | I167: NF | J167: 1 | K167: New Brunswick Norton | L167: 1325 | M167: 550 | N167: 536 | O167: 0
A168: Newfoundland and Labrador Cormack | B168: 492 | C168: 230 | D168: 288 | E168: 0 | I168: NF | J168: 1 | K168: New Brunswick Norton 2 | L168: 1410 | M168: 578 | N168: 567 | O168: 0
A169: Newfoundland and Labrador Corner Brook | B169: 19333 | C169: 9552 | D169: 9395 | E169: 0 | I169: NF | J169: 1 | K169: New Brunswick Notre-Dame-de-Lourdes | L169: 253 | M169: 117 | N169: 125 | O169: 0
A170: Newfoundland and Labrador Cottlesville | B170: 244 | C170: 145 | D170: 148 | E170: 0 | I170: NF | J170: 1 | K170: New Brunswick Oromocto | L170: 9045 | M170: 3897 | N170: 3900 | O170: 0
A171: Newfoundland and Labrador Cow Head | B171: 398 | C171: 225 | D171: 255 | E171: 0 | I171: NF | J171: 1 | K171: New Brunswick Oromocto 26 | L171: 295 | M171: 111 | N171: 103 | O171: 0
A172: Newfoundland and Labrador Cox's Cove | B172: 664 | C172: 335 | D172: 338 | E172: 0 | I172: NF | J172: 1 | K172: New Brunswick Pabineau 11 | L172: 133 | M172: 64 | N172: 62 | O172: 0
A173: Newfoundland and Labrador Crow Head | B173: 156 | C173: 106 | D173: 116 | E173: 0 | I173: NF | J173: 1 | K173: New Brunswick Paquetville | L173: 2250 | M173: 1145 | N173: 1159 | O173: 0
A174: Newfoundland and Labrador Cupids | B174: 699 | C174: 428 | D174: 364 | E174: 0 | I174: NF | J174: 1 | K174: New Brunswick Paquetville 2 | L174: 718 | M174: 359 | N174: 346 | O174: 0
A175: Newfoundland and Labrador Daniel's Harbour | B175: 220 | C175: 152 | D175: 168 | E175: 0 | I175: NF | J175: 1 | K175: New Brunswick Peel | L175: 1198 | M175: 508 | N175: 496 | O175: 0
A176: Newfoundland and Labrador Deer Lake | B176: 4864 | C176: 2309 | D176: 2300 | E176: 0 | I176: NF | J176: 1 | K176: New Brunswick Pennfield | L176: 2222 | M176: 1029 | N176: 996 | O176: 0
A177: Newfoundland and Labrador Division No. 1, Subd. A 3 | B177: 653 | C177: 562 | D177: 669 | E177: 0 | I177: NF | J177: 1 | K177: New Brunswick Perth | L177: 1047 | M177: 560 | N177: 575 | O177: 0
A178: Newfoundland and Labrador Division No. 1, Subd. B | B178: 356 | C178: 383 | D178: 380 | E178: 0 | I178: NF | J178: 1 | K178: New Brunswick Perth-Andover | L178: 1574 | M178: 785 | N178: 769 | O178: 0
A179: Newfoundland and Labrador Division No. 1, Subd. C | B179: 106 | C179: 140 | D179: 140 | E179: 0 | I179: NF | J179: 1 | K179: New Brunswick Petersville | L179: 710 | M179: 323 | N179: 325 | O179: 0
A180: Newfoundland and Labrador Division No. 1, Subd. D | B180: 119 | C180: 160 | D180: 142 | E180: 0 | I180: NF | J180: 1 | K180: New Brunswick Petit-Rocher | L180: 1954 | M180: 963 | N180: 896 | O180: 0
A181: Newfoundland and Labrador Division No. 1, Subd. E | B181: 2835 | C181: 1576 | D181: 1575 | E181: 0 | I181: NF | J181: 1 | K181: New Brunswick Petitcodiac | L181: 1476 | M181: 630 | N181: 619 | O181: 0
A182: Newfoundland and Labrador Division No. 1, Subd. F | B182: 539 | C182: 341 | D182: 352 | E182: 0 | I182: NF | J182: 1 | K182: New Brunswick Plaster Rock | L182: 1002 | M182: 515 | N182: 531 | O182: 0
A183: Newfoundland and Labrador Division No. 1, Subd. G | B183: 1673 | C183: 1352 | D183: 1337 | E183: 0 | I183: NF | J183: 1 | K183: New Brunswick Pointe-Verte | L183: 865 | M183: 433 | N183: 451 | O183: 0
A184: Newfoundland and Labrador Division No. 1, Subd. H | B184: 328 | C184: 254 | D184: 227 | E184: 0 | I184: NF | J184: 1 | K184: New Brunswick Port Elgin | L184: 381 | M184: 170 | N184: 196 | O184: 0
A185: Newfoundland and Labrador Division No. 1, Subd. I | B185: 320 | C185: 172 | D185: 150 | E185: 0 | I185: NF | J185: 1 | K185: New Brunswick Prince William | L185: 1083 | M185: 648 | N185: 672 | O185: 0
A186: Newfoundland and Labrador Division No. 1, Subd. J | B186: 0 | C186: 0 | D186: 0 | E186: 0 | I186: NF | J186: 1 | K186: New Brunswick Queensbury | L186: 1237 | M186: 579 | N186: 587 | O186: 0
A187: Newfoundland and Labrador Division No. 1, Subd. K | B187: 35 | C187: 123 | D187: 139 | E187: 0 | I187: NF | J187: 1 | K187: New Brunswick Quispamsis | L187: 18768 | M187: 6985 | N187: 6596 | O187: 0
A188: Newfoundland and Labrador Division No. 1, Subd. L | B188: 874 | C188: 463 | D188: 487 | E188: 0 | I188: NF | J188: 1 | K188: New Brunswick Red Bank 4 | L188: 400 | M188: 196 | N188: 179 | O188: 0
A189: Newfoundland and Labrador Division No. 1, Subd. M | B189: 1145 | C189: 1385 | D189: 1440 | E189: 0 | I189: NF | J189: 1 | K189: New Brunswick Renous 12 4 | L189: 10 | M189: 3 | N189: 3 | O189: 0
A190: Newfoundland and Labrador Division No. 1, Subd. N | B190: 356 | C190: 292 | D190: 300 | E190: 0 | I190: NF | J190: 1 | K190: New Brunswick Rexton | L190: 874 | M190: 446 | N190: 428 | O190: 0
A191: Newfoundland and Labrador Division No. 1, Subd. O | B191: 829 | C191: 1090 | D191: 1170 | E191: 0 | I191: NF | J191: 1 | K191: New Brunswick Richibucto 4 | L191: 2085 | M191: 1162 | N191: 1130 | O191: 0
A192: Newfoundland and Labrador Division No. 1, Subd. R | B192: 264 | C192: 193 | D192: 188 | E192: 0 | I192: NF | J192: 1 | K192: New Brunswick Richibucto | L192: 1411 | M192: 704 | N192: 719 | O192: 0
A193: Newfoundland and Labrador Division No. 1, Subd. U | B193: 1373 | C193: 1320 | D193: 1630 | E193: 0 | I193: NF | J193: 1 | K193: New Brunswick Richibucto 15 4 | L193: 2062 | M193: 787 | N193: 768 | O193: 0
A194: Newfoundland and Labrador Division No. 1, Subd. V | B194: 55 | C194: 72 | D194: 140 | E194: 0 | I194: NF | J194: 1 | K194: New Brunswick Richmond | L194: 1456 | M194: 598 | N194: 586 | O194: 0
A195: Newfoundland and Labrador Division No. 1, Subd. W | B195: 469 | C195: 802 | D195: 893 | E195: 0 | I195: NF | J195: 1 | K195: New Brunswick Riverside-Albert | L195: 348 | M195: 154 | N195: 168 | O195: 0
A196: Newfoundland and Labrador Division No. 1, Subd. X | B196: 541 | C196: 738 | D196: 754 | E196: 0 | I196: NF | J196: 1 | K196: New Brunswick Riverview | L196: 20584 | M196: 8797 | N196: 8537 | O196: 0
A197: Newfoundland and Labrador Division No. 1, Subd. Y | B197: 1211 | C197: 951 | D197: 857 | E197: 0 | I197: NF | J197: 1 | K197: New Brunswick Rivière-Verte | L197: 744 | M197: 373 | N197: 358 | O197: 0
A198: Newfoundland and Labrador Division No. 2, Subd. C | B198: 538 | C198: 422 | D198: 498 | E198: 0 | I198: NF | J198: 1 | K198: New Brunswick Rivière-Verte 2 | L198: 657 | M198: 324 | N198: 346 | O198: 0
A199: Newfoundland and Labrador Division No. 2, Subd. D | B199: 204 | C199: 116 | D199: 119 | E199: 0 | I199: NF | J199: 1 | K199: New Brunswick Rogersville | L199: 1072 | M199: 538 | N199: 543 | O199: 0
A200: Newfoundland and Labrador Division No. 2, Subd. E | B200: 251 | C200: 308 | D200: 296 | E200: 0 | I200: NF | J200: 1 | K200: New Brunswick Rogersville 2 | L200: 1193 | M200: 576 | N200: 565 | O200: 0
... 925 more rows

Sheet Statistics (hidden)
B2: CTAP Archetypes for | D2: NB | F2: Climate Zone | G2: 7A | H2: Charlo
B7: Housing Stock Data for New Brunswick
B8: (source: https://oee.nrcan.gc.ca/corporate/statistics/neud/dpa/menus/trends/comprehensive_tables/list.cfm)
B10: Vintage (Table 15) | C10: Dwellings (Table 15) | D10: Floor space, m2 (Table 18) | F10: Gross Thermal Requirements, GJ/yr (Table 32)
B11: Before 1946 | C11: 43740 | D11: 5682000 | F11: 116.714112
B12: 1946–1960 | C12: 21059 | D12: 2606000 | F12: 100.653691
B13: 1961–1977 | C13: 32625 | D13: 3883000 | F13: 72.547113
B14: 1978–1983 | C14: 26244 | D14: 3359000 | F14: 65.276313
B15: 1984–1995 | C15: 71858 | D15: 8987000 | F15: 53.889001
B16: 1996–2000 | C16: 31169 | D16: 4106000 | F16: 46.944428
B17: 2001–2005 | C17: 37213 | D17: 5127000 | F17: 48.723232
B18: 2006–2010 | C18: 35757 | D18: 5209000 | F18: 46.921087
B19: 2011–2015 | C19: 30106 | D19: 4630000 | F19: 47.694479
B20: 2016–2020 | C20: 26128 | D20: 4299000 | F20: 48.481702
B21: Total | C21: 355899 | D21: 47888000
B24: Vintage (Table 15) | C24: Dwellings (Table 15) | D24: Floor space, m2 (Table 18) | E24: Average floor Space. m2 | F24: Space heating, GJ/yr | G24: All Other, GJ/yr | H24: Total, GJ/yr | I24: % of Housing Stock
B25: Before 1946 | C25: 43740 | D25: 5682000 | E25: 129.9039781 | F25: 116.714112 | G25: 29.07986255 | H25: 145.7939745 | I25: 0.1229000362
B26: 1946-1977 | C26: 53684 | D26: 6489000 | E26: 120.8740034 | F26: 83.5726779 | G26: 29.07986255 | H26: 112.6525404 | I26: 0.1508405475
B27: 1978-1995 | C27: 98102 | D27: 12346000 | E27: 125.8486066 | F27: 56.93530603 | G27: 29.07986255 | H27: 86.01516858 | I27: 0.2756456186
B28: 1996-2010 | C28: 104139 | D28: 14442000 | E28: 138.6800334 | F28: 47.57205098 | G28: 29.07986255 | H28: 76.65191352 | I28: 0.2926082962
B29: 2011-2020 | C29: 56234 | D29: 8929000 | E29: 158.7829427 | F29: 48.06024637 | G29: 29.07986255 | H29: 77.14010892 | I29: 0.1580055016 | M29: This table imported from Tab "Table 8" (hiden in the Anil's files)
B30: Total | C30: 355899 | D30: 47888000 | E30: 134.5550283 | F30: 64.15804485 | G30: 29.07986255 | H30: 93.23790739
L31: 2000 | M31: 2001 | N31: 2002 | O31: 2003 | P31: 2004 | Q31: 2005 | R31: 2006 | S31: 2007 | T31: 2008 | U31: 2009 | V31: 2010 | W31: 2011 | X31: 2012 | Y31: 2013 | Z31: 2014 | AA31: 2015 | AB31: 2016 | AC31: 2017 | AD31: 2018 | AE31: 2019 | AF31: 2020
K32: Shares (%)
B33: Type of Housing (Table 21) | F33: Space heating fuel | H33: For the archetype use | K33: Heating Oil – Normal Efficiency | L33: 12.234959 | M33: 9.084041 | N33: 6.920687 | O33: 4.10667 | P33: 2.177163 | Q33: 1.208727 | R33: 0.863682 | S33: 0.592879 | T33: 0.406873 | U33: 0.218614 | V33: 0.083855 | W33: 0 | X33: 0 | Y33: 0 | Z33: 0 | AA33: 0 | AB33: 0 | AC33: 0 | AD33: 0 | AE33: 0 | AF33: 0
B34: Single Detached | C34: 244662 | D34: 0.6874478433 | F34: Electricity | G34: 0.51893244 | H34: 0.68746581 | K34: Heating Oil – Medium Efficiency | L34: 16.220561 | M34: 17.719824 | N34: 21.104315 | O34: 20.25627 | P34: 24.502825 | Q34: 25.523487 | R34: 24.706755 | S34: 25.327094 | T34: 24.641369 | U34: 22.977332 | V34: 28.037515 | W34: 28.213556 | X34: 25.758839 | Y34: 15.514883 | Z34: 15.392981 | AA34: 18.154149 | AB34: 19.406275 | AC34: 20.95979 | AD34: 21.291589 | AE34: 19.809942 | AF34: 18.087006
B35: Single Attached | C35: 25095 | D35: 0.07051157772 | F35: Natural Gas | G35: 0.02304025 | H35: 0.02304025 | K35: Heating Oil – High Efficiency | L35: 0 | M35: 0 | N35: 0 | O35: 0 | P35: 0 | Q35: 0 | R35: 0 | S35: 0 | T35: 0 | U35: 0 | V35: 0 | W35: 0 | X35: 0 | Y35: 0 | Z35: 0 | AA35: 0 | AB35: 0 | AC35: 0 | AD35: 0 | AE35: 0 | AF35: 0
B36: Apart. | C36: 68868 | D36: 0.1935043369 | F36: Oil | G36: 0.18087006 | H36: 0.25549983 | K36: Natural Gas – Normal Efficiency | L36: 0 | M36: 0 | N36: 0 | O36: 0.792978 | P36: 0.889133 | Q36: 0.715435 | R36: 0.511867 | S36: 0.225792 | T36: 0.197407 | U36: 0.139645 | V36: 0.099469 | W36: 0.074981 | X36: 0.065608 | Y36: 0.073377 | Z36: 0.042198 | AA36: 0.0252 | AB36: 0.018092 | AC36: 0.02819 | AD36: 0.033757 | AE36: 0.014695 | AF36: 0.015607
B37: Mob. H. | C37: 17274 | D37: 0.04853624202 | F37: Wood | G37: 0.02296715 | H37: 0.02296715 | K37: Natural Gas – Medium Efficiency | L37: 0 | M37: 0 | N37: 0 | O37: 1.012588 | P37: 1.213887 | Q37: 1.078838 | R37: 0.879564 | S37: 0.455453 | T37: 0.476681 | U37: 0.412314 | V37: 0.361637 | W37: 0.341463 | X37: 0.378754 | Y37: 0.54937 | Z37: 0.422523 | AA37: 0.35966 | AB37: 0.377554 | AC37: 0.394734 | AD37: 0.397974 | AE37: 0.408919 | AF37: 0.373313
B38: Total | C38: 355899 | F38: Other | G38: 0.01102696 | H38: 0.01102696 | K38: Natural Gas – High Efficiency | L38: 0 | M38: 0 | N38: 0 | O38: 1.006351 | P38: 1.234321 | Q38: 1.178668 | R38: 1.115483 | S38: 0.68598 | T38: 0.757006 | U38: 0.680674 | V38: 0.621389 | W38: 0.630448 | X38: 0.72576 | Y38: 1.089292 | Z38: 0.872807 | AA38: 0.934816 | AB38: 1.222745 | AC38: 1.419231 | AD38: 1.571073 | AE38: 1.825096 | AF38: 1.915105
F39: Dual Systems | H39: 1 | K39: Electric | L39: 35.804466 | M39: 39.167443 | N39: 39.128214 | O39: 41.678684 | P39: 39.240102 | Q39: 38.684161 | R39: 39.274192 | S39: 38.206343 | T39: 36.674012 | U39: 36.821465 | V39: 32.630495 | W39: 31.154106 | X39: 31.187444 | Y39: 36.209798 | Z39: 36.351826 | AA39: 32.87978 | AB39: 36.578492 | AC39: 42.181302 | AD39: 44.134645 | AE39: 49.044509 | AF39: 50.299012
F40: Wood/Electric | G40: 0.15644188 | K40: Heat Pump | L40: 0.855163 | M40: 0.974881 | N40: 1.012974 | O40: 1.109579 | P40: 1.080621 | Q40: 1.084034 | R40: 1.112669 | S40: 1.101061 | T40: 1.068793 | U40: 1.069587 | V40: 0.949285 | W40: 0.907384 | X40: 0.912822 | Y40: 1.064206 | Z40: 1.073683 | AA40: 0.979965 | AB40: 1.098325 | AC40: 1.27446 | AD40: 1.357197 | AE40: 1.531651 | AF40: 1.594232
F41: Wood/Heating Oil | G41: 0.07462977 | K41: Other1 | L41: 4.429121 | M41: 2.931163 | N41: 2.122883 | O41: 1.895996 | P41: 1.547285 | Q41: 1.468976 | R41: 1.611672 | S41: 1.545521 | T41: 1.837405 | U41: 1.820616 | V41: 1.275494 | W41: 1.289878 | X41: 0.904833 | Y41: 0.771147 | Z41: 1.264637 | AA41: 1.065193 | AB41: 1.043892 | AC41: 1.001335 | AD41: 0.708223 | AE41: 1.439695 | AF41: 1.102696
F42: Natural Gas/Electric | G42: 0 | K42: Wood | L42: 8.101127 | M42: 8.156993 | N42: 8.057102 | O42: 7.729008 | P42: 7.4619 | Q42: 7.836119 | R42: 7.992642 | S42: 8.708954 | T42: 9.260148 | U42: 9.130244 | V42: 7.900501 | W42: 7.323615 | X42: 6.954707 | Y42: 6.889045 | Z42: 6.188309 | AA42: 5.904582 | AB42: 4.782867 | AC42: 3.399679 | AD42: 2.946232 | AE42: 2.269749 | AF42: 2.296715
F43: Heating Oil/Electric | G43: 0.01209149 | K43: Dual Systems | L43: 0 | M43: 0 | N43: 0 | O43: 0 | P43: 0 | Q43: 0 | R43: 0 | S43: 0 | T43: 0 | U43: 0 | V43: 0 | W43: 0 | X43: 0 | Y43: 0 | Z43: 0 | AA43: 0 | AB43: 0 | AC43: 0 | AD43: 0 | AE43: 0 | AF43: 0
G44: 1 | K44: Wood/Electric | L44: 14.992827 | M44: 14.819524 | N44: 14.100567 | O44: 13.479448 | P44: 12.954597 | Q44: 13.236438 | R44: 14.130105 | S44: 15.080222 | T44: 16.635327 | U44: 18.925245 | V44: 18.790319 | W44: 20.567979 | X44: 23.967083 | Y44: 30.975832 | Z44: 31.448929 | AA44: 31.782022 | AB44: 27.346774 | AC44: 20.94764 | AD44: 18.772501 | AE44: 15.101419 | AF44: 15.644188
K45: Wood/Heating Oil | L45: 6.669954 | M45: 6.449333 | N45: 6.790592 | O45: 6.207634 | P45: 6.874815 | Q45: 7.11654 | R45: 6.943878 | S45: 7.176664 | T45: 7.156534 | U45: 6.95313 | V45: 8.211846 | W45: 8.430923 | X45: 8.14227 | Y45: 6.21192 | Z45: 6.275309 | AA45: 7.115227 | AB45: 7.225147 | AC45: 7.355646 | AD45: 7.646173 | AE45: 7.375997 | AF45: 7.462977
K46: Natural Gas/Electric | L46: 0 | M46: 0 | N46: 0 | O46: 0 | P46: 0 | Q46: 0 | R46: 0 | S46: 0 | T46: 0 | U46: 0 | V46: 0 | W46: 0 | X46: 0 | Y46: 0 | Z46: 0 | AA46: 0 | AB46: 0 | AC46: 0 | AD46: 0 | AE46: 0 | AF46: 0
K47: Heating Oil/Electric | L47: 0.691822 | M47: 0.696798 | N47: 0.762665 | O47: 0.724795 | P47: 0.82335 | Q47: 0.868577 | R47: 0.857492 | S47: 0.894036 | T47: 0.888446 | U47: 0.851135 | V47: 1.038195 | W47: 1.065668 | X47: 1.001881 | Y47: 0.651129 | Z47: 0.666798 | AA47: 0.799406 | AB47: 0.899836 | AC47: 1.037994 | AD47: 1.140635 | AE47: 1.178328 | AF47: 1.209149
L48: 100 | M48: 100 | N48: 99.999999 | O48: 100.000001 | P48: 99.999999 | Q48: 100 | R48: 100.000001 | S48: 99.999999 | T48: 100.000001 | U48: 100.000001 | V48: 100 | W48: 100.000001 | X48: 100.000001 | Y48: 99.999999 | Z48: 100 | AA48: 100 | AB48: 99.999999 | AC48: 100.000001 | AD48: 99.999999 | AE48: 100 | AF48: 100
B50: Summary of CTAP Archetypes -- New Brunswick for Climate Zone 7A - Charlo
F51: Annual Energy Use | K51: Annual Fuel Consumption | O51: System Size | AK51: count
I52: Annual Energy Use | N52: Annual Fuel Consumption | R52: System Size | AB52: Making up Archetype name | AK52: count
C53: h2k-File | D53: House-Type | E53: Storeys | F53: Heating Fuel | G53: Floor Area, m2 | H53: Gross-Heat Loss GJ | I53: Heating GJ | J53: Cooling GJ | K53: DHW GJ | L53: Ventilation GJ | M53: Energy Total GJ | N53: Energy Elec kWh | O53: Energy Oil L | P53: Energy Gas M3 | Q53: Energy Wood cord | R53: PEAK Heating W | S53: PEAK Cooling W | Z53: Vintage 1 | AA53: Vintage 2 | AB53: comment | AC53: Type 1 | AD53: Type 2 | AE53: Type 3 | AF53: Type 4 | AG53: Name | AK53: Vintage 1 | AL53: Vintage 2 | AM53: Type 1 | AN53: Type 2 | AO53: Type 3 | AP53: Type 4 | AQ53: count | AR53: % of total | AS53: No. Arch/vintage | AT53: bldg count | AW53: Sq. ft. comparison archetypes vs average NEUD control
B54: NB, CL-7A, agegroup -46-77, SingleDetached, One storeys, electricity heated, 110.8 m2 floor area | C54: NB-7A-46-77-6846.h2k | D54: SingleDetached | E54: One | F54: electricity | G54: 110.8 | H54: 171.3 | I54: 133.4 | J54: 0 | K54: 17.5 | L54: 0 | M54: 176.5 | N54: 49031.2 | O54: 0 | P54: 0 | Q54: 0 | R54: 19632.4 | S54: 2645.2 | T54: 110.8 | U54: NB, CL-7A, agegroup -46-77, SingleDetached, One storeys, electricity heated, 110.8 m2 floor area | Z54: Before 1946 | AA54: 1946-1977 | AB54: Small | AC54: Single Detached | AG54: Before 1946 and 1946-1977 Small , Single Detached | AK54: 43740 | AL54: 53684 | AM54: 0.6874478433 | AN54: 0 | AO54: 0 | AP54: 0 | AQ54: 38097.53393 | AR54: 0.1070459145 | AS54: 2 | AT54: 97424 | AU54: 4221206.759 | AV54: 6194098.863 | AW54: 5682000 | AX54: 5682000
B55: NB, CL-7A, agegroup -46-77, MobileHome, One and half storeys, electricity heated, 113.9 m2 floor area | C55: NB-7A-46-77-6895.H2K | D55: MobileHome | E55: One and half | F55: electricity | G55: 113.9 | H55: 175.6 | I55: 94.2 | J55: 0.9 | K55: 15.8 | L55: 0 | M55: 136.7 | N55: 37815 | O55: 0 | P55: 0 | Q55: 0 | R55: 24558.7 | S55: 4843.7 | T55: 113.9 | U55: NB, CL-7A, agegroup -46-77, MobileHome, One and half storeys, electricity heated, 113.9 m2 floor area | Z55: Before 1946 | AA55: 1946-1977 | AD55: Single Attached | AE55: Apart. | AF55: Mob. H. | AG55: Before 1946 and 1946-1977 , Single Attached, Apart., Mob. H. | AK55: 43740 | AL55: 53684 | AM55: 0 | AN55: 0.07051157772 | AO55: 0.1935043369 | AP55: 0.04853624202 | AQ55: 17321.26518 | AR55: 0.04866904706 | AS55: 2 | AT55: 85584.06135 | AU55: 1972892.104
B56: NB, CL-7A, agegroup -46-77, SingleDetached, One storeys, Oil heated, 205.3 m2 floor area | C56: NB-7A-46-77-77447.H2K | D56: SingleDetached | E56: One | F56: Oil | G56: 205.3 | H56: 212.7 | I56: 187.5 | J56: 0 | K56: 27.3 | L56: 0 | M56: 240.4 | N56: 7925.2 | O56: 5500.3 | P56: 0 | Q56: 0 | R56: 21261.2 | S56: 6247.3 | T56: 205.3 | U56: NB, CL-7A, agegroup -46-77, SingleDetached, One storeys, Oil heated, 205.3 m2 floor area | Z56: Before 1946 | AA56: 1946-1977 | AB56: Large | AC56: Single Detached | AD56: Single Attached | AG56: Before 1946 and 1946-1977 Large , Single Detached, Single Attached | AK56: 43740 | AL56: 53684 | AM56: 0.6874478433 | AN56: 0.07051157772 | AO56: 0 | AP56: 0 | AQ56: 42005.20089 | AR56: 0.1180256221 | AS56: 3 | AU56: 8623667.743 | AV56: 14417300.76 | AW56: 5682000 | AX56: 5682000
B57: NB, CL-7A, agegroup -78-95, SingleDetached, One and half storeys, Electric heated, 181 m2 floor area | C57: NB-7A-78-95-5747.h2k | D57: SingleDetached | E57: One and half | F57: Electric | G57: 181 | H57: 120.8 | I57: 81.5 | J57: 0 | K57: 16 | L57: 0 | M57: 123.2 | N57: 34224.9 | O57: 0 | P57: 0 | Q57: 0 | R57: 13607 | S57: 2854.3 | T57: 181 | U57: NB, CL-7A, agegroup -78-95, SingleDetached, One and half storeys, Electric heated, 181 m2 floor area | Z57: 1978-1995 | AB57: Large | AC57: Single Detached | AG57: 1978-1995 Large , Single Detached | AK57: 98102 | AL57: 0 | AM57: 0.6874478433 | AN57: 0 | AO57: 0 | AP57: 0 | AQ57: 26257.59528 | AR57: 0.07377822156 | AS57: 3 | AU57: 4752624.745
B58: NB, CL-7A, agegroup -78-95, MobileHome, One storeys, Oil heated, 87.2 m2 floor area | C58: NB-7A-78-95-6928.H2K | D58: MobileHome | E58: One | F58: Oil | G58: 87.2 | H58: 106.1 | I58: 91 | J58: 3 | K58: 15.8 | L58: 0 | M58: 135.8 | N58: 12794.2 | O58: 2161.3 | P58: 173.5 | Q58: 0 | R58: 14843 | S58: 3329.4 | T58: 87.2 | U58: NB, CL-7A, agegroup -78-95, MobileHome, One storeys, Oil heated, 87.2 m2 floor area | Z58: 1978-1995 | AB58: Small | AD58: Single Attached | AE58: Apart. | AF58: Mob. H. | AG58: 1978-1995 Small , Single Attached, Apart., Mob. H. | AK58: 98102 | AL58: 0 | AM58: 0 | AN58: 0.07051157772 | AO58: 0.1935043369 | AP58: 0.04853624202 | AQ58: 11938.16827 | AR58: 0.03354369715 | AS58: 3 | AT58: 144609.9221 | AU58: 1041008.273
B59: NB, CL-7A, agegroup -78-95, SingleDetached, One storeys, electricity heated, 165.2 m2 floor area | C59: NB-7A-78-95-29604.H2K | D59: SingleDetached | E59: One | F59: electricity | G59: 165.2 | H59: 83.5 | I59: 39.3 | J59: 0 | K59: 16.3 | L59: 1.1 | M59: 82.3 | N59: 22857.8 | O59: 0 | P59: 0 | Q59: 0 | R59: 7341.5 | S59: 4284.2 | T59: 165.2 | U59: NB, CL-7A, agegroup -78-95, SingleDetached, One storeys, electricity heated, 165.2 m2 floor area | Z59: 1978-1995 | AC59: Single Detached | AD59: Single Detached | AE59: Apart. | AG59: 1978-1995 , Single Detached, Single Detached, Apart. | AK59: 98102 | AL59: 0 | AM59: 0.6874478433 | AN59: 0.6874478433 | AO59: 0.1935043369 | AP59: 0 | AQ59: 59906.23645 | AR59: 0.1683236998 | AS59: 3 | AU59: 9896510.262 | AV59: 23705789.42 | AW59: 12346000 | AX59: 12346000
B60: NB, CL-7A, agegroup -96-10, SingleDetached, Two storeys, electricity heated, 129.2 m2 floor area | C60: NB-7A-96-10-6409.H2K | D60: SingleDetached | E60: Two | F60: electricity | G60: 129.2 | H60: 163.7 | I60: 120.6 | J60: 0 | K60: 16 | L60: 0 | M60: 162.2 | N60: 45048.8 | O60: 0 | P60: 0 | Q60: 0 | R60: 19715.5 | S60: 3768.2 | T60: 129.2 | U60: NB, CL-7A, agegroup -96-10, SingleDetached, Two storeys, electricity heated, 129.2 m2 floor area | Z60: 1996-2010 | AB60: Two storey | AC60: Single Detached | AD60: Single Attached | AE60: Apart. | AF60: Mob. H. | AG60: 1996-2010 Two storey , Single Detached, Single Attached, Apart., Mob. H. | AK60: 104139 | AL60: 0 | AM60: 0.6874478433 | AN60: 0.07051157772 | AO60: 0.1935043369 | AP60: 0.04853624202 | AQ60: 41392.03469 | AR60: 0.1163027564 | AS60: 3 | AU60: 5347850.882
B61: NB, CL-7A, agegroup -96-10, SingleDetached, Two storeys, Oil heated, 269.7 m2 floor area | C61: NB-7A-96-10-32397.h2k | D61: SingleDetached | E61: Two | F61: Oil | G61: 269.7 | H61: 168 | I61: 93.2 | J61: 1 | K61: 16.2 | L61: 0 | M61: 136.3 | N61: 18319.8 | O61: 1826.2 | P61: 0 | Q61: 0 | R61: 18657.8 | S61: 3903.7 | T61: 269.7 | U61: NB, CL-7A, agegroup -96-10, SingleDetached, Two storeys, Oil heated, 269.7 m2 floor area | Z61: 1996-2010 | AB61: Large, two storey | AC61: Single Detached | AD61: Single Attached | AG61: 1996-2010 Large, two storey , Single Detached, Single Attached | AK61: 104139 | AL61: 0 | AM61: 0.6874478433 | AN61: 0.07051157772 | AO61: 0 | AP61: 0 | AQ61: 31373.48265 | AR61: 0.0881527699 | AS61: 3 | AU61: 8461428.272
B62: NB, CL-7A, agegroup -96-10, DetachedDuplex, One storeys, Electric heated, 206.7 m2 floor area | C62: NB-7A-96-10-77400.H2K | D62: DetachedDuplex | E62: One | F62: Electric | G62: 206.7 | H62: 95.1 | I62: 42.8 | J62: 0 | K62: 17.6 | L62: 1.5 | M62: 88 | N62: 24439.1 | O62: 0 | P62: 0 | Q62: 0 | R62: 8611.4 | S62: 5549.1 | T62: 206.7 | U62: NB, CL-7A, agegroup -96-10, DetachedDuplex, One storeys, Electric heated, 206.7 m2 floor area | Z62: 1996-2010 | AB62: One storey | AC62: Single Detached | AD62: Single Attached | AG62: 1996-2010 One storey , Single Detached, Single Attached | AK62: 104139 | AL62: 0 | AM62: 0.6874478433 | AN62: 0.07051157772 | AO62: 0 | AP62: 0 | AQ62: 31373.48265 | AR62: 0.0881527699 | AS62: 3 | AT62: 104139 | AU62: 6484898.864 | AV62: 14404333.34 | AW62: 14442000 | AX62: 14442000
B63: NB, CL-7A, agegroup -11-20, Rowhouse-middleunit, One storeys, electricity heated, 191.4 m2 floor area | C63: NB-7A-11-20-77463.h2k | D63: Rowhouse-middleunit | E63: One | F63: electricity | G63: 191.4 | H63: 70.6 | I63: 38.1 | J63: 0 | K63: 15.9 | L63: 1.3 | M63: 80.9 | N63: 22484.2 | O63: 0 | P63: 0 | Q63: 0 | R63: 6985.1 | S63: 2642 | T63: 191.4 | U63: NB, CL-7A, agegroup -11-20, Rowhouse-middleunit, One storeys, electricity heated, 191.4 m2 floor area | Z63: 2011-2020 | AC63: Single Detached | AD63: Single Attached | AG63: 2011-2020 , Single Detached, Single Attached | AK63: 56234 | AL63: 0 | AM63: 0.6874478433 | AN63: 0.07051157772 | AO63: 0 | AP63: 0 | AQ63: 24245.77585 | AR63: 0.06812543967 | AS63: 3 | AT63: 87607.48265 | AU63: 4640641.499
B64: NB, CL-7A, agegroup -11-20, MobileHome, One storeys, electricity heated, 102.5 m2 floor area | C64: NB-7A-11-20-77463.h2k | D64: MobileHome | E64: One | F64: electricity | G64: 102.5 | H64: 105.5 | I64: 63.6 | J64: 0 | K64: 15.9 | L64: 1.4 | M64: 106.5 | N64: 29583.7 | O64: 0 | P64: 0 | Q64: 0 | R64: 11359.3 | S64: 4604.1 | T64: 102.5 | U64: NB, CL-7A, agegroup -11-20, MobileHome, One storeys, electricity heated, 102.5 m2 floor area | Z64: 2011-2020 | AB64: Small | AC64: Single Detached | AD64: Single Attached | AE64: Apart. | AF64: Mob. H. | AG64: 2011-2020 Small , Single Detached, Single Attached, Apart., Mob. H. | AK64: 56234 | AL64: 0 | AM64: 0.6874478433 | AN64: 0.07051157772 | AO64: 0.1935043369 | AP64: 0.04853624202 | AQ64: 31988.22415 | AR64: 0.08988006189 | AS64: 3 | AU64: 3278792.975
AK65: check | AQ65: 355899 | AR65: 1
C66: Criteria | D66: Agegroups | G66: Fuel types | J66: Type of Houses | L66: age group | M66: number of archetypes | AK66: 345955 | AP66: Check | AQ66: 355899
D67: Before 1946 | E67: 1 | G67: Electricity | H67: 8 | J67: Single Detached | K67: 7 | L67: Pre-1946 | M67: 26
D68: 1946-1977 | E68: 1 | G68: Natural Gas | H68: 0 | J68: Single Attached | K68: 1 | L68: 1946-1977 | M68: 84
D69: 1978-1995 | E69: 3 | G69: Oil | H69: 3 | J69: Apart. | K69: 2 | L69: 1978-1995 | M69: 96
D70: 1996-2010 | E70: 3 | G70: Wood | H70: 0 | J70: Mob. H. | K70: 0 | L70: 1996-2010 | M70: 60
D71: 2011-2020 | E71: 3 | G71: Other | H71: 0 | L71: 2011-2020 | M71: 17
E72: 11 | H72: 11 | K72: 10
B75: Archetype selections
C78: One & One and half | D78: Split Lvel | E78: Two, Two and half | F78: Total | G78: Total, GJ/yr | H78: age group | I78: number of archetypes | J78: Energy, GJ/yr | K78: Approximate selections
B79: Before 1946 | E79: 1 | F79: 1 | G79: 145.7939745 | H79: Pre-1946 | I79: 26 | J79: 145.7939745 | K79: 1.010600707 | L79: 0.1229000362
B80: 1946-1977 | C80: 1 | D80: 1 | E80: 1 | F80: 3 | G80: 112.6525404 | H80: 1946-1977 | I80: 84 | J80: 112.6525404 | K80: 3.265017668 | L80: 0.1508405475
B81: 1978-1995 | C81: 2 | E81: 1 | F81: 3 | G81: 86.01516858 | H81: 1978-1995 | I81: 96 | J81: 86.01516858 | K81: 3.731448763 | L81: 0.2756456186
B82: 1996-2010 | C82: 1 | E82: 2 | F82: 3 | G82: 76.65191352 | H82: 1996-2010 | I82: 60 | J82: 76.65191352 | K82: 2.332155477 | L82: 0.2926082962
B83: 2011-2020 | E83: 1 | F83: 1 | G83: 77.14010892 | H83: 2011-2020 | I83: 17 | J83: 77.14010892 | K83: 0.6607773852 | L83: 0.1580055016
B84: Total | C84: 4 | D84: 1 | E84: 6 | F84: 11 | G84: 93.23790739 | H84: Total | I84: 283 | J84: 93.23790739 | K84: 11
C86: Electricity | D86: Natural gas & Propane | E86: Oil | F86: Wood | G86: Total
B87: Before 1946 | C87: 1 | G87: 1 | H87: OK
B88: 1946-1977 | C88: 2 | E88: 1 | G88: 3 | H88: OK
B89: 1978-1995 | C89: 2 | E89: 1 | G89: 3 | H89: OK
B90: 1996-2010 | C90: 2 | E90: 1 | G90: 3 | H90: OK
B91: 2011-2020 | C91: 1 | G91: 1 | H91: OK
B92: Total | C92: 8 | G92: 11
C95: Electricity | E95: Oil
B96: Before 1946 | C96: 31281 | G96: 5747 | H96: ERS-EX-5747.H2K
B97: 1946-1977 | C97: 6846 | D97: 77447 | E97: 6895 | G97: 6409 | H97: ERS-EX-6409.H2K
B98: 1978-1995 | C98: 29604 | D98: 6928 | E98: 5747 | G98: 6846 | H98: ERS-EX-6846.H2K
B99: 1996-2010 | C99: 32397 | D99: 77400 | E99: 6409 | G99: 6895 | H99: ERS-EX-6895.H2K
B100: 2011-2020 | C100: 77463 | G100: 6928 | H100: ERS-EX-6928.H2K
B101: Total | G101: 29604 | H101: ERS-EX-29604.H2K
G102: 31281 | H102: ERS-EX-31281.H2K
G103: 32397 | H103: ERS-EX-32397.H2K
G104: 77400 | H104: ERS-EX-77400.H2K
G105: 77447 | H105: ERS-EX-77447.H2K
G106: 77463 | H106: ERS-EX-77463.H2K

Sheet MAIN (hidden)
A1: Archetype# | B1: Type | C1: Average Area (m²) | D1: # Of Units (INFO) | E1: Total Number (INPUT) | F1: #StatusQuo_ElecHeat (INPUT) | G1: #StatusQuo_OilPropHeat (INPUT) | H1: Fuel Efficiency | I1: #StatusQuo_WoodHeat (INPUT) | J1: #ASHP_HeatCool (INPUT) | K1: #GSHP_HeatCool (INPUT) | L1: GSHP Size (kW) per dwelling | M1: GSHP Elec (1)/ Gas (0) AUX | N1: SDHW (INPUT) | O1: PV #(INPUT) | P1: PV kWdc/dweling (INPUT) | Q1: Total # Battery (INPUT) | R1: # Thermal Storage (INPUT) | S1: Heating Load % Reduction | T1: Cooling Load % Reduction | U1: DHW % Reduction | V1: Lighting Load % Reduction | W1: PlugLoad % Reduction | X1: INPUT: Thermal Storage Charge Input (kW) (Based on Calculated Peak Load) | Y1: INPUT: Thermal Storage Capacity/ Dwelling (kWh) | Z1: INFO: Peak Heat per Dwelling (kW) | AA1: INFO: Peak Cool per Dwelling (kW) | AB1: INFO: Steffes Recommended Thermal Storage Capacity (kWh) | AC1: IntElec MAX | AD1: IntElec MIN | AE1: Heat Check | AF1: Cool Check | AG1: Heat Supplied (MJ/dwelling) | AH1: Cooling Supplied (MJ/dwelling) | AI1: DHW Supplied (MJ/dwelling) | AJ1: Lighting (MJ/dwelling) | AK1: Plug Load (MJ/dwelling) | AL1: Status-Quo Heat Elec (MJ) | AM1: Status-Quo Heat OilProp (MJ) | AN1: Status-Quo Heat Wood (MJ) | AO1: Status-Quo Cooling (MJ) | AP1: Status-QuoDHW (MJ) | AQ1: Status-Quo Plug (MJ) | AR1: ASHP Heat (MJ) | AS1: ASHP Cooling(MJ) | AT1: SDHW (MJ) | AU1: PV Capacity (kWdc) | AV1: Batteries#Builds | AW1: GSHP Heat (MJ) | AX1: GSHP Cooling(MJ) | AY1: GSHP Capacity | AZ1: ='User Input Output'!AC2 -> Battery bank capacity (kWhrs)
A2: 1 | B2: =Financial!A136 -> Before 1946 and 1946-1977 Small , Single Detached | C2: =Financial!F136 -> 110.8 | D2: 25 | E2: ='User Input Output'!B3 -> 50 | F2: ='User Input Output'!C3 -> 20 | G2: ='User Input Output'!D3 -> 17 | H2: ='User Input Output'!E3 -> 0.8059305492 | I2: ='User Input Output'!F3 -> 12 | J2: ='User Input Output'!G3 -> 1 | K2: ='User Input Output'!H3 -> 0 | L2: ='User Input Output'!I3 -> 19.6324 | M2: =IF('User Input Output'!J3="Fossil fuel", 0,1) -> 0 | N2: ='User Input Output'!K3 -> 0 | O2: ='User Input Output'!L3 -> 0 | P2: ='User Input Output'!M3 -> 0 | Q2: ='User Input Output'!N3 -> 1 | R2: ='User Input Output'!O3 -> 0 | S2: ='User Input Output'!P3 -> 0 | T2: ='User Input Output'!Q3 -> 0 | U2: ='User Input Output'!R3 -> 0 | V2: ='User Input Output'!S3 -> 0 | W2: ='User Input Output'!T3 -> 0 | X2: 38.4 | Y2: ='User Input Output'!AD3 -> 240 | Z2: ='0ThermalStorage'!$L$1 -> 8.391527015 | AA2: ='5StatusQuoCooling'!$L$1 -> 0 | AB2: =Z2*24*0.78 -> 157.0893857 | AC2: =MAX('16IntElec_Batt'!$A$3:$A$8763) -> 781.7412288 | AD2: =MIN('16IntElec_Batt'!$A$3:$A$8763) -> 78.00870847 | AE2: =SUM(H2,G2,F2,J2) -> 38.80593055 | AF2: =J2 -> 1 | AG2: =(1-S2)*AE14*1000 -> 71316.2 | AH2: =(1-T2)*AF14*1000 -> 0 | AI2: =(1-U2)*AG14*1000 -> 15619.3531 | AJ2: =(1-V2)*AH14*1000 -> 0 | AK2: =(1-W2)*AI14*1000 -> 26280 | AL2: =$AG2*F2 -> 1426324 | AM2: =$AG2*G2/0.75 -> 1616500.533 | AN2: =$AG2*H2/0.75 -> 76634.53898 | AO2: =AH2*(E2-J2) -> 0 | AP2: =AI2*(E2-N2) -> 780967.655 | AQ2: =(AK2+AJ2)*E2 -> 1314000 | AR2: =AG2*J2 -> 71316.2 | AS2: =AH2*J2 -> 0 | AT2: =N2*AI2 -> 0 | AU2: =O2*P2 -> 0 | AV2: =Q2 -> 1 | AW2: =AG2*K2 -> 0 | AX2: =AH2*K2 -> 0 | AY2: =L2 -> 19.6324 | AZ2: ='User Input Output'!AC3 -> 13.5
